Body Name,Body,Service Label,Service Code   ,Service Division Label,Service Division Code,Expenditure Category,Expenditure Code,CIPFA Detailed Expenditure Type,CIPFA Detailed Expenditure Code,Date,Transaction Number,Net Amount,Capital and Revenue,Creditor Name
Brighton & Hove City Council,http://statistics.data.gov.uk/id/local-authority/00ML,Adult Social Care,BVASOC,S Svcs - Physical Disability,PDY,Supplies and Services,E,Communications n Computing,EH,02/05/2012,PAY00471915,7.95,Revenue,Select Health Care (UK) Ltd
Brighton & Hove City Council,http://statistics.data.gov.uk/id/local-authority/00ML,Adult Social Care,BVASOC,S Svcs - Physical Disability,PDY,Supplies and Services,E,Equip't Furniture n Materials,EA,02/05/2012,PAY00471915,599,Revenue,Select Health Care (UK) Ltd
Brighton & Hove City Council,http://statistics.data.gov.uk/id/local-authority/00ML,Adult Social Care,BVASOC,S Svcs - Older People Svcs,PPL,Customer n Client Receipts,M,Fees n Charges,MB,02/05/2012,PAY00471917,-466,Revenue,RMBI
Brighton & Hove City Council,http://statistics.data.gov.uk/id/local-authority/00ML,Adult Social Care,BVASOC,S Svcs - Older People Svcs,PPL,Third Party Payments,F,Other Establishments,FH,02/05/2012,PAY00471917,2028.6,Revenue,RMBI
Brighton & Hove City Council,http://statistics.data.gov.uk/id/local-authority/00ML,Non SERCOP,BVANON,Non-Council,NNC,Supplies and Services,E,Miscellaneous Expenses,EM,02/05/2012,PAY00471919,645,Revenue,Julia Robinson Catering Ltd
Brighton & Hove City Council,http://statistics.data.gov.uk/id/local-authority/00ML,Central Services To The Public,BVACEN,Support Services (SSC),PPT,Supplies and Services,E,Communications n Computing,EH,02/05/2012,PAY00471920,2426.39,Revenue,Cable & Wireless
Brighton & Hove City Council,http://statistics.data.gov.uk/id/local-authority/00ML,Housing Services General Fund,BVAHOG,Homelessness,HML,Premises Related,C,Rents Payable,CC,02/05/2012,PAY00471921,850,Revenue,Payment to Individual
Brighton & Hove City Council,http://statistics.data.gov.uk/id/local-authority/00ML,Adult Social Care,BVASOC,S Svcs - Mental Health,MHT,Third Party Payments,F,Other Establishments,FH,02/05/2012,PAY00471922,1659,Revenue,Payment to Individual
Brighton & Hove City Council,http://statistics.data.gov.uk/id/local-authority/00ML,Central Services To The Public,BVACEN,Support Services (SSC),PPT,Supplies and Services,E,Services,EF,02/05/2012,PAY00471924,3225,Revenue,Payment to Individual
Brighton & Hove City Council,http://statistics.data.gov.uk/id/local-authority/00ML,Housing Services General Fund,BVAHOG,Homelessness,HML,Premises Related,C,Rents Payable,CC,02/05/2012,PAY00471927,1250,Revenue,Payment to Individual
Brighton & Hove City Council,http://statistics.data.gov.uk/id/local-authority/00ML,Housing Services General Fund,BVAHOG,Homelessness,HML,Premises Related,C,Rents Payable,CC,02/05/2012,PAY00471932,750,Revenue,Payment to Individual
Brighton & Hove City Council,http://statistics.data.gov.uk/id/local-authority/00ML,Adult Social Care,BVASOC,S Svcs - Asylum Seekers,AYL,Third Party Payments,F,Other Establishments,FH,02/05/2012,PAY00471934,704,Revenue,Payment to Individual
Brighton & Hove City Council,http://statistics.data.gov.uk/id/local-authority/00ML,Housing Services General Fund,BVAHOG,Homelessness,HML,Premises Related,C,Rents Payable,CC,02/05/2012,PAY00471935,606.67,Revenue,Thornton Properties Ltd
Brighton & Hove City Council,http://statistics.data.gov.uk/id/local-authority/00ML,Housing Services General Fund,BVAHOG,Homelessness,HML,Premises Related,C,Rents Payable,CC,02/05/2012,PAY00471939,530,Revenue,Payment to Individual
Brighton & Hove City Council,http://statistics.data.gov.uk/id/local-authority/00ML,Housing Services General Fund,BVAHOG,Homelessness,HML,Supplies and Services,E,Services,EF,02/05/2012,PAY00471941,5410,Revenue,Hove Wardley Company Ltd
Brighton & Hove City Council,http://statistics.data.gov.uk/id/local-authority/00ML,Children�s Social Care,BVACSC,Child Srvcs - Fostering,FLF,Third Party Payments,F,Other Establishments,FH,02/05/2012,PAY00471944,5341,Revenue,Heath Farm Family Services
Brighton & Hove City Council,http://statistics.data.gov.uk/id/local-authority/00ML,Housing Services General Fund,BVAHOG,Homelessness,HML,Premises Related,C,Rents Payable,CC,02/05/2012,PAY00471946,700,Revenue,Payment to Individual
Brighton & Hove City Council,http://statistics.data.gov.uk/id/local-authority/00ML,Housing Services General Fund,BVAHOG,Hsing Welfare,HGW,Transfer Payments,G,Supporting People,GF,02/05/2012,PAY00471960,1096.49,Revenue,Brighton & Hove Jewish Housing Assoc Ltd
Brighton & Hove City Council,http://statistics.data.gov.uk/id/local-authority/00ML,Education Services,BVAEDU,Ed - Special Ed,EKE,Third Party Payments,F,Other Agencies,FL,02/05/2012,PAY00471962,1364,Revenue,Brighton & Hove Montessori School
Brighton & Hove City Council,http://statistics.data.gov.uk/id/local-authority/00ML,Education Services,BVAEDU,Ed - Special Ed,EKE,Third Party Payments,F,Other Agencies,FL,02/05/2012,PAY00471963,572,Revenue,Deepdene School
Brighton & Hove City Council,http://statistics.data.gov.uk/id/local-authority/00ML,Housing Services General Fund,BVAHOG,Homelessness,HML,Premises Related,C,Rents Payable,CC,02/05/2012,PAY00471964,715,Revenue,Payment to Individual
Brighton & Hove City Council,http://statistics.data.gov.uk/id/local-authority/00ML,Children�s Social Care,BVACSC,Child Srvcs - Fostering,FLF,Third Party Payments,F,Other Establishments,FH,02/05/2012,PAY00471967,272651.68,Revenue,Families for Children (South) Ltd
Brighton & Hove City Council,http://statistics.data.gov.uk/id/local-authority/00ML,Children�s Social Care,BVACSC,Child Srvcs - Leaving Care,FAL,Transfer Payments,G,Other Transfer Payments,GD,02/05/2012,PAY00471967,2022.65,Revenue,Families for Children (South) Ltd
Brighton & Hove City Council,http://statistics.data.gov.uk/id/local-authority/00ML,Children�s Social Care,BVACSC,Child Srvcs - Residential Svcs,FLR,Third Party Payments,F,Other Establishments,FH,02/05/2012,PAY00471967,38737.14,Revenue,Families for Children (South) Ltd
Brighton & Hove City Council,http://statistics.data.gov.uk/id/local-authority/00ML,Housing Services Revnue Acc,BVAHOU,Hsing Management - HRA,HGM,Supplies and Services,E,Grants n Subscriptions,EK,02/05/2012,PAY00471969,7500,Revenue,Brighton & Hove Independent Mediation Service
Brighton & Hove City Council,http://statistics.data.gov.uk/id/local-authority/00ML,Central Services To The Public,BVACEN,Support Services (SSC),PPT,Supplies and Services,E,Equip't Furniture n Materials,EA,02/05/2012,PAY00471970,969,Revenue,Portsdown Office Furniture
Brighton & Hove City Council,http://statistics.data.gov.uk/id/local-authority/00ML,Housing Services Revnue Acc,BVAHOU,Hsing Management - HRA,HGM,Supplies and Services,E,Equip't Furniture n Materials,EA,02/05/2012,PAY00471970,166,Revenue,Portsdown Office Furniture
Brighton & Hove City Council,http://statistics.data.gov.uk/id/local-authority/00ML,Children�s Social Care,BVACSC,Child Srvcs - Residential Svcs,FLR,Third Party Payments,F,Other Establishments,FH,02/05/2012,PAY00471971,14310.8,Revenue,Caldecott Foundation
Brighton & Hove City Council,http://statistics.data.gov.uk/id/local-authority/00ML,Housing Services General Fund,BVAHOG,Hsing Welfare,HGW,Transfer Payments,G,Supporting People,GF,02/05/2012,PAY00471972,11537,Revenue,Brighton & Hove Mencap
Brighton & Hove City Council,http://statistics.data.gov.uk/id/local-authority/00ML,Children�s Social Care,BVACSC,Child Srvcs - Fostering,FLF,Third Party Payments,F,Other Establishments,FH,02/05/2012,PAY00471973,33226.94,Revenue,Foster Care Associates Ltd
Brighton & Hove City Council,http://statistics.data.gov.uk/id/local-authority/00ML,Children�s Social Care,BVACSC,Child Srvcs - Fostering,FLF,Third Party Payments,F,Other Establishments,FH,02/05/2012,PAY00471974,6589.6,Revenue,Hillcrest Care Ltd
Brighton & Hove City Council,http://statistics.data.gov.uk/id/local-authority/00ML,Children�s Social Care,BVACSC,Child Srvcs - Residential Svcs,FLR,Third Party Payments,F,Other Establishments,FH,02/05/2012,PAY00471974,13812,Revenue,Hillcrest Care Ltd
Brighton & Hove City Council,http://statistics.data.gov.uk/id/local-authority/00ML,Cultural and Related Services,BVACUL,Tourism,TRM,Supplies and Services,E,Miscellaneous Expenses,EM,02/05/2012,PAY00471975,1574,Revenue,Colourfast Group Ltd
Brighton & Hove City Council,http://statistics.data.gov.uk/id/local-authority/00ML,Adult Social Care,BVASOC,S Svcs - Learning Disability,LDY,Third Party Payments,F,Other Establishments,FH,02/05/2012,PAY00471977,6111.84,Revenue,Care Co-operatives Ltd
Brighton & Hove City Council,http://statistics.data.gov.uk/id/local-authority/00ML,Adult Social Care,BVASOC,S Svcs - Mental Health,MHT,Third Party Payments,F,Other Establishments,FH,02/05/2012,PAY00471977,1851.6,Revenue,Care Co-operatives Ltd
Brighton & Hove City Council,http://statistics.data.gov.uk/id/local-authority/00ML,Housing Services General Fund,BVAHOG,Hsing Welfare,HGW,Transfer Payments,G,Supporting People,GF,02/05/2012,PAY00471977,5774,Revenue,Care Co-operatives Ltd
Brighton & Hove City Council,http://statistics.data.gov.uk/id/local-authority/00ML,Education Services,BVAEDU,Ed - Srvcs YP - Ad & Cmty Ln,ENA,Supplies and Services,E,Equip't Furniture n Materials,EA,02/05/2012,PAY00471980,632,Revenue,Pool-Tec
Brighton & Hove City Council,http://statistics.data.gov.uk/id/local-authority/00ML,Adult Social Care,BVASOC,S Svcs - Learning Disability,LDY,Customer n Client Receipts,M,Fees n Charges,MB,02/05/2012,PAY00471981,-311.4,Revenue,ASD Unique Services LLP
Brighton & Hove City Council,http://statistics.data.gov.uk/id/local-authority/00ML,Adult Social Care,BVASOC,S Svcs - Learning Disability,LDY,Third Party Payments,F,Other Establishments,FH,02/05/2012,PAY00471981,4486.2,Revenue,ASD Unique Services LLP
Brighton & Hove City Council,http://statistics.data.gov.uk/id/local-authority/00ML,Children�s Social Care,BVACSC,Child Srvcs - Leaving Care,FAL,Transfer Payments,G,Other Transfer Payments,GD,02/05/2012,PAY00471984,15.86,Revenue,Brighton YMCA
Brighton & Hove City Council,http://statistics.data.gov.uk/id/local-authority/00ML,Housing Services General Fund,BVAHOG,Hsing Welfare,HGW,Transfer Payments,G,Supporting People,GF,02/05/2012,PAY00471984,54933.17,Revenue,Brighton YMCA
Brighton & Hove City Council,http://statistics.data.gov.uk/id/local-authority/00ML,Adult Social Care,BVASOC,S Svcs - Older People Svcs,PPL,Customer n Client Receipts,M,Fees n Charges,MB,02/05/2012,PAY00471985,-476.8,Revenue,Hilgay Residential Home
Brighton & Hove City Council,http://statistics.data.gov.uk/id/local-authority/00ML,Adult Social Care,BVASOC,S Svcs - Older People Svcs,PPL,Third Party Payments,F,Other Establishments,FH,02/05/2012,PAY00471985,1960,Revenue,Hilgay Residential Home
Brighton & Hove City Council,http://statistics.data.gov.uk/id/local-authority/00ML,Adult Social Care,BVASOC,S Svcs - Learning Disability,LDY,Customer n Client Receipts,M,Fees n Charges,MB,02/05/2012,PAY00471989,-261,Revenue,Caburn Support Services
Brighton & Hove City Council,http://statistics.data.gov.uk/id/local-authority/00ML,Adult Social Care,BVASOC,S Svcs - Learning Disability,LDY,Third Party Payments,F,Other Establishments,FH,02/05/2012,PAY00471989,5210.45,Revenue,Caburn Support Services
Brighton & Hove City Council,http://statistics.data.gov.uk/id/local-authority/00ML,Housing Services General Fund,BVAHOG,Hsing Welfare,HGW,Transfer Payments,G,Supporting People,GF,02/05/2012,PAY00471990,38312.84,Revenue,Southdown Housing Association
Brighton & Hove City Council,http://statistics.data.gov.uk/id/local-authority/00ML,Cultural and Related Services,BVACUL,Culture & Heritage,CHG,Supplies and Services,E,Communications n Computing,EH,02/05/2012,PAY00471992,7316.4,Revenue,Artifax Software Ltd
Brighton & Hove City Council,http://statistics.data.gov.uk/id/local-authority/00ML,Housing Services General Fund,BVAHOG,Homelessness,HML,Premises Related,C,Rents Payable,CC,02/05/2012,PAY00471994,850,Revenue,Payment to Individual
Brighton & Hove City Council,http://statistics.data.gov.uk/id/local-authority/00ML,Environment and Regulatory Ser,BVAERS,Management Services (DEC),MGT,Supplies and Services,E,Miscellaneous Expenses,EM,02/05/2012,PAY00471996,8559.5,Revenue,Environment Agency
Brighton & Hove City Council,http://statistics.data.gov.uk/id/local-authority/00ML,Housing Services General Fund,BVAHOG,Homelessness,HML,Premises Related,C,Rents Payable,CC,02/05/2012,PAY00472002,2260.13,Revenue,Forward Properties Limited
Brighton & Hove City Council,http://statistics.data.gov.uk/id/local-authority/00ML,Education Services,BVAEDU,Ed - EY - Central,EAE,Premises Related,C,Energy Costs,CB,02/05/2012,PAY00472004,705.1,Revenue,E.ON UK plc
Brighton & Hove City Council,http://statistics.data.gov.uk/id/local-authority/00ML,Education Services,BVAEDU,Ed - Secondary Ed,EJE,Premises Related,C,Energy Costs,CB,02/05/2012,PAY00472004,2752.81,Revenue,E.ON UK plc
Brighton & Hove City Council,http://statistics.data.gov.uk/id/local-authority/00ML,Housing Services Revnue Acc,BVAHOU,Hsing Management - HRA,HGM,Premises Related,C,Energy Costs,CB,02/05/2012,PAY00472004,15.82,Revenue,E.ON UK plc
Brighton & Hove City Council,http://statistics.data.gov.uk/id/local-authority/00ML,Adult Social Care,BVASOC,S Svcs - Physical Disability,PDY,Supplies and Services,E,Equip't Furniture n Materials,EA,02/05/2012,PAY00472007,475.62,Revenue,Alsford Timber Ltd
Brighton & Hove City Council,http://statistics.data.gov.uk/id/local-authority/00ML,Adult Social Care,BVASOC,S Svcs - Learning Disability,LDY,Customer n Client Receipts,M,Fees n Charges,MB,02/05/2012,PAY00472008,-92,Revenue,The Regard Partnership Ltd
Brighton & Hove City Council,http://statistics.data.gov.uk/id/local-authority/00ML,Adult Social Care,BVASOC,S Svcs - Learning Disability,LDY,Third Party Payments,F,Other Establishments,FH,02/05/2012,PAY00472008,2617.48,Revenue,The Regard Partnership Ltd
Brighton & Hove City Council,http://statistics.data.gov.uk/id/local-authority/00ML,Children�s Social Care,BVACSC,Child Srvcs - Residential Svcs,FLR,Third Party Payments,F,Other Establishments,FH,02/05/2012,PAY00472008,11912.51,Revenue,The Regard Partnership Ltd
Brighton & Hove City Council,http://statistics.data.gov.uk/id/local-authority/00ML,Children�s Social Care,BVACSC,Child Srvcs - Fostering,FLF,Third Party Payments,F,Other Establishments,FH,02/05/2012,PAY00472009,4488.65,Revenue,Asphaleia Ltd
Brighton & Hove City Council,http://statistics.data.gov.uk/id/local-authority/00ML,Adult Social Care,BVASOC,S Svcs - Physical Disability,PDY,Supplies and Services,E,Communications n Computing,EH,02/05/2012,PAY00472010,14203,Revenue,Ethitec
Brighton & Hove City Council,http://statistics.data.gov.uk/id/local-authority/00ML,Adult Social Care,BVASOC,S Svcs - Physical Disability,PDY,Supplies and Services,E,Equip't Furniture n Materials,EA,02/05/2012,PAY00472010,64.5,Revenue,Ethitec
Brighton & Hove City Council,http://statistics.data.gov.uk/id/local-authority/00ML,Housing Services General Fund,BVAHOG,Hsing Welfare,HGW,Transfer Payments,G,Supporting People,GF,02/05/2012,PAY00472013,33834.67,Revenue,Riverside ECHG Ltd
Brighton & Hove City Council,http://statistics.data.gov.uk/id/local-authority/00ML,Highways and Transportation,BVAHRT,Parking Services,PRK,Premises Related,C,Cleaning n Domestic Supps,CH,02/05/2012,PAY00472015,3998.5,Revenue,Peake Cleaning & Hygiene Services Ltd
Brighton & Hove City Council,http://statistics.data.gov.uk/id/local-authority/00ML,Cultural and Related Services,BVACUL,Culture & Heritage,CHG,Supplies and Services,E,Miscellaneous Expenses,EM,02/05/2012,PAY00472016,480,Revenue,Select Security & Stewarding Ltd
Brighton & Hove City Council,http://statistics.data.gov.uk/id/local-authority/00ML,Central Services To The Public,BVACEN,Support Services (SSC),PPT,Supplies and Services,E,Communications n Computing,EH,02/05/2012,PAY00472021,3496.57,Revenue,Virgin Media Business
Brighton & Hove City Council,http://statistics.data.gov.uk/id/local-authority/00ML,Central Services To The Public,BVACEN,Support Services (SSC),PPT,Supplies and Services,E,Grants n Subscriptions,EK,02/05/2012,PAY00472025,51622.46,Revenue,Local Government Association
Brighton & Hove City Council,http://statistics.data.gov.uk/id/local-authority/00ML,Housing Services General Fund,BVAHOG,Homelessness,HML,Premises Related,C,Rents Payable,CC,02/05/2012,PAY00472026,825,Revenue,Payment to Individual
Brighton & Hove City Council,http://statistics.data.gov.uk/id/local-authority/00ML,Housing Services General Fund,BVAHOG,Hsing Welfare,HGW,Transfer Payments,G,Supporting People,GF,02/05/2012,PAY00472029,15295.75,Revenue,Sanctuary Carr-Gomm
Brighton & Hove City Council,http://statistics.data.gov.uk/id/local-authority/00ML,Adult Social Care,BVASOC,Support Services (SSC),PPT,Supplies and Services,E,Communications n Computing,EH,02/05/2012,PAY00472030,16.74,Revenue,Royal Mail Group Ltd
Brighton & Hove City Council,http://statistics.data.gov.uk/id/local-authority/00ML,Central Services To The Public,BVACEN,Holding Accounts,PPH,Supplies and Services,E,Communications n Computing,EH,02/05/2012,PAY00472030,3209.45,Revenue,Royal Mail Group Ltd
Brighton & Hove City Council,http://statistics.data.gov.uk/id/local-authority/00ML,Cultural and Related Services,BVACUL,Library Service,LBR,Supplies and Services,E,Communications n Computing,EH,02/05/2012,PAY00472030,83,Revenue,Royal Mail Group Ltd
Brighton & Hove City Council,http://statistics.data.gov.uk/id/local-authority/00ML,Housing Services General Fund,BVAHOG,Private Sector Hsing Renewal,PHR,Supplies and Services,E,Communications n Computing,EH,02/05/2012,PAY00472030,41.13,Revenue,Royal Mail Group Ltd
Brighton & Hove City Council,http://statistics.data.gov.uk/id/local-authority/00ML,Housing Services General Fund,BVAHOG,Hsing Welfare,HGW,Transfer Payments,G,Supporting People,GF,02/05/2012,PAY00472031,2751.67,Revenue,Payment to Individual
Brighton & Hove City Council,http://statistics.data.gov.uk/id/local-authority/00ML,Children�s Social Care,BVACSC,Child Srvcs - Fostering,FLF,Third Party Payments,F,Other Establishments,FH,02/05/2012,PAY00472032,3214.68,Revenue,Barnardos
Brighton & Hove City Council,http://statistics.data.gov.uk/id/local-authority/00ML,Housing Services General Fund,BVAHOG,Homelessness,HML,Premises Related,C,Rents Payable,CC,02/05/2012,PAY00472035,925,Revenue,Payment to Individual
Brighton & Hove City Council,http://statistics.data.gov.uk/id/local-authority/00ML,Education Services,BVAEDU,Ed - EY - Central,EAE,Supplies and Services,E,Miscellaneous Expenses,EM,02/05/2012,PAY00472037,675,Revenue,BeCCA Pre-School Playgroup
Brighton & Hove City Council,http://statistics.data.gov.uk/id/local-authority/00ML,Adult Social Care,BVASOC,S Svcs - Older People Svcs,PPL,Third Party Payments,F,Other Establishments,FH,02/05/2012,PAY00472038,1384,Revenue,Bell Memorial Home Inc
Brighton & Hove City Council,http://statistics.data.gov.uk/id/local-authority/00ML,Adult Social Care,BVASOC,S Svcs - Physical Disability,PDY,Supplies and Services,E,Equip't Furniture n Materials,EA,02/05/2012,PAY00472043,898.06,Revenue,Action on Hearing Loss Products
Brighton & Hove City Council,http://statistics.data.gov.uk/id/local-authority/00ML,Adult Social Care,BVASOC,S Svcs - Physical Disability,PDY,Third Party Payments,F,Other Establishments,FH,02/05/2012,PAY00472044,6373.48,Revenue,Priory Group Ltd
Brighton & Hove City Council,http://statistics.data.gov.uk/id/local-authority/00ML,Children�s Social Care,BVACSC,Child Srvcs - Leaving Care,FAL,Transfer Payments,G,Other Transfer Payments,GD,02/05/2012,PAY00472046,25,Revenue,Sussex Central YMCA
Brighton & Hove City Council,http://statistics.data.gov.uk/id/local-authority/00ML,Housing Services General Fund,BVAHOG,Hsing Welfare,HGW,Transfer Payments,G,Supporting People,GF,02/05/2012,PAY00472046,57843.59,Revenue,Sussex Central YMCA
Brighton & Hove City Council,http://statistics.data.gov.uk/id/local-authority/00ML,Children�s Social Care,BVACSC,Child Srvcs - Residential Svcs,FLR,Third Party Payments,F,Other Establishments,FH,02/05/2012,PAY00472048,68416.63,Revenue,My Choice Children`s Homes Ltd
Brighton & Hove City Council,http://statistics.data.gov.uk/id/local-authority/00ML,Adult Social Care,BVASOC,S Svcs - Physical Disability,PDY,Customer n Client Receipts,M,Fees n Charges,MB,02/05/2012,PAY00472053,-108,Revenue,The Sussex Deaf Association
Brighton & Hove City Council,http://statistics.data.gov.uk/id/local-authority/00ML,Adult Social Care,BVASOC,S Svcs - Physical Disability,PDY,Third Party Payments,F,Other Establishments,FH,02/05/2012,PAY00472053,1180,Revenue,The Sussex Deaf Association
Brighton & Hove City Council,http://statistics.data.gov.uk/id/local-authority/00ML,Environment and Regulatory Ser,BVAERS,Court Services,CRT,Supplies and Services,E,Equip't Furniture n Materials,EA,02/05/2012,PAY00472054,774.4,Revenue,Payment to Individual
Brighton & Hove City Council,http://statistics.data.gov.uk/id/local-authority/00ML,Environment and Regulatory Ser,BVAERS,Court Services,CRT,Supplies and Services,E,Services,EF,02/05/2012,PAY00472054,212.5,Revenue,Payment to Individual
Brighton & Hove City Council,http://statistics.data.gov.uk/id/local-authority/00ML,Cultural and Related Services,BVACUL,Culture & Heritage,CHG,Customer n Client Receipts,M,Fees n Charges,MB,02/05/2012,PAY00472055,-8805.16,Revenue,Live Nation Music (UK) Ltd
Brighton & Hove City Council,http://statistics.data.gov.uk/id/local-authority/00ML,Cultural and Related Services,BVACUL,Culture & Heritage,CHG,Customer n Client Receipts,M,Sales,MA,02/05/2012,PAY00472055,33432.08,Revenue,Live Nation Music (UK) Ltd
Brighton & Hove City Council,http://statistics.data.gov.uk/id/local-authority/00ML,Cultural and Related Services,BVACUL,Culture & Heritage,CHG,Supplies and Services,E,Equip't Furniture n Materials,EA,02/05/2012,PAY00472055,-160,Revenue,Live Nation Music (UK) Ltd
Brighton & Hove City Council,http://statistics.data.gov.uk/id/local-authority/00ML,Cultural and Related Services,BVACUL,Culture & Heritage,CHG,Supplies and Services,E,Miscellaneous Expenses,EM,02/05/2012,PAY00472055,-1208.27,Revenue,Live Nation Music (UK) Ltd
Brighton & Hove City Council,http://statistics.data.gov.uk/id/local-authority/00ML,Children�s Social Care,BVACSC,Child Srvcs - Fostering,FLF,Third Party Payments,F,Other Establishments,FH,02/05/2012,PAY00472056,43483.04,Revenue,The Foster Care Agency Ltd
Brighton & Hove City Council,http://statistics.data.gov.uk/id/local-authority/00ML,Housing Services General Fund,BVAHOG,Hsing Welfare,HGW,Transfer Payments,G,Supporting People,GF,02/05/2012,PAY00472059,25820.42,Revenue,Money Advice & Community Support Service
Brighton & Hove City Council,http://statistics.data.gov.uk/id/local-authority/00ML,Adult Social Care,BVASOC,S Svcs - Physical Disability,PDY,Supplies and Services,E,Communications n Computing,EH,02/05/2012,PAY00472060,28.34,Revenue,Supra UK Ltd
Brighton & Hove City Council,http://statistics.data.gov.uk/id/local-authority/00ML,Adult Social Care,BVASOC,S Svcs - Physical Disability,PDY,Supplies and Services,E,Equip't Furniture n Materials,EA,02/05/2012,PAY00472060,1769,Revenue,Supra UK Ltd
Brighton & Hove City Council,http://statistics.data.gov.uk/id/local-authority/00ML,Children�s Social Care,BVACSC,Child Srvcs - Fostering,FLF,Third Party Payments,F,Other Establishments,FH,02/05/2012,PAY00472061,14991.12,Revenue,Seafields Fostering Ltd
Brighton & Hove City Council,http://statistics.data.gov.uk/id/local-authority/00ML,Housing Services General Fund,BVAHOG,Homelessness,HML,Supplies and Services,E,Services,EF,02/05/2012,PAY00472063,3524.5,Revenue,Solutions
Brighton & Hove City Council,http://statistics.data.gov.uk/id/local-authority/00ML,Housing Services General Fund,BVAHOG,Homelessness,HML,Premises Related,C,Rents Payable,CC,02/05/2012,PAY00472065,620,Revenue,Payment to Individual
Brighton & Hove City Council,http://statistics.data.gov.uk/id/local-authority/00ML,Housing Services General Fund,BVAHOG,Hsing Welfare,HGW,Transfer Payments,G,Supporting People,GF,02/05/2012,PAY00472067,1109.33,Revenue,Raglan Housing Association Ltd
Brighton & Hove City Council,http://statistics.data.gov.uk/id/local-authority/00ML,Children�s Social Care,BVACSC,Child Srvcs - Fostering,FLF,Third Party Payments,F,Other Establishments,FH,02/05/2012,PAY00472068,22453.32,Revenue,The National Fostering Agency Ltd
Brighton & Hove City Council,http://statistics.data.gov.uk/id/local-authority/00ML,Adult Social Care,BVASOC,S Svcs - Older People Svcs,PPL,Customer n Client Receipts,M,Fees n Charges,MB,02/05/2012,PAY00472075,-300,Revenue,Saga Homecare
Brighton & Hove City Council,http://statistics.data.gov.uk/id/local-authority/00ML,Adult Social Care,BVASOC,S Svcs - Older People Svcs,PPL,Third Party Payments,F,Other Establishments,FH,02/05/2012,PAY00472075,2461.92,Revenue,Saga Homecare
Brighton & Hove City Council,http://statistics.data.gov.uk/id/local-authority/00ML,Adult Social Care,BVASOC,S Svcs - Learning Disability,LDY,Third Party Payments,F,Other Establishments,FH,02/05/2012,PAY00472076,15976.06,Revenue,CMG Limited
Brighton & Hove City Council,http://statistics.data.gov.uk/id/local-authority/00ML,Cultural and Related Services,BVACUL,Open Spaces,PEN,Third Party Payments,F,Private Contractors,FJ,02/05/2012,PAY00472077,435,Revenue,A M Construction (Southern) Ltd
Brighton & Hove City Council,http://statistics.data.gov.uk/id/local-authority/00ML,Environment and Regulatory Ser,BVAERS,Community Safety,CMY,Third Party Payments,F,Other Establishments,FH,02/05/2012,PAY00472079,50935,Revenue,Crime Reduction Initiatives Ltd
Brighton & Hove City Council,http://statistics.data.gov.uk/id/local-authority/00ML,Housing Services General Fund,BVAHOG,Hsing Welfare,HGW,Transfer Payments,G,Supporting People,GF,02/05/2012,PAY00472079,23977.75,Revenue,Crime Reduction Initiatives Ltd
Brighton & Hove City Council,http://statistics.data.gov.uk/id/local-authority/00ML,Adult Social Care,BVASOC,S Svcs - Physical Disability,PDY,Supplies and Services,E,Communications n Computing,EH,02/05/2012,PAY00472080,30,Revenue,R82 UK Ltd
Brighton & Hove City Council,http://statistics.data.gov.uk/id/local-authority/00ML,Adult Social Care,BVASOC,S Svcs - Physical Disability,PDY,Supplies and Services,E,Equip't Furniture n Materials,EA,02/05/2012,PAY00472080,618,Revenue,R82 UK Ltd
Brighton & Hove City Council,http://statistics.data.gov.uk/id/local-authority/00ML,Adult Social Care,BVASOC,S Svcs - Older People Svcs,PPL,Customer n Client Receipts,M,Fees n Charges,MB,02/05/2012,PAY00472081,-2205.9,Revenue,Eastridge Manor
Brighton & Hove City Council,http://statistics.data.gov.uk/id/local-authority/00ML,Adult Social Care,BVASOC,S Svcs - Older People Svcs,PPL,Third Party Payments,F,Other Establishments,FH,02/05/2012,PAY00472081,4034.8,Revenue,Eastridge Manor
Brighton & Hove City Council,http://statistics.data.gov.uk/id/local-authority/00ML,Adult Social Care,BVASOC,S Svcs - Mental Health,MHT,Third Party Payments,F,Other Establishments,FH,02/05/2012,PAY00472082,522.6,Revenue,Prime Care Community Services Ltd
Brighton & Hove City Council,http://statistics.data.gov.uk/id/local-authority/00ML,Adult Social Care,BVASOC,S Svcs - Older People Svcs,PPL,Customer n Client Receipts,M,Fees n Charges,MB,02/05/2012,PAY00472082,-122,Revenue,Prime Care Community Services Ltd
Brighton & Hove City Council,http://statistics.data.gov.uk/id/local-authority/00ML,Adult Social Care,BVASOC,S Svcs - Older People Svcs,PPL,Third Party Payments,F,Other Establishments,FH,02/05/2012,PAY00472082,763.18,Revenue,Prime Care Community Services Ltd
Brighton & Hove City Council,http://statistics.data.gov.uk/id/local-authority/00ML,Non SERCOP,BVANON,Cap - Transport,4TR,Vehicles,PE1,Level not required,NR5032,02/05/2012,PAY00472083,38189.67,Capital,Haynes Bros Ltd
Brighton & Hove City Council,http://statistics.data.gov.uk/id/local-authority/00ML,Housing Services General Fund,BVAHOG,Hsing Welfare,HGW,Transfer Payments,G,Supporting People,GF,02/05/2012,PAY00472084,7985.75,Revenue,Friends First
Brighton & Hove City Council,http://statistics.data.gov.uk/id/local-authority/00ML,Housing Services Revnue Acc,BVAHOU,Hsing Management - HRA,HGM,Premises Related,C,Repair Maint n Alterations,CA,02/05/2012,PAY00472085,528.2,Revenue,MDJ Light Brothers (SP) Ltd
Brighton & Hove City Council,http://statistics.data.gov.uk/id/local-authority/00ML,Housing Services General Fund,BVAHOG,Hsing Welfare,HGW,Transfer Payments,G,Supporting People,GF,02/05/2012,PAY00472086,5211.92,Revenue,Independent Living Company (Sussex) Ltd
Brighton & Hove City Council,http://statistics.data.gov.uk/id/local-authority/00ML,Children�s Social Care,BVACSC,Child Srvcs - Fostering,FLF,Third Party Payments,F,Other Establishments,FH,02/05/2012,PAY00472088,9524.04,Revenue,Outlook Fostering Services Ltd
Brighton & Hove City Council,http://statistics.data.gov.uk/id/local-authority/00ML,Children�s Social Care,BVACSC,Child Srvcs - Residential Svcs,FLR,Third Party Payments,F,Other Establishments,FH,02/05/2012,PAY00472088,240,Revenue,Outlook Fostering Services Ltd
Brighton & Hove City Council,http://statistics.data.gov.uk/id/local-authority/00ML,Housing Services General Fund,BVAHOG,Hsing Welfare,HGW,Transfer Payments,G,Supporting People,GF,02/05/2012,PAY00472089,16666.67,Revenue,Sussex Oakleaf Housing Association
Brighton & Hove City Council,http://statistics.data.gov.uk/id/local-authority/00ML,Adult Social Care,BVASOC,S Svcs - Older People Svcs,PPL,Customer n Client Receipts,M,Fees n Charges,MB,02/05/2012,PAY00472090,-476.8,Revenue,Elton Lodge Ltd
Brighton & Hove City Council,http://statistics.data.gov.uk/id/local-authority/00ML,Adult Social Care,BVASOC,S Svcs - Older People Svcs,PPL,Third Party Payments,F,Other Establishments,FH,02/05/2012,PAY00472090,2212.8,Revenue,Elton Lodge Ltd
Brighton & Hove City Council,http://statistics.data.gov.uk/id/local-authority/00ML,Housing Services General Fund,BVAHOG,Homelessness,HML,Premises Related,C,Rents Payable,CC,02/05/2012,PAY00472093,3792.71,Revenue,Sanctuary Housing Association
Brighton & Hove City Council,http://statistics.data.gov.uk/id/local-authority/00ML,Housing Services General Fund,BVAHOG,Homelessness,HML,Premises Related,C,Rents Payable,CC,02/05/2012,PAY00472094,100080.78,Revenue,KEM Property Services Ltd
Brighton & Hove City Council,http://statistics.data.gov.uk/id/local-authority/00ML,Housing Services General Fund,BVAHOG,Homelessness,HML,Premises Related,C,Repair Maint n Alterations,CA,02/05/2012,PAY00472094,344.72,Revenue,KEM Property Services Ltd
Brighton & Hove City Council,http://statistics.data.gov.uk/id/local-authority/00ML,Children�s Social Care,BVACSC,Child Srvcs - Residential Svcs,FLR,Third Party Payments,F,Other Establishments,FH,02/05/2012,PAY00472095,12256,Revenue,Lioncare Ltd
Brighton & Hove City Council,http://statistics.data.gov.uk/id/local-authority/00ML,Adult Social Care,BVASOC,Management Services (DEC),MGT,Direct Employees,A,Salaries,AA,02/05/2012,PAY00472096,7921.85,Revenue,Carlisle Staffing Plc
Brighton & Hove City Council,http://statistics.data.gov.uk/id/local-authority/00ML,Adult Social Care,BVASOC,Management Services (DEC),MGT,Indirect Employees,B,Training,BM,02/05/2012,PAY00472096,11.22,Revenue,Carlisle Staffing Plc
Brighton & Hove City Council,http://statistics.data.gov.uk/id/local-authority/00ML,Adult Social Care,BVASOC,S Svcs - Learning Disability,LDY,Direct Employees,A,Salaries,AA,02/05/2012,PAY00472096,4172,Revenue,Carlisle Staffing Plc
Brighton & Hove City Council,http://statistics.data.gov.uk/id/local-authority/00ML,Adult Social Care,BVASOC,S Svcs - Mental Health,MHT,Direct Employees,A,Salaries,AA,02/05/2012,PAY00472096,103,Revenue,Carlisle Staffing Plc
Brighton & Hove City Council,http://statistics.data.gov.uk/id/local-authority/00ML,Adult Social Care,BVASOC,S Svcs - Older People Svcs,PPL,Direct Employees,A,Salaries,AA,02/05/2012,PAY00472096,12223.59,Revenue,Carlisle Staffing Plc
Brighton & Hove City Council,http://statistics.data.gov.uk/id/local-authority/00ML,Adult Social Care,BVASOC,S Svcs - Supported Employment,EMP,Direct Employees,A,Salaries,AA,02/05/2012,PAY00472096,628.87,Revenue,Carlisle Staffing Plc
Brighton & Hove City Council,http://statistics.data.gov.uk/id/local-authority/00ML,Adult Social Care,BVASOC,Support Services (SSC),PPT,Direct Employees,A,Salaries,AA,02/05/2012,PAY00472096,52.07,Revenue,Carlisle Staffing Plc
Brighton & Hove City Council,http://statistics.data.gov.uk/id/local-authority/00ML,Central Services To The Public,BVACEN,Ed - EY - Central,EAE,Direct Employees,A,Salaries,AA,02/05/2012,PAY00472096,78.5,Revenue,Carlisle Staffing Plc
Brighton & Hove City Council,http://statistics.data.gov.uk/id/local-authority/00ML,Central Services To The Public,BVACEN,Reg - Birth Death and Marriage,RBD,Direct Employees,A,Salaries,AA,02/05/2012,PAY00472096,16.31,Revenue,Carlisle Staffing Plc
Brighton & Hove City Council,http://statistics.data.gov.uk/id/local-authority/00ML,Central Services To The Public,BVACEN,Support Services (SSC),PPT,Direct Employees,A,Salaries,AA,02/05/2012,PAY00472096,8928.15,Revenue,Carlisle Staffing Plc
Brighton & Hove City Council,http://statistics.data.gov.uk/id/local-authority/00ML,Children�s Social Care,BVACSC,Child Srvcs - Com & Scl Work,FCW,Direct Employees,A,Salaries,AA,02/05/2012,PAY00472096,23.32,Revenue,Carlisle Staffing Plc
Brighton & Hove City Council,http://statistics.data.gov.uk/id/local-authority/00ML,Children�s Social Care,BVACSC,Child Srvcs - Fostering,FLF,Direct Employees,A,Salaries,AA,02/05/2012,PAY00472096,556.95,Revenue,Carlisle Staffing Plc
Brighton & Hove City Council,http://statistics.data.gov.uk/id/local-authority/00ML,Children�s Social Care,BVACSC,Child Srvcs - Leaving Care,FAL,Direct Employees,A,Salaries,AA,02/05/2012,PAY00472096,1329.78,Revenue,Carlisle Staffing Plc
Brighton & Hove City Council,http://statistics.data.gov.uk/id/local-authority/00ML,Children�s Social Care,BVACSC,Child Srvcs - Other Fam Supp,FFX,Direct Employees,A,Salaries,AA,02/05/2012,PAY00472096,678.4,Revenue,Carlisle Staffing Plc
Brighton & Hove City Council,http://statistics.data.gov.uk/id/local-authority/00ML,Children�s Social Care,BVACSC,Child Srvcs - Other Yth Jstce,FYX,Direct Employees,A,Salaries,AA,02/05/2012,PAY00472096,7.5,Revenue,Carlisle Staffing Plc
Brighton & Hove City Council,http://statistics.data.gov.uk/id/local-authority/00ML,Children�s Social Care,BVACSC,Child Srvcs - Residential Svcs,FLR,Direct Employees,A,Salaries,AA,02/05/2012,PAY00472096,498.54,Revenue,Carlisle Staffing Plc
Brighton & Hove City Council,http://statistics.data.gov.uk/id/local-authority/00ML,Cultural and Related Services,BVACUL,Culture & Heritage,CHG,Direct Employees,A,Salaries,AA,02/05/2012,PAY00472096,5.94,Revenue,Carlisle Staffing Plc
Brighton & Hove City Council,http://statistics.data.gov.uk/id/local-authority/00ML,Cultural and Related Services,BVACUL,Management Services (DEC),MGT,Direct Employees,A,Salaries,AA,02/05/2012,PAY00472096,7.5,Revenue,Carlisle Staffing Plc
Brighton & Hove City Council,http://statistics.data.gov.uk/id/local-authority/00ML,Education Services,BVAEDU,Ed - Ed Other - LA Attrib Sch,ELA,Direct Employees,A,Salaries,AA,02/05/2012,PAY00472096,4.75,Revenue,Carlisle Staffing Plc
Brighton & Hove City Council,http://statistics.data.gov.uk/id/local-authority/00ML,Education Services,BVAEDU,Ed - Ed Other - Other,ENF,Direct Employees,A,Salaries,AA,02/05/2012,PAY00472096,19.81,Revenue,Carlisle Staffing Plc
Brighton & Hove City Council,http://statistics.data.gov.uk/id/local-authority/00ML,Education Services,BVAEDU,Ed - EY - Central,EAE,Direct Employees,A,Salaries,AA,02/05/2012,PAY00472096,4238.2,Revenue,Carlisle Staffing Plc
Brighton & Hove City Council,http://statistics.data.gov.uk/id/local-authority/00ML,Education Services,BVAEDU,Ed - Mgmt & Support Services,EMG,Direct Employees,A,Salaries,AA,02/05/2012,PAY00472096,2232.27,Revenue,Carlisle Staffing Plc
Brighton & Hove City Council,http://statistics.data.gov.uk/id/local-authority/00ML,Education Services,BVAEDU,Ed - Primary schools,EHH,Direct Employees,A,Salaries,AA,02/05/2012,PAY00472096,132.13,Revenue,Carlisle Staffing Plc
Brighton & Hove City Council,http://statistics.data.gov.uk/id/local-authority/00ML,Education Services,BVAEDU,Ed - Secondary Ed,EJE,Direct Employees,A,Salaries,AA,02/05/2012,PAY00472096,587.9,Revenue,Carlisle Staffing Plc
Brighton & Hove City Council,http://statistics.data.gov.uk/id/local-authority/00ML,Education Services,BVAEDU,Ed - Secondary Schools,EJJ,Direct Employees,A,Salaries,AA,02/05/2012,PAY00472096,1082.37,Revenue,Carlisle Staffing Plc
Brighton & Hove City Council,http://statistics.data.gov.uk/id/local-authority/00ML,Education Services,BVAEDU,Ed - Special Ed,EKE,Direct Employees,A,Salaries,AA,02/05/2012,PAY00472096,506.05,Revenue,Carlisle Staffing Plc
Brighton & Hove City Council,http://statistics.data.gov.uk/id/local-authority/00ML,Environment and Regulatory Ser,BVAERS,Cem Crem and Mortuary Services,CCM,Direct Employees,A,Salaries,AA,02/05/2012,PAY00472096,477.9,Revenue,Carlisle Staffing Plc
Brighton & Hove City Council,http://statistics.data.gov.uk/id/local-authority/00ML,Environment and Regulatory Ser,BVAERS,Community Safety,CMY,Direct Employees,A,Salaries,AA,02/05/2012,PAY00472096,1559.18,Revenue,Carlisle Staffing Plc
Brighton & Hove City Council,http://statistics.data.gov.uk/id/local-authority/00ML,Environment and Regulatory Ser,BVAERS,Environmental Health,EVH,Direct Employees,A,Salaries,AA,02/05/2012,PAY00472096,589.94,Revenue,Carlisle Staffing Plc
Brighton & Hove City Council,http://statistics.data.gov.uk/id/local-authority/00ML,Environment and Regulatory Ser,BVAERS,Management Services (DEC),MGT,Direct Employees,A,Salaries,AA,02/05/2012,PAY00472096,1178.41,Revenue,Carlisle Staffing Plc
Brighton & Hove City Council,http://statistics.data.gov.uk/id/local-authority/00ML,Environment and Regulatory Ser,BVAERS,Street Cleansing,CLE,Direct Employees,A,Salaries,AA,02/05/2012,PAY00472096,1946.22,Revenue,Carlisle Staffing Plc
Brighton & Hove City Council,http://statistics.data.gov.uk/id/local-authority/00ML,Environment and Regulatory Ser,BVAERS,Waste Management,WMT,Direct Employees,A,Salaries,AA,02/05/2012,PAY00472096,14726.43,Revenue,Carlisle Staffing Plc
Brighton & Hove City Council,http://statistics.data.gov.uk/id/local-authority/00ML,Highways and Transportation,BVAHRT,Highways and Roads - Mntnce,HRM,Direct Employees,A,Salaries,AA,02/05/2012,PAY00472096,32.51,Revenue,Carlisle Staffing Plc
Brighton & Hove City Council,http://statistics.data.gov.uk/id/local-authority/00ML,Highways and Transportation,BVAHRT,Parking Services,PRK,Direct Employees,A,Salaries,AA,02/05/2012,PAY00472096,992.67,Revenue,Carlisle Staffing Plc
Brighton & Hove City Council,http://statistics.data.gov.uk/id/local-authority/00ML,Highways and Transportation,BVAHRT,Traffic Mgmnt and Road Safety,TMR,Direct Employees,A,Salaries,AA,02/05/2012,PAY00472096,1.81,Revenue,Carlisle Staffing Plc
Brighton & Hove City Council,http://statistics.data.gov.uk/id/local-authority/00ML,Highways and Transportation,BVAHRT,Transport plan policy strategy,TPP,Direct Employees,A,Salaries,AA,02/05/2012,PAY00472096,466.54,Revenue,Carlisle Staffing Plc
Brighton & Hove City Council,http://statistics.data.gov.uk/id/local-authority/00ML,Housing Services General Fund,BVAHOG,Homelessness,HML,Direct Employees,A,Salaries,AA,02/05/2012,PAY00472096,9092.53,Revenue,Carlisle Staffing Plc
Brighton & Hove City Council,http://statistics.data.gov.uk/id/local-authority/00ML,Housing Services General Fund,BVAHOG,Hsing Benefits,HGB,Direct Employees,A,Salaries,AA,02/05/2012,PAY00472096,16.63,Revenue,Carlisle Staffing Plc
Brighton & Hove City Council,http://statistics.data.gov.uk/id/local-authority/00ML,Housing Services General Fund,BVAHOG,Hsing Welfare,HGW,Direct Employees,A,Salaries,AA,02/05/2012,PAY00472096,1967.87,Revenue,Carlisle Staffing Plc
Brighton & Hove City Council,http://statistics.data.gov.uk/id/local-authority/00ML,Housing Services Revnue Acc,BVAHOU,Hsing Management - HRA,HGM,Direct Employees,A,Salaries,AA,02/05/2012,PAY00472096,14596.43,Revenue,Carlisle Staffing Plc
Brighton & Hove City Council,http://statistics.data.gov.uk/id/local-authority/00ML,Planning Services,BVAPLA,Development Control,DEV,Direct Employees,A,Salaries,AA,02/05/2012,PAY00472096,-2039.06,Revenue,Carlisle Staffing Plc
Brighton & Hove City Council,http://statistics.data.gov.uk/id/local-authority/00ML,Planning Services,BVAPLA,Economic Development,ECD,Direct Employees,A,Salaries,AA,02/05/2012,PAY00472096,9.25,Revenue,Carlisle Staffing Plc
Brighton & Hove City Council,http://statistics.data.gov.uk/id/local-authority/00ML,Adult Social Care,BVASOC,S Svcs - Learning Disability,LDY,Third Party Payments,F,Other Establishments,FH,02/05/2012,PAY00472098,69.95,Revenue,Allied Healthcare Brighton Domicillary
Brighton & Hove City Council,http://statistics.data.gov.uk/id/local-authority/00ML,Adult Social Care,BVASOC,S Svcs - Mental Health,MHT,Third Party Payments,F,Other Establishments,FH,02/05/2012,PAY00472098,43.55,Revenue,Allied Healthcare Brighton Domicillary
Brighton & Hove City Council,http://statistics.data.gov.uk/id/local-authority/00ML,Adult Social Care,BVASOC,S Svcs - Older People Svcs,PPL,Customer n Client Receipts,M,Fees n Charges,MB,02/05/2012,PAY00472098,-426,Revenue,Allied Healthcare Brighton Domicillary
Brighton & Hove City Council,http://statistics.data.gov.uk/id/local-authority/00ML,Adult Social Care,BVASOC,S Svcs - Older People Svcs,PPL,Third Party Payments,F,Other Establishments,FH,02/05/2012,PAY00472098,2550.69,Revenue,Allied Healthcare Brighton Domicillary
Brighton & Hove City Council,http://statistics.data.gov.uk/id/local-authority/00ML,Adult Social Care,BVASOC,S Svcs - Physical Disability,PDY,Customer n Client Receipts,M,Fees n Charges,MB,02/05/2012,PAY00472098,-112,Revenue,Allied Healthcare Brighton Domicillary
Brighton & Hove City Council,http://statistics.data.gov.uk/id/local-authority/00ML,Adult Social Care,BVASOC,S Svcs - Physical Disability,PDY,Third Party Payments,F,Other Establishments,FH,02/05/2012,PAY00472098,777.08,Revenue,Allied Healthcare Brighton Domicillary
Brighton & Hove City Council,http://statistics.data.gov.uk/id/local-authority/00ML,Highways and Transportation,BVAHRT,Transport plan policy strategy,TPP,Supplies and Services,E,Services,EF,02/05/2012,PAY00472099,553.3,Revenue,Peter Brett Associates LLP
Brighton & Hove City Council,http://statistics.data.gov.uk/id/local-authority/00ML,Adult Social Care,BVASOC,S Svcs - Learning Disability,LDY,Indirect Employees,B,Training,BM,02/05/2012,PAY00472102,30,Revenue,David Taylor Training
Brighton & Hove City Council,http://statistics.data.gov.uk/id/local-authority/00ML,Adult Social Care,BVASOC,S Svcs - Other Adult Services,ADT,Indirect Employees,B,Training,BM,02/05/2012,PAY00472102,210,Revenue,David Taylor Training
Brighton & Hove City Council,http://statistics.data.gov.uk/id/local-authority/00ML,Central Services To The Public,BVACEN,Support Services (SSC),PPT,Indirect Employees,B,Training,BM,02/05/2012,PAY00472102,930,Revenue,David Taylor Training
Brighton & Hove City Council,http://statistics.data.gov.uk/id/local-authority/00ML,Housing Services General Fund,BVAHOG,Homelessness,HML,Premises Related,C,Rents Payable,CC,02/05/2012,PAY00472103,565,Revenue,Payment to Individual
Brighton & Hove City Council,http://statistics.data.gov.uk/id/local-authority/00ML,Housing Services General Fund,BVAHOG,Homelessness,HML,Customer n Client Receipts,M,Fees n Charges,MB,02/05/2012,PAY00472105,1165.34,Revenue,ScottishPower
Brighton & Hove City Council,http://statistics.data.gov.uk/id/local-authority/00ML,Children�s Social Care,BVACSC,Child Srvcs - Leaving Care,FAL,Transfer Payments,G,Other Transfer Payments,GD,02/05/2012,PAY00472109,500,Revenue,Payment to Individual
Brighton & Hove City Council,http://statistics.data.gov.uk/id/local-authority/00ML,Cultural and Related Services,BVACUL,Management Services (DEC),MGT,Supplies and Services,E,Equip't Furniture n Materials,EA,02/05/2012,PAY00472110,509.43,Revenue,Ball Colegrave Ltd
Brighton & Hove City Council,http://statistics.data.gov.uk/id/local-authority/00ML,Housing Services General Fund,BVAHOG,Hsing Welfare,HGW,Transfer Payments,G,Supporting People,GF,02/05/2012,PAY00472112,3001.58,Revenue,Anchor Trust Rent Account
Brighton & Hove City Council,http://statistics.data.gov.uk/id/local-authority/00ML,Planning Services,BVAPLA,Economic Development,ECD,Supplies and Services,E,Grants n Subscriptions,EK,02/05/2012,PAY00472113,3000,Revenue,The Basement South East Ltd
Brighton & Hove City Council,http://statistics.data.gov.uk/id/local-authority/00ML,Adult Social Care,BVASOC,S Svcs - Physical Disability,PDY,Supplies and Services,E,Communications n Computing,EH,02/05/2012,PAY00472114,10,Revenue,Hearing Products International Ltd
Brighton & Hove City Council,http://statistics.data.gov.uk/id/local-authority/00ML,Adult Social Care,BVASOC,S Svcs - Physical Disability,PDY,Supplies and Services,E,Equip't Furniture n Materials,EA,02/05/2012,PAY00472114,2015.4,Revenue,Hearing Products International Ltd
Brighton & Hove City Council,http://statistics.data.gov.uk/id/local-authority/00ML,Central Services To The Public,BVACEN,Support Services (SSC),PPT,Supplies and Services,E,Equip't Furniture n Materials,EA,02/05/2012,PAY00472116,1204.43,Revenue,Elliott Baxter & Company Ltd
Brighton & Hove City Council,http://statistics.data.gov.uk/id/local-authority/00ML,Non SERCOP,BVANON,Cap - Housing Services - GF,4HG,Capital Grants,PF,Level not required,NR5012,02/05/2012,PAY00472118,4117.7,Capital,Climate Energy Ltd
Brighton & Hove City Council,http://statistics.data.gov.uk/id/local-authority/00ML,Adult Social Care,BVASOC,S Svcs - Physical Disability,PDY,Supplies and Services,E,Equip't Furniture n Materials,EA,02/05/2012,PAY00472125,486.5,Revenue,Nordic Care Services Ltd
Brighton & Hove City Council,http://statistics.data.gov.uk/id/local-authority/00ML,Adult Social Care,BVASOC,S Svcs - Learning Disability,LDY,Customer n Client Receipts,M,Fees n Charges,MB,02/05/2012,PAY00472127,-49.08,Revenue,The Well House
Brighton & Hove City Council,http://statistics.data.gov.uk/id/local-authority/00ML,Adult Social Care,BVASOC,S Svcs - Learning Disability,LDY,Third Party Payments,F,Other Establishments,FH,02/05/2012,PAY00472127,2080.52,Revenue,The Well House
Brighton & Hove City Council,http://statistics.data.gov.uk/id/local-authority/00ML,Highways and Transportation,BVAHRT,Parking Services,PRK,Supplies and Services,E,Equip't Furniture n Materials,EA,02/05/2012,PAY00472132,1175.5,Revenue,APT Skidata Ltd
Brighton & Hove City Council,http://statistics.data.gov.uk/id/local-authority/00ML,Central Services To The Public,BVACEN,Support Services (SSC),PPT,Supplies and Services,E,Communications n Computing,EH,02/05/2012,PAY00472134,8249.21,Revenue,Virgin Media Business
Brighton & Hove City Council,http://statistics.data.gov.uk/id/local-authority/00ML,Cultural and Related Services,BVACUL,Library Service,LBR,Supplies and Services,E,Services,EF,02/05/2012,PAY00472141,55497.73,Revenue,NU Library for Brighton Ld-Materials Fnd
Brighton & Hove City Council,http://statistics.data.gov.uk/id/local-authority/00ML,Non SERCOP,BVANON,Cap - Social Services,4RV,New Construction n Conversion,PB,Level not required,NR5026,02/05/2012,PAY00472142,10683.4,Capital,Tectonic Digital Systems Ltd
Brighton & Hove City Council,http://statistics.data.gov.uk/id/local-authority/00ML,Highways and Transportation,BVAHRT,Traffic Mgmnt and Road Safety,TMR,Premises Related,C,Repair Maint n Alterations,CA,02/05/2012,PAY00472143,536.27,Revenue,Total Surveillance Integrated Systems Ld
Brighton & Hove City Council,http://statistics.data.gov.uk/id/local-authority/00ML,Adult Social Care,BVASOC,S Svcs - Physical Disability,PDY,Supplies and Services,E,Communications n Computing,EH,02/05/2012,PAY00472144,45,Revenue,Kinderkey Healthcare Limited
Brighton & Hove City Council,http://statistics.data.gov.uk/id/local-authority/00ML,Adult Social Care,BVASOC,S Svcs - Physical Disability,PDY,Supplies and Services,E,Equip't Furniture n Materials,EA,02/05/2012,PAY00472144,852,Revenue,Kinderkey Healthcare Limited
Brighton & Hove City Council,http://statistics.data.gov.uk/id/local-authority/00ML,Adult Social Care,BVASOC,S Svcs - Mental Health,MHT,Third Party Payments,F,Other Establishments,FH,02/05/2012,PAY00472145,13.1,Revenue,Agincare UK Ltd
Brighton & Hove City Council,http://statistics.data.gov.uk/id/local-authority/00ML,Adult Social Care,BVASOC,S Svcs - Older People Svcs,PPL,Customer n Client Receipts,M,Fees n Charges,MB,02/05/2012,PAY00472145,-1300,Revenue,Agincare UK Ltd
Brighton & Hove City Council,http://statistics.data.gov.uk/id/local-authority/00ML,Adult Social Care,BVASOC,S Svcs - Older People Svcs,PPL,Third Party Payments,F,Other Establishments,FH,02/05/2012,PAY00472145,7865.19,Revenue,Agincare UK Ltd
Brighton & Hove City Council,http://statistics.data.gov.uk/id/local-authority/00ML,Adult Social Care,BVASOC,S Svcs - Physical Disability,PDY,Customer n Client Receipts,M,Fees n Charges,MB,02/05/2012,PAY00472145,-38,Revenue,Agincare UK Ltd
Brighton & Hove City Council,http://statistics.data.gov.uk/id/local-authority/00ML,Adult Social Care,BVASOC,S Svcs - Physical Disability,PDY,Third Party Payments,F,Other Establishments,FH,02/05/2012,PAY00472145,319.17,Revenue,Agincare UK Ltd
Brighton & Hove City Council,http://statistics.data.gov.uk/id/local-authority/00ML,Housing Services General Fund,BVAHOG,Homelessness,HML,Premises Related,C,Rents Payable,CC,02/05/2012,PAY00472146,24399.69,Revenue,West Pier Services Limited
Brighton & Hove City Council,http://statistics.data.gov.uk/id/local-authority/00ML,Adult Social Care,BVASOC,S Svcs - Physical Disability,PDY,Supplies and Services,E,Equip't Furniture n Materials,EA,02/05/2012,PAY00472150,715.5,Revenue,Clearwell Mobility Ltd
Brighton & Hove City Council,http://statistics.data.gov.uk/id/local-authority/00ML,Central Services To The Public,BVACEN,Support Services (SSC),PPT,Supplies and Services,E,Miscellaneous Expenses,EM,02/05/2012,PAY00472152,2202.24,Revenue,The Bikes the Business
Brighton & Hove City Council,http://statistics.data.gov.uk/id/local-authority/00ML,Adult Social Care,BVASOC,S Svcs - Learning Disability,LDY,Third Party Payments,F,Other Establishments,FH,02/05/2012,PAY00472155,899.96,Revenue,Scope
Brighton & Hove City Council,http://statistics.data.gov.uk/id/local-authority/00ML,Adult Social Care,BVASOC,S Svcs - Other Adult Services,ADT,Indirect Employees,B,Training,BM,02/05/2012,PAY00472156,220,Revenue,Opus Pharmacy Services Ltd
Brighton & Hove City Council,http://statistics.data.gov.uk/id/local-authority/00ML,Central Services To The Public,BVACEN,Support Services (SSC),PPT,Indirect Employees,B,Training,BM,02/05/2012,PAY00472156,440,Revenue,Opus Pharmacy Services Ltd
Brighton & Hove City Council,http://statistics.data.gov.uk/id/local-authority/00ML,Central Services To The Public,BVACEN,Support Services (SSC),PPT,Supplies and Services,E,Services,EF,02/05/2012,PAY00472160,1200,Revenue,R&B Recovery Limited
Brighton & Hove City Council,http://statistics.data.gov.uk/id/local-authority/00ML,Adult Social Care,BVASOC,S Svcs - Learning Disability,LDY,Premises Related,C,Rents Payable,CC,02/05/2012,PAY00472161,875,Revenue,Payment to Individual
Brighton & Hove City Council,http://statistics.data.gov.uk/id/local-authority/00ML,Housing Services General Fund,BVAHOG,Hsing Welfare,HGW,Transfer Payments,G,Supporting People,GF,02/05/2012,PAY00472167,12733.91,Revenue,In Touch 
Brighton & Hove City Council,http://statistics.data.gov.uk/id/local-authority/00ML,Central Services To The Public,BVACEN,Support Services (SSC),PPT,Premises Related,C,Repair Maint n Alterations,CA,02/05/2012,PAY00472169,100,Revenue,E N V Surveys Ltd
Brighton & Hove City Council,http://statistics.data.gov.uk/id/local-authority/00ML,Non SERCOP,BVANON,Cap - Education Services,4ED,New Construction n Conversion,PB,Level not required,NR5026,02/05/2012,PAY00472169,2140,Capital,E N V Surveys Ltd
Brighton & Hove City Council,http://statistics.data.gov.uk/id/local-authority/00ML,Non SERCOP,BVANON,Cap - Housing Services - HRA,4HR,New Construction n Conversion,PB,Level not required,NR5026,02/05/2012,PAY00472169,750,Capital,E N V Surveys Ltd
Brighton & Hove City Council,http://statistics.data.gov.uk/id/local-authority/00ML,Adult Social Care,BVASOC,S Svcs - Learning Disability,LDY,Supplies and Services,E,Equip't Furniture n Materials,EA,02/05/2012,PAY00472170,514.57,Revenue,Argos Business Solutions Ltd
Brighton & Hove City Council,http://statistics.data.gov.uk/id/local-authority/00ML,Adult Social Care,BVASOC,S Svcs - Older People Svcs,PPL,Supplies and Services,E,Catering,EB,02/05/2012,PAY00472172,787.16,Revenue,West Horsley Dairy Ltd
Brighton & Hove City Council,http://statistics.data.gov.uk/id/local-authority/00ML,Housing Services General Fund,BVAHOG,Homelessness,HML,Premises Related,C,Rents Payable,CC,02/05/2012,PAY00472174,775,Revenue,Payment to Individual
Brighton & Hove City Council,http://statistics.data.gov.uk/id/local-authority/00ML,Housing Services General Fund,BVAHOG,Hsing Welfare,HGW,Transfer Payments,G,Supporting People,GF,02/05/2012,PAY00472177,2802.67,Revenue,Hanover Housing Association
Brighton & Hove City Council,http://statistics.data.gov.uk/id/local-authority/00ML,Children�s Social Care,BVACSC,Child Srvcs - Residential Svcs,FLR,Third Party Payments,F,Other Establishments,FH,02/05/2012,PAY00472178,5385.71,Revenue,Springfield Road Childrens Homes Ltd
Brighton & Hove City Council,http://statistics.data.gov.uk/id/local-authority/00ML,Children�s Social Care,BVACSC,Child Srvcs - Residential Svcs,FLR,Third Party Payments,F,Other Establishments,FH,02/05/2012,PAY00472181,12000,Revenue,ARC Adventure (Sussex) Ltd
Brighton & Hove City Council,http://statistics.data.gov.uk/id/local-authority/00ML,Central Services To The Public,BVACEN,Support Services (SSC),PPT,Premises Related,C,Repair Maint n Alterations,CA,02/05/2012,PAY00472182,1076.92,Revenue,J P Garrett Electrical Ltd
Brighton & Hove City Council,http://statistics.data.gov.uk/id/local-authority/00ML,Housing Services General Fund,BVAHOG,Homelessness,HML,Supplies and Services,E,Miscellaneous Expenses,EM,02/05/2012,PAY00472182,9173,Revenue,J P Garrett Electrical Ltd
Brighton & Hove City Council,http://statistics.data.gov.uk/id/local-authority/00ML,Adult Social Care,BVASOC,S Svcs - Other Adult Services,ADT,Third Party Payments,F,Other Establishments,FH,02/05/2012,PAY00472183,18319.5,Revenue,The Sussex Beacon Limited
Brighton & Hove City Council,http://statistics.data.gov.uk/id/local-authority/00ML,Cultural and Related Services,BVACUL,Culture & Heritage,CHG,Premises Related,C,Repair Maint n Alterations,CA,02/05/2012,PAY00472187,17265,Revenue,A G M Floors Ltd
Brighton & Hove City Council,http://statistics.data.gov.uk/id/local-authority/00ML,Central Services To The Public,BVACEN,Support Services (SSC),PPT,Supplies and Services,E,Services,EF,02/05/2012,PAY00472189,460,Revenue,Andus Print Limited
Brighton & Hove City Council,http://statistics.data.gov.uk/id/local-authority/00ML,Central Services To The Public,BVACEN,Support Services (SSC),PPT,Supplies and Services,E,Services,EF,02/05/2012,PAY00472191,27174,Revenue,Audit Commission
Brighton & Hove City Council,http://statistics.data.gov.uk/id/local-authority/00ML,Cultural and Related Services,BVACUL,Culture & Heritage,CHG,Supplies and Services,E,Miscellaneous Expenses,EM,02/05/2012,PAY00472194,2537,Revenue,Brighton & Sussex Sign Co
Brighton & Hove City Council,http://statistics.data.gov.uk/id/local-authority/00ML,Adult Social Care,BVASOC,S Svcs - Older People Svcs,PPL,Supplies and Services,E,Catering,EB,02/05/2012,PAY00472196,1055.04,Revenue,3663 BFS Group Ltd
Brighton & Hove City Council,http://statistics.data.gov.uk/id/local-authority/00ML,Cultural and Related Services,BVACUL,Culture & Heritage,CHG,Supplies and Services,E,Catering,EB,02/05/2012,PAY00472196,-236.73,Revenue,3663 BFS Group Ltd
Brighton & Hove City Council,http://statistics.data.gov.uk/id/local-authority/00ML,Housing Services General Fund,BVAHOG,Homelessness,HML,Premises Related,C,Cleaning n Domestic Supps,CH,02/05/2012,PAY00472196,31.7,Revenue,3663 BFS Group Ltd
Brighton & Hove City Council,http://statistics.data.gov.uk/id/local-authority/00ML,Housing Services General Fund,BVAHOG,Homelessness,HML,Supplies and Services,E,Catering,EB,02/05/2012,PAY00472196,572.56,Revenue,3663 BFS Group Ltd
Brighton & Hove City Council,http://statistics.data.gov.uk/id/local-authority/00ML,Housing Services General Fund,BVAHOG,Homelessness,HML,Premises Related,C,Rates,CD,02/05/2012,PAY00472197,1894.28,Revenue,Brighton & Hove City Council
Brighton & Hove City Council,http://statistics.data.gov.uk/id/local-authority/00ML,Adult Social Care,BVASOC,S Svcs - Physical Disability,PDY,Supplies and Services,E,Equip't Furniture n Materials,EA,02/05/2012,PAY00472200,523.9,Revenue,Brighton Tools & Fixings Ltd
Brighton & Hove City Council,http://statistics.data.gov.uk/id/local-authority/00ML,Housing Services General Fund,BVAHOG,Hsing Welfare,HGW,Transfer Payments,G,Supporting People,GF,02/05/2012,PAY00472201,194509,Revenue,Brighton Housing Trust
Brighton & Hove City Council,http://statistics.data.gov.uk/id/local-authority/00ML,Cultural and Related Services,BVACUL,Culture & Heritage,CHG,Premises Related,C,Repair Maint n Alterations,CA,02/05/2012,PAY00472205,3350,Revenue,Clark Contracts
Brighton & Hove City Council,http://statistics.data.gov.uk/id/local-authority/00ML,Education Services,BVAEDU,Ed - Ed Other - LA Attrib Sch,ELA,Transport Related,D,Other Transport Costs,DG,02/05/2012,PAY00472206,5782.25,Revenue,Community Transport(Bton Hove & Area)Ltd
Brighton & Hove City Council,http://statistics.data.gov.uk/id/local-authority/00ML,Education Services,BVAEDU,Ed - Srvcs YP - Youth Srvcs,ENY,Transport Related,D,Other Transport Costs,DG,02/05/2012,PAY00472206,25,Revenue,Community Transport(Bton Hove & Area)Ltd
Brighton & Hove City Council,http://statistics.data.gov.uk/id/local-authority/00ML,Environment and Regulatory Ser,BVAERS,Community Safety,CMY,Supplies and Services,E,Services,EF,02/05/2012,PAY00472206,25,Revenue,Community Transport(Bton Hove & Area)Ltd
Brighton & Hove City Council,http://statistics.data.gov.uk/id/local-authority/00ML,Highways and Transportation,BVAHRT,Public transport,PTR,Third Party Payments,F,Private Contractors,FJ,02/05/2012,PAY00472206,3518.35,Revenue,Community Transport(Bton Hove & Area)Ltd
Brighton & Hove City Council,http://statistics.data.gov.uk/id/local-authority/00ML,Housing Services General Fund,BVAHOG,Homelessness,HML,Premises Related,C,Rents Payable,CC,02/05/2012,PAY00472207,900,Revenue,Payment to Individual
Brighton & Hove City Council,http://statistics.data.gov.uk/id/local-authority/00ML,Housing Services General Fund,BVAHOG,Hsing Welfare,HGW,Transfer Payments,G,Supporting People,GF,02/05/2012,PAY00472209,8333.33,Revenue,Affinity Sutton Homes Ltd
Brighton & Hove City Council,http://statistics.data.gov.uk/id/local-authority/00ML,Housing Services General Fund,BVAHOG,Hsing Welfare,HGW,Transfer Payments,G,Supporting People,GF,02/05/2012,PAY00472211,9135,Revenue,Equinox Care
Brighton & Hove City Council,http://statistics.data.gov.uk/id/local-authority/00ML,Environment and Regulatory Ser,BVAERS,Waste Management,WMT,Supplies and Services,E,Miscellaneous Expenses,EM,02/05/2012,PAY00472212,3534,Revenue,East Sussex County Council
Brighton & Hove City Council,http://statistics.data.gov.uk/id/local-authority/00ML,Central Services To The Public,BVACEN,Support Services (SSC),PPT,Premises Related,C,Rents Payable,CC,02/05/2012,PAY00472213,560,Revenue,Friends Centre
Brighton & Hove City Council,http://statistics.data.gov.uk/id/local-authority/00ML,Central Services To The Public,BVACEN,Support Services (SSC),PPT,Supplies and Services,E,Catering,EB,02/05/2012,PAY00472213,442,Revenue,Friends Centre
Brighton & Hove City Council,http://statistics.data.gov.uk/id/local-authority/00ML,Housing Services General Fund,BVAHOG,Hsing Welfare,HGW,Transfer Payments,G,Supporting People,GF,02/05/2012,PAY00472213,5940,Revenue,Friends Centre
Brighton & Hove City Council,http://statistics.data.gov.uk/id/local-authority/00ML,Education Services,BVAEDU,Ed - Ed Other - Other,ENF,Premises Related,C,Repair Maint n Alterations,CA,02/05/2012,PAY00472216,2900,Revenue,H A Pocock Ltd
Brighton & Hove City Council,http://statistics.data.gov.uk/id/local-authority/00ML,Highways and Transportation,BVAHRT,Parking Services,PRK,Premises Related,C,Repair Maint n Alterations,CA,02/05/2012,PAY00472217,2836.81,Revenue,Hi Way Services Ltd
Brighton & Hove City Council,http://statistics.data.gov.uk/id/local-authority/00ML,Non SERCOP,BVANON,Cap - Social Services,4RV,New Construction n Conversion,PB,Level not required,NR5026,02/05/2012,PAY00472219,3840.8,Capital,J Davies Building Ltd
Brighton & Hove City Council,http://statistics.data.gov.uk/id/local-authority/00ML,Non SERCOP,BVANON,Cap - Housing Services - HRA,4HR,New Construction n Conversion,PB,Level not required,NR5026,02/05/2012,PAY00472220,2500.9,Capital,Payment to Individual
Brighton & Hove City Council,http://statistics.data.gov.uk/id/local-authority/00ML,Adult Social Care,BVASOC,S Svcs - Learning Disability,LDY,Supplies and Services,E,Communications n Computing,EH,02/05/2012,PAY00472222,-136.87,Revenue,Kent County Council (KCS)
Brighton & Hove City Council,http://statistics.data.gov.uk/id/local-authority/00ML,Adult Social Care,BVASOC,S Svcs - Older People Svcs,PPL,Supplies and Services,E,Equip't Furniture n Materials,EA,02/05/2012,PAY00472222,42.85,Revenue,Kent County Council (KCS)
Brighton & Hove City Council,http://statistics.data.gov.uk/id/local-authority/00ML,Central Services To The Public,BVACEN,Support Services (SSC),PPT,Supplies and Services,E,Equip't Furniture n Materials,EA,02/05/2012,PAY00472222,1193.87,Revenue,Kent County Council (KCS)
Brighton & Hove City Council,http://statistics.data.gov.uk/id/local-authority/00ML,Cultural and Related Services,BVACUL,Management Services (DEC),MGT,Supplies and Services,E,Print Stat & Gen Office Exps,ED,02/05/2012,PAY00472222,135.62,Revenue,Kent County Council (KCS)
Brighton & Hove City Council,http://statistics.data.gov.uk/id/local-authority/00ML,Education Services,BVAEDU,Ed - Srvcs YP - Youth Srvcs,ENY,Supplies and Services,E,Equip't Furniture n Materials,EA,02/05/2012,PAY00472222,6,Revenue,Kent County Council (KCS)
Brighton & Hove City Council,http://statistics.data.gov.uk/id/local-authority/00ML,Housing Services Revnue Acc,BVAHOU,Hsing Management - HRA,HGM,Supplies and Services,E,Communications n Computing,EH,02/05/2012,PAY00472222,99.27,Revenue,Kent County Council (KCS)
Brighton & Hove City Council,http://statistics.data.gov.uk/id/local-authority/00ML,Highways and Transportation,BVAHRT,Management Services (DEC),MGT,Supplies and Services,E,Miscellaneous Expenses,EM,02/05/2012,PAY00472228,3732.16,Revenue,Mott MacDonald Limited
Brighton & Hove City Council,http://statistics.data.gov.uk/id/local-authority/00ML,Housing Services General Fund,BVAHOG,Hsing Welfare,HGW,Transfer Payments,G,Supporting People,GF,02/05/2012,PAY00472233,12241.17,Revenue,Impact Initiatives
Brighton & Hove City Council,http://statistics.data.gov.uk/id/local-authority/00ML,Cultural and Related Services,BVACUL,Culture & Heritage,CHG,Supplies and Services,E,Miscellaneous Expenses,EM,02/05/2012,PAY00472234,22125.5,Revenue,Performing Right Society Ltd
Brighton & Hove City Council,http://statistics.data.gov.uk/id/local-authority/00ML,Cultural and Related Services,BVACUL,Culture & Heritage,CHG,Supplies and Services,E,Miscellaneous Expenses,EM,02/05/2012,PAY00472236,437.88,Revenue,Phonographic Performance Ltd
Brighton & Hove City Council,http://statistics.data.gov.uk/id/local-authority/00ML,Cultural and Related Services,BVACUL,Library Service,LBR,Supplies and Services,E,Miscellaneous Expenses,EM,02/05/2012,PAY00472236,273.69,Revenue,Phonographic Performance Ltd
Brighton & Hove City Council,http://statistics.data.gov.uk/id/local-authority/00ML,Cultural and Related Services,BVACUL,Culture & Heritage,CHG,Premises Related,C,Repair Maint n Alterations,CA,02/05/2012,PAY00472238,1543.13,Revenue,Rentokil Pest Control UK
Brighton & Hove City Council,http://statistics.data.gov.uk/id/local-authority/00ML,Housing Services General Fund,BVAHOG,Hsing Welfare,HGW,Transfer Payments,G,Supporting People,GF,02/05/2012,PAY00472239,37670.83,Revenue,Sanctuary Housing Association
Brighton & Hove City Council,http://statistics.data.gov.uk/id/local-authority/00ML,Housing Services General Fund,BVAHOG,Homelessness,HML,Premises Related,C,Repair Maint n Alterations,CA,02/05/2012,PAY00472242,484.3,Revenue,Securitel Service Ltd
Brighton & Hove City Council,http://statistics.data.gov.uk/id/local-authority/00ML,Education Services,BVAEDU,Ed - Srvcs YP - Youth Srvcs,ENY,Premises Related,C,Energy Costs,CB,02/05/2012,PAY00472243,708.17,Revenue,Emo Oil Ltd
Brighton & Hove City Council,http://statistics.data.gov.uk/id/local-authority/00ML,Cultural and Related Services,BVACUL,Culture & Heritage,CHG,Customer n Client Receipts,M,Fees n Charges,MB,02/05/2012,PAY00472244,-43631.5,Revenue,SJM Concerts
Brighton & Hove City Council,http://statistics.data.gov.uk/id/local-authority/00ML,Cultural and Related Services,BVACUL,Culture & Heritage,CHG,Customer n Client Receipts,M,Sales,MA,02/05/2012,PAY00472244,230180.22,Revenue,SJM Concerts
Brighton & Hove City Council,http://statistics.data.gov.uk/id/local-authority/00ML,Cultural and Related Services,BVACUL,Culture & Heritage,CHG,Direct Employees,A,Wages,AB,02/05/2012,PAY00472244,-1822.85,Revenue,SJM Concerts
Brighton & Hove City Council,http://statistics.data.gov.uk/id/local-authority/00ML,Cultural and Related Services,BVACUL,Culture & Heritage,CHG,Supplies and Services,E,Communications n Computing,EH,02/05/2012,PAY00472244,-126.6,Revenue,SJM Concerts
Brighton & Hove City Council,http://statistics.data.gov.uk/id/local-authority/00ML,Cultural and Related Services,BVACUL,Culture & Heritage,CHG,Supplies and Services,E,Equip't Furniture n Materials,EA,02/05/2012,PAY00472244,-744,Revenue,SJM Concerts
Brighton & Hove City Council,http://statistics.data.gov.uk/id/local-authority/00ML,Cultural and Related Services,BVACUL,Culture & Heritage,CHG,Supplies and Services,E,Miscellaneous Expenses,EM,02/05/2012,PAY00472244,-6248.99,Revenue,SJM Concerts
Brighton & Hove City Council,http://statistics.data.gov.uk/id/local-authority/00ML,Adult Social Care,BVASOC,S Svcs - Physical Disability,PDY,Transfer Payments,G,Other Transfer Payments,GD,02/05/2012,PAY00472245,1281.15,Revenue,Southern Mobility Centres Ltd
Brighton & Hove City Council,http://statistics.data.gov.uk/id/local-authority/00ML,Central Services To The Public,BVACEN,Support Services (SSC),PPT,Premises Related,C,Repair Maint n Alterations,CA,02/05/2012,PAY00472246,470,Revenue,Thomas Door & Window Controls Ltd
Brighton & Hove City Council,http://statistics.data.gov.uk/id/local-authority/00ML,Education Services,BVAEDU,Ed - Ed Other - Other,ENF,Premises Related,C,Repair Maint n Alterations,CA,02/05/2012,PAY00472246,285,Revenue,Thomas Door & Window Controls Ltd
Brighton & Hove City Council,http://statistics.data.gov.uk/id/local-authority/00ML,Highways and Transportation,BVAHRT,Parking Services,PRK,Supplies and Services,E,Equip't Furniture n Materials,EA,02/05/2012,PAY00472246,660,Revenue,Thomas Door & Window Controls Ltd
Brighton & Hove City Council,http://statistics.data.gov.uk/id/local-authority/00ML,Adult Social Care,BVASOC,S Svcs - Learning Disability,LDY,Premises Related,C,Repair Maint n Alterations,CA,02/05/2012,PAY00472247,67.23,Revenue,Sussex Community NHS Trust
Brighton & Hove City Council,http://statistics.data.gov.uk/id/local-authority/00ML,Children�s Social Care,BVACSC,Child Srvcs - Other,FAX,Third Party Payments,F,Other Establishments,FH,02/05/2012,PAY00472247,3042.03,Revenue,Sussex Community NHS Trust
Brighton & Hove City Council,http://statistics.data.gov.uk/id/local-authority/00ML,Children�s Social Care,BVACSC,Child Srvcs - Residential Svcs,FLR,Third Party Payments,F,Other Establishments,FH,02/05/2012,PAY00472247,1046.5,Revenue,Sussex Community NHS Trust
Brighton & Hove City Council,http://statistics.data.gov.uk/id/local-authority/00ML,Education Services,BVAEDU,Ed - Mgmt & Support Services,EMG,Indirect Employees,B,Training,BM,02/05/2012,PAY00472247,1870,Revenue,Sussex Community NHS Trust
Brighton & Hove City Council,http://statistics.data.gov.uk/id/local-authority/00ML,Central Services To The Public,BVACEN,Support Services (SSC),PPT,Supplies and Services,E,Services,EF,02/05/2012,PAY00472251,3883.56,Revenue,Technical Engineering Ltd
Brighton & Hove City Council,http://statistics.data.gov.uk/id/local-authority/00ML,Housing Services General Fund,BVAHOG,Hsing Welfare,HGW,Transfer Payments,G,Supporting People,GF,02/05/2012,PAY00472254,20086.08,Revenue,"R.I.S.E (Refuge, Information, Support & Education)"
Brighton & Hove City Council,http://statistics.data.gov.uk/id/local-authority/00ML,Adult Social Care,BVASOC,S Svcs - Older People Svcs,PPL,Third Party Payments,F,Other Establishments,FH,02/05/2012,PAY00472255,809.2,Revenue, Arundel Park Lodge
Brighton & Hove City Council,http://statistics.data.gov.uk/id/local-authority/00ML,Adult Social Care,BVASOC,S Svcs - Older People Svcs,PPL,Customer n Client Receipts,M,Fees n Charges,MB,02/05/2012,PAY00472257,-794,Revenue,Carewatch (Brighton & Hove)
Brighton & Hove City Council,http://statistics.data.gov.uk/id/local-authority/00ML,Adult Social Care,BVASOC,S Svcs - Older People Svcs,PPL,Third Party Payments,F,Other Establishments,FH,02/05/2012,PAY00472257,4080.09,Revenue,Carewatch (Brighton & Hove)
Brighton & Hove City Council,http://statistics.data.gov.uk/id/local-authority/00ML,Adult Social Care,BVASOC,S Svcs - Physical Disability,PDY,Customer n Client Receipts,M,Fees n Charges,MB,02/05/2012,PAY00472257,-26,Revenue,Carewatch (Brighton & Hove)
Brighton & Hove City Council,http://statistics.data.gov.uk/id/local-authority/00ML,Adult Social Care,BVASOC,S Svcs - Physical Disability,PDY,Third Party Payments,F,Other Establishments,FH,02/05/2012,PAY00472257,1002.22,Revenue,Carewatch (Brighton & Hove)
Brighton & Hove City Council,http://statistics.data.gov.uk/id/local-authority/00ML,Adult Social Care,BVASOC,S Svcs - Learning Disability,LDY,Third Party Payments,F,Other Establishments,FH,02/05/2012,PAY00472259,45.62,Revenue,Enara Community Care
Brighton & Hove City Council,http://statistics.data.gov.uk/id/local-authority/00ML,Adult Social Care,BVASOC,S Svcs - Mental Health,MHT,Customer n Client Receipts,M,Fees n Charges,MB,02/05/2012,PAY00472259,-38,Revenue,Enara Community Care
Brighton & Hove City Council,http://statistics.data.gov.uk/id/local-authority/00ML,Adult Social Care,BVASOC,S Svcs - Mental Health,MHT,Third Party Payments,F,Other Establishments,FH,02/05/2012,PAY00472259,594.81,Revenue,Enara Community Care
Brighton & Hove City Council,http://statistics.data.gov.uk/id/local-authority/00ML,Adult Social Care,BVASOC,S Svcs - Older People Svcs,PPL,Customer n Client Receipts,M,Fees n Charges,MB,02/05/2012,PAY00472259,-2742.47,Revenue,Enara Community Care
Brighton & Hove City Council,http://statistics.data.gov.uk/id/local-authority/00ML,Adult Social Care,BVASOC,S Svcs - Older People Svcs,PPL,Third Party Payments,F,Other Establishments,FH,02/05/2012,PAY00472259,22641.27,Revenue,Enara Community Care
Brighton & Hove City Council,http://statistics.data.gov.uk/id/local-authority/00ML,Adult Social Care,BVASOC,S Svcs - Other Adult Services,ADT,Customer n Client Receipts,M,Fees n Charges,MB,02/05/2012,PAY00472259,-10,Revenue,Enara Community Care
Brighton & Hove City Council,http://statistics.data.gov.uk/id/local-authority/00ML,Adult Social Care,BVASOC,S Svcs - Other Adult Services,ADT,Third Party Payments,F,Other Establishments,FH,02/05/2012,PAY00472259,45.62,Revenue,Enara Community Care
Brighton & Hove City Council,http://statistics.data.gov.uk/id/local-authority/00ML,Adult Social Care,BVASOC,S Svcs - Physical Disability,PDY,Customer n Client Receipts,M,Fees n Charges,MB,02/05/2012,PAY00472259,-905.18,Revenue,Enara Community Care
Brighton & Hove City Council,http://statistics.data.gov.uk/id/local-authority/00ML,Adult Social Care,BVASOC,S Svcs - Physical Disability,PDY,Third Party Payments,F,Other Establishments,FH,02/05/2012,PAY00472259,4797.88,Revenue,Enara Community Care
Brighton & Hove City Council,http://statistics.data.gov.uk/id/local-authority/00ML,Housing Services General Fund,BVAHOG,Hsing Welfare,HGW,Transfer Payments,G,Supporting People,GF,02/05/2012,PAY00472263,10833.33,Revenue,Grace Eyre Foundation Ltd
Brighton & Hove City Council,http://statistics.data.gov.uk/id/local-authority/00ML,Education Services,BVAEDU,Ed - EY - Central,EAE,Supplies and Services,E,Miscellaneous Expenses,EM,02/05/2012,PAY00472264,300,Revenue,Fiveways Pre-School Playgroup
Brighton & Hove City Council,http://statistics.data.gov.uk/id/local-authority/00ML,Education Services,BVAEDU,Ed - Special Ed,EKE,Third Party Payments,F,Other Agencies,FL,02/05/2012,PAY00472264,572,Revenue,Fiveways Pre-School Playgroup
Brighton & Hove City Council,http://statistics.data.gov.uk/id/local-authority/00ML,Children�s Social Care,BVACSC,Child Srvcs - Fostering,FLF,Third Party Payments,F,Other Establishments,FH,02/05/2012,PAY00472267,36809.05,Revenue,Integrated Services Programme
Brighton & Hove City Council,http://statistics.data.gov.uk/id/local-authority/00ML,Children�s Social Care,BVACSC,Child Srvcs - Leaving Care,FAL,Transfer Payments,G,Other Transfer Payments,GD,02/05/2012,PAY00472267,2600.08,Revenue,Integrated Services Programme
Brighton & Hove City Council,http://statistics.data.gov.uk/id/local-authority/00ML,Adult Social Care,BVASOC,S Svcs - Learning Disability,LDY,Premises Related,C,Cleaning n Domestic Supps,CH,02/05/2012,PAY00472273,475.74,Revenue,Nursing & Hygiene Supplies
Brighton & Hove City Council,http://statistics.data.gov.uk/id/local-authority/00ML,Adult Social Care,BVASOC,S Svcs - Older People Svcs,PPL,Premises Related,C,Cleaning n Domestic Supps,CH,02/05/2012,PAY00472273,63.91,Revenue,Nursing & Hygiene Supplies
Brighton & Hove City Council,http://statistics.data.gov.uk/id/local-authority/00ML,Adult Social Care,BVASOC,S Svcs - Older People Svcs,PPL,Supplies and Services,E,Clothing Uniforms n Laundry,EC,02/05/2012,PAY00472273,64.7,Revenue,Nursing & Hygiene Supplies
Brighton & Hove City Council,http://statistics.data.gov.uk/id/local-authority/00ML,Adult Social Care,BVASOC,S Svcs - Older People Svcs,PPL,Supplies and Services,E,Equip't Furniture n Materials,EA,02/05/2012,PAY00472273,66.67,Revenue,Nursing & Hygiene Supplies
Brighton & Hove City Council,http://statistics.data.gov.uk/id/local-authority/00ML,Adult Social Care,BVASOC,S Svcs - Physical Disability,PDY,Supplies and Services,E,Communications n Computing,EH,02/05/2012,PAY00472273,27,Revenue,Nursing & Hygiene Supplies
Brighton & Hove City Council,http://statistics.data.gov.uk/id/local-authority/00ML,Adult Social Care,BVASOC,S Svcs - Physical Disability,PDY,Supplies and Services,E,Equip't Furniture n Materials,EA,02/05/2012,PAY00472273,1849.6,Revenue,Nursing & Hygiene Supplies
Brighton & Hove City Council,http://statistics.data.gov.uk/id/local-authority/00ML,Education Services,BVAEDU,Ed - EY - Central,EAE,Supplies and Services,E,Miscellaneous Expenses,EM,02/05/2012,PAY00472274,600,Revenue,Oak Cottage Nursery
Brighton & Hove City Council,http://statistics.data.gov.uk/id/local-authority/00ML,Education Services,BVAEDU,Ed - Special Ed,EKE,Third Party Payments,F,Other Agencies,FL,02/05/2012,PAY00472274,572,Revenue,Oak Cottage Nursery
Brighton & Hove City Council,http://statistics.data.gov.uk/id/local-authority/00ML,Cultural and Related Services,BVACUL,Library Service,LBR,Supplies and Services,E,Print Stat & Gen Office Exps,ED,02/05/2012,PAY00472280,537.63,Revenue,Xerox Finance Ltd
Brighton & Hove City Council,http://statistics.data.gov.uk/id/local-authority/00ML,Education Services,BVAEDU,Ed - Special Ed,EKE,Third Party Payments,F,Other Agencies,FL,02/05/2012,PAY00472284,819,Revenue,St Andrews Community Pre-School
Brighton & Hove City Council,http://statistics.data.gov.uk/id/local-authority/00ML,Education Services,BVAEDU,Ed - Special Ed,EKE,Third Party Payments,F,Other Agencies,FL,02/05/2012,PAY00472293,1098.02,Revenue,Village Under 5`s Group
Brighton & Hove City Council,http://statistics.data.gov.uk/id/local-authority/00ML,Adult Social Care,BVASOC,S Svcs - Learning Disability,LDY,Customer n Client Receipts,M,Fees n Charges,MB,02/05/2012,PAY00472295,-6193.95,Revenue,Norwood Ravenwood Services
Brighton & Hove City Council,http://statistics.data.gov.uk/id/local-authority/00ML,Adult Social Care,BVASOC,S Svcs - Learning Disability,LDY,Third Party Payments,F,Other Establishments,FH,02/05/2012,PAY00472295,60828.23,Revenue,Norwood Ravenwood Services
Brighton & Hove City Council,http://statistics.data.gov.uk/id/local-authority/00ML,Education Services,BVAEDU,Ed - Special Ed,EKE,Third Party Payments,F,Other Agencies,FL,02/05/2012,PAY00472296,565.44,Revenue,Southern Cross Pre-School
Brighton & Hove City Council,http://statistics.data.gov.uk/id/local-authority/00ML,Adult Social Care,BVASOC,S Svcs - Older People Svcs,PPL,Customer n Client Receipts,M,Fees n Charges,MB,02/05/2012,PAY00472297,-422.94,Revenue,BUPA Care Services
Brighton & Hove City Council,http://statistics.data.gov.uk/id/local-authority/00ML,Adult Social Care,BVASOC,S Svcs - Older People Svcs,PPL,Third Party Payments,F,Other Establishments,FH,02/05/2012,PAY00472297,1356.75,Revenue,BUPA Care Services
Brighton & Hove City Council,http://statistics.data.gov.uk/id/local-authority/00ML,Adult Social Care,BVASOC,S Svcs - Older People Svcs,PPL,Customer n Client Receipts,M,Fees n Charges,MB,02/05/2012,PAY00472298,-2755.4,Revenue,Hallifax Care Ltd
Brighton & Hove City Council,http://statistics.data.gov.uk/id/local-authority/00ML,Adult Social Care,BVASOC,S Svcs - Older People Svcs,PPL,Third Party Payments,F,Other Establishments,FH,02/05/2012,PAY00472298,20499.07,Revenue,Hallifax Care Ltd
Brighton & Hove City Council,http://statistics.data.gov.uk/id/local-authority/00ML,Adult Social Care,BVASOC,S Svcs - Physical Disability,PDY,Customer n Client Receipts,M,Fees n Charges,MB,02/05/2012,PAY00472298,-88,Revenue,Hallifax Care Ltd
Brighton & Hove City Council,http://statistics.data.gov.uk/id/local-authority/00ML,Adult Social Care,BVASOC,S Svcs - Physical Disability,PDY,Third Party Payments,F,Other Establishments,FH,02/05/2012,PAY00472298,656.24,Revenue,Hallifax Care Ltd
Brighton & Hove City Council,http://statistics.data.gov.uk/id/local-authority/00ML,Education Services,BVAEDU,Ed - Special Ed,EKE,Third Party Payments,F,Other Agencies,FL,02/05/2012,PAY00472300,1200,Revenue,St Anthonys Pre-School
Brighton & Hove City Council,http://statistics.data.gov.uk/id/local-authority/00ML,Education Services,BVAEDU,Ed - Special Ed,EKE,Third Party Payments,F,Other Agencies,FL,02/05/2012,PAY00472305,760,Revenue,Stepping Stones Pre School (Portslade)
Brighton & Hove City Council,http://statistics.data.gov.uk/id/local-authority/00ML,Housing Services General Fund,BVAHOG,Hsing Welfare,HGW,Transfer Payments,G,Supporting People,GF,02/05/2012,PAY00472306,2500,Revenue,Deafblind UK
Brighton & Hove City Council,http://statistics.data.gov.uk/id/local-authority/00ML,Adult Social Care,BVASOC,S Svcs - Older People Svcs,PPL,Customer n Client Receipts,M,Fees n Charges,MB,02/05/2012,PAY00472311,90.97,Revenue,Vallance Rest Home
Brighton & Hove City Council,http://statistics.data.gov.uk/id/local-authority/00ML,Adult Social Care,BVASOC,S Svcs - Older People Svcs,PPL,Third Party Payments,F,Other Establishments,FH,02/05/2012,PAY00472311,562.86,Revenue,Vallance Rest Home
Brighton & Hove City Council,http://statistics.data.gov.uk/id/local-authority/00ML,Adult Social Care,BVASOC,S Svcs - Older People Svcs,PPL,Customer n Client Receipts,M,Fees n Charges,MB,02/05/2012,PAY00472312,-6571.78,Revenue,Dane House Nursing Home
Brighton & Hove City Council,http://statistics.data.gov.uk/id/local-authority/00ML,Adult Social Care,BVASOC,S Svcs - Older People Svcs,PPL,Third Party Payments,F,Other Establishments,FH,02/05/2012,PAY00472312,18894.52,Revenue,Dane House Nursing Home
Brighton & Hove City Council,http://statistics.data.gov.uk/id/local-authority/00ML,Adult Social Care,BVASOC,S Svcs - Learning Disability,LDY,Third Party Payments,F,Other Establishments,FH,02/05/2012,PAY00472313,1464,Revenue,Autism Sussex Ltd
Brighton & Hove City Council,http://statistics.data.gov.uk/id/local-authority/00ML,Highways and Transportation,BVAHRT,Highways and Roads - Mntnce,HRM,Premises Related,C,Repair Maint n Alterations,CA,02/05/2012,PAY00472316,7703.88,Revenue,Siemens PLC
Brighton & Hove City Council,http://statistics.data.gov.uk/id/local-authority/00ML,Highways and Transportation,BVAHRT,Highways and Roads - Mntnce,HRM,Supplies and Services,E,Services,EF,02/05/2012,PAY00472316,1622.47,Revenue,Siemens PLC
Brighton & Hove City Council,http://statistics.data.gov.uk/id/local-authority/00ML,Adult Social Care,BVASOC,S Svcs - Learning Disability,LDY,Transport Related,D,Direct Transport Costs,DA,02/05/2012,PAY00472317,1365.73,Revenue,Colas Limited
Brighton & Hove City Council,http://statistics.data.gov.uk/id/local-authority/00ML,Adult Social Care,BVASOC,S Svcs - Older People Svcs,PPL,Transport Related,D,Direct Transport Costs,DA,02/05/2012,PAY00472317,248.87,Revenue,Colas Limited
Brighton & Hove City Council,http://statistics.data.gov.uk/id/local-authority/00ML,Central Services To The Public,BVACEN,Support Services (SSC),PPT,Transport Related,D,Direct Transport Costs,DA,02/05/2012,PAY00472317,665.97,Revenue,Colas Limited
Brighton & Hove City Council,http://statistics.data.gov.uk/id/local-authority/00ML,Children�s Social Care,BVACSC,Child Srvcs - Other Fam Supp,FFX,Transport Related,D,Contract Hire n Operating Leas,DB,02/05/2012,PAY00472317,117,Revenue,Colas Limited
Brighton & Hove City Council,http://statistics.data.gov.uk/id/local-authority/00ML,Cultural and Related Services,BVACUL,Culture & Heritage,CHG,Transport Related,D,Direct Transport Costs,DA,02/05/2012,PAY00472317,67.33,Revenue,Colas Limited
Brighton & Hove City Council,http://statistics.data.gov.uk/id/local-authority/00ML,Education Services,BVAEDU,Ed - Ed Other - Other,ENF,Transport Related,D,Direct Transport Costs,DA,02/05/2012,PAY00472317,1398.83,Revenue,Colas Limited
Brighton & Hove City Council,http://statistics.data.gov.uk/id/local-authority/00ML,Education Services,BVAEDU,Ed - Secondary Schools,EJJ,Transport Related,D,Public Transport,DD,02/05/2012,PAY00472317,71.64,Revenue,Colas Limited
Brighton & Hove City Council,http://statistics.data.gov.uk/id/local-authority/00ML,Environment and Regulatory Ser,BVAERS,Waste Management,WMT,Transport Related,D,Direct Transport Costs,DA,02/05/2012,PAY00472317,89.38,Revenue,Colas Limited
Brighton & Hove City Council,http://statistics.data.gov.uk/id/local-authority/00ML,Non SERCOP,BVANON,Cap - Transport,4TR,New Construction n Conversion,PB,Level not required,NR5026,02/05/2012,PAY00472319,10780.2,Capital,Edburton Contractors Ltd
Brighton & Hove City Council,http://statistics.data.gov.uk/id/local-authority/00ML,Central Services To The Public,BVACEN,Support Services (SSC),PPT,Premises Related,C,Repair Maint n Alterations,CA,02/05/2012,PAY00472320,750.24,Revenue,Kone Plc
Brighton & Hove City Council,http://statistics.data.gov.uk/id/local-authority/00ML,Central Services To The Public,BVACEN,Holding Accounts,PPH,Premises Related,C,Repair Maint n Alterations,CA,02/05/2012,PAY00472321,119.3,Revenue,P H Beck Ltd
Brighton & Hove City Council,http://statistics.data.gov.uk/id/local-authority/00ML,Central Services To The Public,BVACEN,Support Services (SSC),PPT,Premises Related,C,Repair Maint n Alterations,CA,02/05/2012,PAY00472321,1159.6,Revenue,P H Beck Ltd
Brighton & Hove City Council,http://statistics.data.gov.uk/id/local-authority/00ML,Environment and Regulatory Ser,BVAERS,Cem Crem and Mortuary Services,CCM,Indirect Employees,B,Training,BM,02/05/2012,PAY00472321,1170,Revenue,P H Beck Ltd
Brighton & Hove City Council,http://statistics.data.gov.uk/id/local-authority/00ML,Environment and Regulatory Ser,BVAERS,Cem Crem and Mortuary Services,CCM,Premises Related,C,Repair Maint n Alterations,CA,02/05/2012,PAY00472321,825,Revenue,P H Beck Ltd
Brighton & Hove City Council,http://statistics.data.gov.uk/id/local-authority/00ML,Highways and Transportation,BVAHRT,Parking Services,PRK,Supplies and Services,E,Equip't Furniture n Materials,EA,02/05/2012,PAY00472321,102.5,Revenue,P H Beck Ltd
Brighton & Hove City Council,http://statistics.data.gov.uk/id/local-authority/00ML,Non SERCOP,BVANON,Cap - Housing Services - HRA,4HR,New Construction n Conversion,PB,Level not required,NR5026,02/05/2012,PAY00472321,20878.26,Capital,P H Beck Ltd
Brighton & Hove City Council,http://statistics.data.gov.uk/id/local-authority/00ML,Non SERCOP,BVANON,Cap - Social Services,4RV,New Construction n Conversion,PB,Level not required,NR5026,02/05/2012,PAY00472321,3957.62,Capital,P H Beck Ltd
Brighton & Hove City Council,http://statistics.data.gov.uk/id/local-authority/00ML,Non SERCOP,BVANON,Cap - Transport,4TR,New Construction n Conversion,PB,Level not required,NR5026,02/05/2012,PAY00472322,5097.78,Capital,R J Dance (Contractors) Ltd
Brighton & Hove City Council,http://statistics.data.gov.uk/id/local-authority/00ML,Non SERCOP,BVANON,Cap - Education Services,4ED,New Construction n Conversion,PB,Level not required,NR5026,02/05/2012,PAY00472323,65584.95,Capital,Westridge Construction Ltd
Brighton & Hove City Council,http://statistics.data.gov.uk/id/local-authority/00ML,Adult Social Care,BVASOC,S Svcs - Learning Disability,LDY,Customer n Client Receipts,M,Fees n Charges,MB,02/05/2012,PAY00472324,-288,Revenue,Mencap H & S Region 4
Brighton & Hove City Council,http://statistics.data.gov.uk/id/local-authority/00ML,Adult Social Care,BVASOC,S Svcs - Learning Disability,LDY,Third Party Payments,F,Other Establishments,FH,02/05/2012,PAY00472324,5220.88,Revenue,Mencap H & S Region 4
Brighton & Hove City Council,http://statistics.data.gov.uk/id/local-authority/00ML,Adult Social Care,BVASOC,S Svcs - Learning Disability,LDY,Customer n Client Receipts,M,Fees n Charges,MB,02/05/2012,PAY00472326,-307.3,Revenue,Self Unlimited
Brighton & Hove City Council,http://statistics.data.gov.uk/id/local-authority/00ML,Adult Social Care,BVASOC,S Svcs - Learning Disability,LDY,Third Party Payments,F,Other Establishments,FH,02/05/2012,PAY00472326,2346.4,Revenue,Self Unlimited
Brighton & Hove City Council,http://statistics.data.gov.uk/id/local-authority/00ML,Central Services To The Public,BVACEN,Support Services (SSC),PPT,Transport Related,D,Public Transport,DD,02/05/2012,PAY00472329,1119.8,Revenue,Brighton & Hove Radio Cabs Ltd
Brighton & Hove City Council,http://statistics.data.gov.uk/id/local-authority/00ML,Cultural and Related Services,BVACUL,Culture & Heritage,CHG,Transport Related,D,Public Transport,DD,02/05/2012,PAY00472329,639.36,Revenue,Brighton & Hove Radio Cabs Ltd
Brighton & Hove City Council,http://statistics.data.gov.uk/id/local-authority/00ML,Adult Social Care,BVASOC,S Svcs - Physical Disability,PDY,Transfer Payments,G,Other Transfer Payments,GD,02/05/2012,PAY00472330,32.85,Revenue,British Telecommunications Plc
Brighton & Hove City Council,http://statistics.data.gov.uk/id/local-authority/00ML,Cultural and Related Services,BVACUL,Culture & Heritage,CHG,Supplies and Services,E,Communications n Computing,EH,02/05/2012,PAY00472330,146.24,Revenue,British Telecommunications Plc
Brighton & Hove City Council,http://statistics.data.gov.uk/id/local-authority/00ML,Highways and Transportation,BVAHRT,Highways and Roads - Mntnce,HRM,Supplies and Services,E,Communications n Computing,EH,02/05/2012,PAY00472330,890.56,Revenue,British Telecommunications Plc
Brighton & Hove City Council,http://statistics.data.gov.uk/id/local-authority/00ML,Central Services To The Public,BVACEN,Holding Accounts,PPH,Transport Related,D,Public Transport,DD,02/05/2012,PAY00472331,969,Revenue,Brighton & Hove Bus & Coach Co Ltd
Brighton & Hove City Council,http://statistics.data.gov.uk/id/local-authority/00ML,Children�s Social Care,BVACSC,Child Srvcs - Fostering,FLF,Transport Related,D,Public Transport,DD,02/05/2012,PAY00472331,1488.9,Revenue,Brighton & Hove Bus & Coach Co Ltd
Brighton & Hove City Council,http://statistics.data.gov.uk/id/local-authority/00ML,Education Services,BVAEDU,Ed - EY - Central,EAE,Transport Related,D,Other Transport Costs,DG,02/05/2012,PAY00472331,242.25,Revenue,Brighton & Hove Bus & Coach Co Ltd
Brighton & Hove City Council,http://statistics.data.gov.uk/id/local-authority/00ML,Education Services,BVAEDU,Ed - Srvcs YP - Youth Srvcs,ENY,Supplies and Services,E,Contributions to Provisions,EL,02/05/2012,PAY00472331,323,Revenue,Brighton & Hove Bus & Coach Co Ltd
Brighton & Hove City Council,http://statistics.data.gov.uk/id/local-authority/00ML,Highways and Transportation,BVAHRT,Parking Services,PRK,Transport Related,D,Contract Hire n Operating Leas,DB,02/05/2012,PAY00472331,392,Revenue,Brighton & Hove Bus & Coach Co Ltd
Brighton & Hove City Council,http://statistics.data.gov.uk/id/local-authority/00ML,Cultural and Related Services,BVACUL,Library Service,LBR,Third Party Payments,F,Voluntary Associations,FG,02/05/2012,PAY00472334,2972.5,Revenue,R N I B
Brighton & Hove City Council,http://statistics.data.gov.uk/id/local-authority/00ML,Adult Social Care,BVASOC,S Svcs - Learning Disability,LDY,Premises Related,C,Water Services,CE,02/05/2012,PAY00472335,2805.07,Revenue,Southern Water Services Ltd
Brighton & Hove City Council,http://statistics.data.gov.uk/id/local-authority/00ML,Adult Social Care,BVASOC,S Svcs - Older People Svcs,PPL,Premises Related,C,Water Services,CE,02/05/2012,PAY00472335,1800.69,Revenue,Southern Water Services Ltd
Brighton & Hove City Council,http://statistics.data.gov.uk/id/local-authority/00ML,Central Services To The Public,BVACEN,Support Services (SSC),PPT,Premises Related,C,Water Services,CE,02/05/2012,PAY00472335,2710.56,Revenue,Southern Water Services Ltd
Brighton & Hove City Council,http://statistics.data.gov.uk/id/local-authority/00ML,Children�s Social Care,BVACSC,Child Srvcs - Com & Scl Work,FCW,Premises Related,C,Water Services,CE,02/05/2012,PAY00472335,58.1,Revenue,Southern Water Services Ltd
Brighton & Hove City Council,http://statistics.data.gov.uk/id/local-authority/00ML,Cultural and Related Services,BVACUL,Culture & Heritage,CHG,Premises Related,C,Water Services,CE,02/05/2012,PAY00472335,2253.06,Revenue,Southern Water Services Ltd
Brighton & Hove City Council,http://statistics.data.gov.uk/id/local-authority/00ML,Cultural and Related Services,BVACUL,Highways and Roads - Mntnce,HRM,Premises Related,C,Water Services,CE,02/05/2012,PAY00472335,3440.29,Revenue,Southern Water Services Ltd
Brighton & Hove City Council,http://statistics.data.gov.uk/id/local-authority/00ML,Cultural and Related Services,BVACUL,Management Services (DEC),MGT,Premises Related,C,Water Services,CE,02/05/2012,PAY00472335,835.38,Revenue,Southern Water Services Ltd
Brighton & Hove City Council,http://statistics.data.gov.uk/id/local-authority/00ML,Cultural and Related Services,BVACUL,Open Spaces,PEN,Premises Related,C,Water Services,CE,02/05/2012,PAY00472335,633.08,Revenue,Southern Water Services Ltd
Brighton & Hove City Council,http://statistics.data.gov.uk/id/local-authority/00ML,Education Services,BVAEDU,Ed - EY - Central,EAE,Premises Related,C,Water Services,CE,02/05/2012,PAY00472335,525.93,Revenue,Southern Water Services Ltd
Brighton & Hove City Council,http://statistics.data.gov.uk/id/local-authority/00ML,Education Services,BVAEDU,Ed - Special Ed,EKE,Premises Related,C,Water Services,CE,02/05/2012,PAY00472335,89.36,Revenue,Southern Water Services Ltd
Brighton & Hove City Council,http://statistics.data.gov.uk/id/local-authority/00ML,Environment and Regulatory Ser,BVAERS,Environmental Health,EVH,Premises Related,C,Water Services,CE,02/05/2012,PAY00472335,2579.65,Revenue,Southern Water Services Ltd
Brighton & Hove City Council,http://statistics.data.gov.uk/id/local-authority/00ML,Highways and Transportation,BVAHRT,Parking Services,PRK,Premises Related,C,Water Services,CE,02/05/2012,PAY00472335,285.68,Revenue,Southern Water Services Ltd
Brighton & Hove City Council,http://statistics.data.gov.uk/id/local-authority/00ML,Housing Services Revnue Acc,BVAHOU,Hsing Management - HRA,HGM,Premises Related,C,Water Services,CE,02/05/2012,PAY00472335,483.84,Revenue,Southern Water Services Ltd
Brighton & Hove City Council,http://statistics.data.gov.uk/id/local-authority/00ML,Housing Services Revnue Acc,BVAHOU,Hsing Strategy - HRA,HGT,Premises Related,C,Water Services,CE,02/05/2012,PAY00472335,380.94,Revenue,Southern Water Services Ltd
Brighton & Hove City Council,http://statistics.data.gov.uk/id/local-authority/00ML,Planning Services,BVAPLA,Economic Development,ECD,Premises Related,C,Water Services,CE,02/05/2012,PAY00472335,467.06,Revenue,Southern Water Services Ltd
Brighton & Hove City Council,http://statistics.data.gov.uk/id/local-authority/00ML,Education Services,BVAEDU,Ed - Special Ed,EKE,Third Party Payments,F,Other Agencies,FL,02/05/2012,PAY00472338,620,Revenue,St Joseph`s Pre-School Playgroup
Brighton & Hove City Council,http://statistics.data.gov.uk/id/local-authority/00ML,Housing Services General Fund,BVAHOG,Homelessness,HML,Premises Related,C,Rents Payable,CC,02/05/2012,PAY00472339,790,Revenue,Priors Letting Agency
Brighton & Hove City Council,http://statistics.data.gov.uk/id/local-authority/00ML,Housing Services General Fund,BVAHOG,Homelessness,HML,Premises Related,C,Rents Payable,CC,02/05/2012,PAY00472340,765,Revenue,Payment to Individual
Brighton & Hove City Council,http://statistics.data.gov.uk/id/local-authority/00ML,Children�s Social Care,BVACSC,Child Srvcs - Fostering,FLF,Third Party Payments,F,Other Establishments,FH,02/05/2012,PAY00472343,9020,Revenue,Time Out Fostering Ltd
Brighton & Hove City Council,http://statistics.data.gov.uk/id/local-authority/00ML,Planning Services,BVAPLA,Economic Development,ECD,Supplies and Services,E,Miscellaneous Expenses,EM,02/05/2012,PAY00472347,18465,Revenue,Brighton & Hove Chamber of Commerce
Brighton & Hove City Council,http://statistics.data.gov.uk/id/local-authority/00ML,Housing Services General Fund,BVAHOG,Homelessness,HML,Premises Related,C,Rents Payable,CC,02/05/2012,PAY00472348,775,Revenue,Payment to Individual
Brighton & Hove City Council,http://statistics.data.gov.uk/id/local-authority/00ML,Housing Services General Fund,BVAHOG,Homelessness,HML,Premises Related,C,Rents Payable,CC,02/05/2012,PAY00472349,850,Revenue,Payment to Individual
Brighton & Hove City Council,http://statistics.data.gov.uk/id/local-authority/00ML,Central Services To The Public,BVACEN,Support Services (SSC),PPT,Premises Related,C,Repair Maint n Alterations,CA,02/05/2012,PAY00472350,785,Revenue,Tersus Consultancy Limited
Brighton & Hove City Council,http://statistics.data.gov.uk/id/local-authority/00ML,Housing Services General Fund,BVAHOG,Homelessness,HML,Premises Related,C,Rents Payable,CC,02/05/2012,PAY00472351,750,Revenue,Payment to Individual
Brighton & Hove City Council,http://statistics.data.gov.uk/id/local-authority/00ML,Housing Services General Fund,BVAHOG,Homelessness,HML,Premises Related,C,Rents Payable,CC,02/05/2012,PAY00472355,930,Revenue,Payment to Individual
Brighton & Hove City Council,http://statistics.data.gov.uk/id/local-authority/00ML,Children�s Social Care,BVACSC,Child Srvcs - Fostering,FLF,Third Party Payments,F,Other Establishments,FH,02/05/2012,PAY00472359,4200.64,Revenue,Family Link
Brighton & Hove City Council,http://statistics.data.gov.uk/id/local-authority/00ML,Children�s Social Care,BVACSC,Child Srvcs - Residential Svcs,FLR,Third Party Payments,F,Other Establishments,FH,02/05/2012,PAY00472359,16457.15,Revenue,Family Link
Brighton & Hove City Council,http://statistics.data.gov.uk/id/local-authority/00ML,Housing Services General Fund,BVAHOG,Homelessness,HML,Premises Related,C,Rents Payable,CC,02/05/2012,PAY00472360,1650,Revenue,Payment to Individual
Brighton & Hove City Council,http://statistics.data.gov.uk/id/local-authority/00ML,Highways and Transportation,BVAHRT,Parking Services,PRK,Supplies and Services,E,Miscellaneous Expenses,EM,02/05/2012,PAY00472361,1868.5,Revenue,SIX Card Solutions UK Ltd
Brighton & Hove City Council,http://statistics.data.gov.uk/id/local-authority/00ML,Children�s Social Care,BVACSC,Child Srvcs - Fostering,FLF,Third Party Payments,F,Other Establishments,FH,02/05/2012,PAY00472362,6183.36,Revenue,Sussex Fostering & Children`s Services
Brighton & Hove City Council,http://statistics.data.gov.uk/id/local-authority/00ML,Housing Services General Fund,BVAHOG,Homelessness,HML,Premises Related,C,Rents Payable,CC,02/05/2012,PAY00472366,900,Revenue,Payment to Individual
Brighton & Hove City Council,http://statistics.data.gov.uk/id/local-authority/00ML,Adult Social Care,BVASOC,S Svcs - Other Adult Services,ADT,Indirect Employees,B,Training,BM,02/05/2012,PAY00472369,1620,Revenue,Payment to Individual
Brighton & Hove City Council,http://statistics.data.gov.uk/id/local-authority/00ML,Adult Social Care,BVASOC,S Svcs - Learning Disability,LDY,Third Party Payments,F,Other Establishments,FH,02/05/2012,PAY00472372,8645.38,Revenue,Livability
Brighton & Hove City Council,http://statistics.data.gov.uk/id/local-authority/00ML,Housing Services General Fund,BVAHOG,Homelessness,HML,Premises Related,C,Rents Payable,CC,02/05/2012,PAY00472373,790,Revenue,Payment to Individual
Brighton & Hove City Council,http://statistics.data.gov.uk/id/local-authority/00ML,Children�s Social Care,BVACSC,Child Srvcs - Leaving Care,FAL,Transfer Payments,G,Other Transfer Payments,GD,02/05/2012,PAY00472380,1400,Revenue,Palm Court Guest House 
Brighton & Hove City Council,http://statistics.data.gov.uk/id/local-authority/00ML,Children�s Social Care,BVACSC,Child Srvcs - Other Fam Supp,FFX,Transfer Payments,G,Other Transfer Payments,GD,02/05/2012,PAY00472380,3600,Revenue,Palm Court Guest House 
Brighton & Hove City Council,http://statistics.data.gov.uk/id/local-authority/00ML,Cultural and Related Services,BVACUL,Culture & Heritage,CHG,Supplies and Services,E,Print Stat & Gen Office Exps,ED,02/05/2012,PAY00472388,1165.87,Revenue,Elephant Graphics Ltd
Brighton & Hove City Council,http://statistics.data.gov.uk/id/local-authority/00ML,Cultural and Related Services,BVACUL,Open Spaces,PEN,Supplies and Services,E,Equip't Furniture n Materials,EA,02/05/2012,PAY00472389,1922.2,Revenue,Collier Turf Care Ltd
Brighton & Hove City Council,http://statistics.data.gov.uk/id/local-authority/00ML,Education Services,BVAEDU,Ed - EY - Central,EAE,Supplies and Services,E,Catering,EB,02/05/2012,PAY00472391,778.7,Revenue,Snickle Doodle Cafe
Brighton & Hove City Council,http://statistics.data.gov.uk/id/local-authority/00ML,Housing Services General Fund,BVAHOG,Homelessness,HML,Premises Related,C,Rents Payable,CC,02/05/2012,PAY00472392,760,Revenue,Payment to Individual
Brighton & Hove City Council,http://statistics.data.gov.uk/id/local-authority/00ML,Environment and Regulatory Ser,BVAERS,Court Services,CRT,Supplies and Services,E,Equip't Furniture n Materials,EA,02/05/2012,PAY00472397,1258.4,Revenue,Payment to Individual
Brighton & Hove City Council,http://statistics.data.gov.uk/id/local-authority/00ML,Environment and Regulatory Ser,BVAERS,Court Services,CRT,Supplies and Services,E,Services,EF,02/05/2012,PAY00472397,566.5,Revenue,Payment to Individual
Brighton & Hove City Council,http://statistics.data.gov.uk/id/local-authority/00ML,Non SERCOP,BVANON,Cap - Education Services,4ED,New Construction n Conversion,PB,Level not required,NR5026,02/05/2012,PAY00472398,1100,Capital,Mace Ltd
Brighton & Hove City Council,http://statistics.data.gov.uk/id/local-authority/00ML,Adult Social Care,BVASOC,S Svcs - Older People Svcs,PPL,Customer n Client Receipts,M,Fees n Charges,MB,02/05/2012,PAY00472399,-761.46,Revenue,Chippendayle Lodge Care Home
Brighton & Hove City Council,http://statistics.data.gov.uk/id/local-authority/00ML,Adult Social Care,BVASOC,S Svcs - Older People Svcs,PPL,Third Party Payments,F,Other Establishments,FH,02/05/2012,PAY00472399,2580,Revenue,Chippendayle Lodge Care Home
Brighton & Hove City Council,http://statistics.data.gov.uk/id/local-authority/00ML,Housing Services General Fund,BVAHOG,Homelessness,HML,Premises Related,C,Rents Payable,CC,02/05/2012,PAY00472400,775,Revenue,Payment to Individual
Brighton & Hove City Council,http://statistics.data.gov.uk/id/local-authority/00ML,Housing Services General Fund,BVAHOG,Homelessness,HML,Premises Related,C,Rents Payable,CC,02/05/2012,PAY00472406,900,Revenue,Payment to Individual
Brighton & Hove City Council,http://statistics.data.gov.uk/id/local-authority/00ML,Children�s Social Care,BVACSC,Management Services (DEC),MGT,Supplies and Services,E,Services,EF,02/05/2012,PAY00472409,1800,Revenue,Payment to Individual
Brighton & Hove City Council,http://statistics.data.gov.uk/id/local-authority/00ML,Housing Services General Fund,BVAHOG,Homelessness,HML,Premises Related,C,Rents Payable,CC,02/05/2012,PAY00472412,1830,Revenue,Payment to Individual
Brighton & Hove City Council,http://statistics.data.gov.uk/id/local-authority/00ML,Children�s Social Care,BVACSC,Child Srvcs - Residential Svcs,FLR,Third Party Payments,F,Other Establishments,FH,02/05/2012,PAY00472413,6400,Revenue,Child First Ltd
Brighton & Hove City Council,http://statistics.data.gov.uk/id/local-authority/00ML,Children�s Social Care,BVACSC,Management Services (DEC),MGT,Supplies and Services,E,Services,EF,02/05/2012,PAY00472415,2500,Revenue,Payment to Individual
Brighton & Hove City Council,http://statistics.data.gov.uk/id/local-authority/00ML,Adult Social Care,BVASOC,S Svcs - Mental Health,MHT,Customer n Client Receipts,M,Fees n Charges,MB,02/05/2012,PAY00472418,-463.45,Revenue,Warwick House Residential Home
Brighton & Hove City Council,http://statistics.data.gov.uk/id/local-authority/00ML,Adult Social Care,BVASOC,S Svcs - Mental Health,MHT,Third Party Payments,F,Other Establishments,FH,02/05/2012,PAY00472418,1247.4,Revenue,Warwick House Residential Home
Brighton & Hove City Council,http://statistics.data.gov.uk/id/local-authority/00ML,Children�s Social Care,BVACSC,Child Srvcs - Residential Svcs,FLR,Third Party Payments,F,Other Establishments,FH,02/05/2012,PAY00472420,45510,Revenue,Ark House
Brighton & Hove City Council,http://statistics.data.gov.uk/id/local-authority/00ML,Non SERCOP,BVANON,Cap - Education Services,4ED,New Construction n Conversion,PB,Level not required,NR5026,02/05/2012,PAY00472422,677.3,Capital,PD Harris (Henfield) Ltd
Brighton & Hove City Council,http://statistics.data.gov.uk/id/local-authority/00ML,Children�s Social Care,BVACSC,Child Srvcs - Residential Svcs,FLR,Third Party Payments,F,Other Establishments,FH,02/05/2012,PAY00472427,4235,Revenue,Kingdom Care
Brighton & Hove City Council,http://statistics.data.gov.uk/id/local-authority/00ML,Adult Social Care,BVASOC,S Svcs - Older People Svcs,PPL,Customer n Client Receipts,M,Fees n Charges,MB,02/05/2012,PAY00472428,-711.93,Revenue,Claremont House Rest Home Ltd
Brighton & Hove City Council,http://statistics.data.gov.uk/id/local-authority/00ML,Adult Social Care,BVASOC,S Svcs - Older People Svcs,PPL,Third Party Payments,F,Other Establishments,FH,02/05/2012,PAY00472428,2268,Revenue,Claremont House Rest Home Ltd
Brighton & Hove City Council,http://statistics.data.gov.uk/id/local-authority/00ML,Children�s Social Care,BVACSC,Child Srvcs - Fostering,FLF,Third Party Payments,F,Other Establishments,FH,02/05/2012,PAY00472430,43760,Revenue,Brighter Futures Foster Care Ltd
Brighton & Hove City Council,http://statistics.data.gov.uk/id/local-authority/00ML,Housing Services General Fund,BVAHOG,Homelessness,HML,Premises Related,C,Rents Payable,CC,02/05/2012,PAY00472431,825,Revenue,Payment to Individual
Brighton & Hove City Council,http://statistics.data.gov.uk/id/local-authority/00ML,Children�s Social Care,BVACSC,Management Services (DEC),MGT,Supplies and Services,E,Services,EF,02/05/2012,PAY00472432,855,Revenue,Payment to Individual
Brighton & Hove City Council,http://statistics.data.gov.uk/id/local-authority/00ML,Housing Services General Fund,BVAHOG,Hsing Welfare,HGW,Transfer Payments,G,Supporting People,GF,02/05/2012,PAY00472434,671.34,Revenue,Saxon Weald
Brighton & Hove City Council,http://statistics.data.gov.uk/id/local-authority/00ML,Housing Services General Fund,BVAHOG,Homelessness,HML,Premises Related,C,Rents Payable,CC,02/05/2012,PAY00472436,750,Revenue,Payment to Individual
Brighton & Hove City Council,http://statistics.data.gov.uk/id/local-authority/00ML,Children�s Social Care,BVACSC,Child Srvcs - Fostering,FLF,Third Party Payments,F,Other Establishments,FH,02/05/2012,PAY00472439,52956.28,Revenue,Blue Sky Fostering Limited
Brighton & Hove City Council,http://statistics.data.gov.uk/id/local-authority/00ML,Children�s Social Care,BVACSC,Child Srvcs - Leaving Care,FAL,Transfer Payments,G,Other Transfer Payments,GD,02/05/2012,PAY00472440,840,Revenue,The Downs Hotel
Brighton & Hove City Council,http://statistics.data.gov.uk/id/local-authority/00ML,Children�s Social Care,BVACSC,Child Srvcs - Other Fam Supp,FFX,Transfer Payments,G,Other Transfer Payments,GD,02/05/2012,PAY00472440,528.5,Revenue,The Downs Hotel
Brighton & Hove City Council,http://statistics.data.gov.uk/id/local-authority/00ML,Children�s Social Care,BVACSC,Child Srvcs - Residential Svcs,FLR,Third Party Payments,F,Other Establishments,FH,02/05/2012,PAY00472441,21436,Revenue,PJL Healthcare Ltd
Brighton & Hove City Council,http://statistics.data.gov.uk/id/local-authority/00ML,Environment and Regulatory Ser,BVAERS,Environmental Health,EVH,Supplies and Services,E,Services,EF,02/05/2012,PAY00472443,3580.66,Revenue,Wolstonbury Kennels & Cattery Ltd
Brighton & Hove City Council,http://statistics.data.gov.uk/id/local-authority/00ML,Housing Services General Fund,BVAHOG,Homelessness,HML,Premises Related,C,Rents Payable,CC,02/05/2012,PAY00472444,715,Revenue,Payment to Individual
Brighton & Hove City Council,http://statistics.data.gov.uk/id/local-authority/00ML,Children�s Social Care,BVACSC,Child Srvcs - Fostering,FLF,Third Party Payments,F,Other Establishments,FH,02/05/2012,PAY00472445,2880,Revenue,Sunbeam Fostering Agency Ltd
Brighton & Hove City Council,http://statistics.data.gov.uk/id/local-authority/00ML,Adult Social Care,BVASOC,S Svcs - Physical Disability,PDY,Supplies and Services,E,Communications n Computing,EH,02/05/2012,PAY00472446,8,Revenue,Wealden Rehab
Brighton & Hove City Council,http://statistics.data.gov.uk/id/local-authority/00ML,Adult Social Care,BVASOC,S Svcs - Physical Disability,PDY,Supplies and Services,E,Equip't Furniture n Materials,EA,02/05/2012,PAY00472446,2085.38,Revenue,Wealden Rehab
Brighton & Hove City Council,http://statistics.data.gov.uk/id/local-authority/00ML,Central Services To The Public,BVACEN,Support Services (SSC),PPT,Premises Related,C,Repair Maint n Alterations,CA,02/05/2012,PAY00472447,1418,Revenue,Wall to Wall Communications Ltd
Brighton & Hove City Council,http://statistics.data.gov.uk/id/local-authority/00ML,Housing Services General Fund,BVAHOG,Homelessness,HML,Premises Related,C,Rents Payable,CC,02/05/2012,PAY00472448,1000,Revenue,Payment to Individual
Brighton & Hove City Council,http://statistics.data.gov.uk/id/local-authority/00ML,Housing Services General Fund,BVAHOG,Homelessness,HML,Premises Related,C,Rents Payable,CC,02/05/2012,PAY00472449,750,Revenue,Payment to Individual
Brighton & Hove City Council,http://statistics.data.gov.uk/id/local-authority/00ML,Central Services To The Public,BVACEN,Support Services (SSC),PPT,Supplies and Services,E,Services,EF,02/05/2012,PAY00472451,20611,Revenue,Treetop Printing & Design LLP
Brighton & Hove City Council,http://statistics.data.gov.uk/id/local-authority/00ML,Children�s Social Care,BVACSC,Child Srvcs - Residential Svcs,FLR,Third Party Payments,F,Other Establishments,FH,02/05/2012,PAY00472452,15800,Revenue,The Amicus Community (Arundel) Ltd
Brighton & Hove City Council,http://statistics.data.gov.uk/id/local-authority/00ML,Housing Services General Fund,BVAHOG,Homelessness,HML,Premises Related,C,Rents Payable,CC,02/05/2012,PAY00472453,800,Revenue,Payment to Individual
Brighton & Hove City Council,http://statistics.data.gov.uk/id/local-authority/00ML,Housing Services General Fund,BVAHOG,Homelessness,HML,Premises Related,C,Rents Payable,CC,02/05/2012,PAY00472456,620,Revenue,Payment to Individual
Brighton & Hove City Council,http://statistics.data.gov.uk/id/local-authority/00ML,Housing Services General Fund,BVAHOG,Homelessness,HML,Premises Related,C,Rents Payable,CC,02/05/2012,PAY00472457,750,Revenue,Payment to Individual
Brighton & Hove City Council,http://statistics.data.gov.uk/id/local-authority/00ML,Housing Services General Fund,BVAHOG,Homelessness,HML,Premises Related,C,Rents Payable,CC,02/05/2012,PAY00472458,850,Revenue,Payment to Individual
Brighton & Hove City Council,http://statistics.data.gov.uk/id/local-authority/00ML,Children�s Social Care,BVACSC,Child Srvcs - Residential Svcs,FLR,Third Party Payments,F,Other Establishments,FH,02/05/2012,PAY00472463,18400,Revenue,Oracle Care Limited
Brighton & Hove City Council,http://statistics.data.gov.uk/id/local-authority/00ML,Housing Services General Fund,BVAHOG,Homelessness,HML,Premises Related,C,Rents Payable,CC,02/05/2012,PAY00472464,725,Revenue,Payment to Individual
Brighton & Hove City Council,http://statistics.data.gov.uk/id/local-authority/00ML,Housing Services General Fund,BVAHOG,Homelessness,HML,Premises Related,C,Rents Payable,CC,02/05/2012,PAY00472466,1025,Revenue,Payment to Individual
Brighton & Hove City Council,http://statistics.data.gov.uk/id/local-authority/00ML,Children�s Social Care,BVACSC,Child Srvcs - Fostering,FLF,Third Party Payments,F,Other Establishments,FH,02/05/2012,PAY00472470,22560.64,Revenue,Cornerways Fostering Services Limited
Brighton & Hove City Council,http://statistics.data.gov.uk/id/local-authority/00ML,Adult Social Care,BVASOC,S Svcs - Older People Svcs,PPL,Customer n Client Receipts,M,Fees n Charges,MB,02/05/2012,PAY00472472,-784,Revenue,Care Outlook
Brighton & Hove City Council,http://statistics.data.gov.uk/id/local-authority/00ML,Adult Social Care,BVASOC,S Svcs - Older People Svcs,PPL,Third Party Payments,F,Other Establishments,FH,02/05/2012,PAY00472472,2936.87,Revenue,Care Outlook
Brighton & Hove City Council,http://statistics.data.gov.uk/id/local-authority/00ML,Adult Social Care,BVASOC,S Svcs - Older People Svcs,PPL,Supplies and Services,E,Communications n Computing,EH,02/05/2012,PAY00472473,12723.5,Revenue,Care Monitoring 2000 Ltd
Brighton & Hove City Council,http://statistics.data.gov.uk/id/local-authority/00ML,Housing Services General Fund,BVAHOG,Homelessness,HML,Premises Related,C,Rents Payable,CC,02/05/2012,PAY00472474,1250,Revenue,Payment to Individual
Brighton & Hove City Council,http://statistics.data.gov.uk/id/local-authority/00ML,Housing Services General Fund,BVAHOG,Homelessness,HML,Premises Related,C,Rents Payable,CC,02/05/2012,PAY00472475,1250,Revenue,Payment to Individual
Brighton & Hove City Council,http://statistics.data.gov.uk/id/local-authority/00ML,Housing Services General Fund,BVAHOG,Homelessness,HML,Premises Related,C,Rents Payable,CC,02/05/2012,PAY00472485,760,Revenue,Payment to Individual
Brighton & Hove City Council,http://statistics.data.gov.uk/id/local-authority/00ML,Non SERCOP,BVANON,Non-Council,NNC,Supplies and Services,E,Print Stat & Gen Office Exps,ED,02/05/2012,PAY00472487,455,Revenue,Ingenious Design Ltd
Brighton & Hove City Council,http://statistics.data.gov.uk/id/local-authority/00ML,Adult Social Care,BVASOC,S Svcs - Older People Svcs,PPL,Customer n Client Receipts,M,Fees n Charges,MB,02/05/2012,PAY00472490,-481.28,Revenue,Barty House Nursing Home
Brighton & Hove City Council,http://statistics.data.gov.uk/id/local-authority/00ML,Adult Social Care,BVASOC,S Svcs - Older People Svcs,PPL,Third Party Payments,F,Other Establishments,FH,02/05/2012,PAY00472490,1902.68,Revenue,Barty House Nursing Home
Brighton & Hove City Council,http://statistics.data.gov.uk/id/local-authority/00ML,Housing Services General Fund,BVAHOG,Homelessness,HML,Premises Related,C,Rents Payable,CC,02/05/2012,PAY00472491,875,Revenue,Payment to Individual
Brighton & Hove City Council,http://statistics.data.gov.uk/id/local-authority/00ML,Children�s Social Care,BVACSC,Child Srvcs - Fostering,FLF,Third Party Payments,F,Other Establishments,FH,02/05/2012,PAY00472494,21368,Revenue,Capstone Vision Foster Care Ltd
Brighton & Hove City Council,http://statistics.data.gov.uk/id/local-authority/00ML,Housing Services General Fund,BVAHOG,Homelessness,HML,Premises Related,C,Rents Payable,CC,02/05/2012,PAY00472497,1434,Revenue,Payment to Individual
Brighton & Hove City Council,http://statistics.data.gov.uk/id/local-authority/00ML,Housing Services General Fund,BVAHOG,Homelessness,HML,Premises Related,C,Rents Payable,CC,02/05/2012,PAY00472501,880,Revenue,Payment to Individual
Brighton & Hove City Council,http://statistics.data.gov.uk/id/local-authority/00ML,Central Services To The Public,BVACEN,Support Services (SSC),PPT,Supplies and Services,E,Services,EF,02/05/2012,PAY00472502,1363.65,Revenue,Linklaters LLP
Brighton & Hove City Council,http://statistics.data.gov.uk/id/local-authority/00ML,Adult Social Care,BVASOC,Hsing Welfare,HGW,Supplies and Services,E,Communications n Computing,EH,02/05/2012,PAY00472503,427.38,Revenue,Investec Asset Finance Plc
Brighton & Hove City Council,http://statistics.data.gov.uk/id/local-authority/00ML,Housing Services General Fund,BVAHOG,Homelessness,HML,Premises Related,C,Rents Payable,CC,02/05/2012,PAY00472505,1179,Revenue,Payment to Individual
Brighton & Hove City Council,http://statistics.data.gov.uk/id/local-authority/00ML,Children�s Social Care,BVACSC,Child Srvcs - Residential Svcs,FLR,Third Party Payments,F,Other Establishments,FH,02/05/2012,PAY00472506,14400,Revenue,Channels & Choices
Brighton & Hove City Council,http://statistics.data.gov.uk/id/local-authority/00ML,Children�s Social Care,BVACSC,Child Srvcs - Residential Svcs,FLR,Third Party Payments,F,Other Establishments,FH,02/05/2012,PAY00472517,35971.42,Revenue,Anderida Adolescent Care Ltd
Brighton & Hove City Council,http://statistics.data.gov.uk/id/local-authority/00ML,Adult Social Care,BVASOC,S Svcs - Older People Svcs,PPL,Customer n Client Receipts,M,Fees n Charges,MB,02/05/2012,PAY00472519,-475.2,Revenue,Ivybank Care Home
Brighton & Hove City Council,http://statistics.data.gov.uk/id/local-authority/00ML,Adult Social Care,BVASOC,S Svcs - Older People Svcs,PPL,Third Party Payments,F,Other Establishments,FH,02/05/2012,PAY00472519,1652,Revenue,Ivybank Care Home
Brighton & Hove City Council,http://statistics.data.gov.uk/id/local-authority/00ML,Housing Services General Fund,BVAHOG,Homelessness,HML,Premises Related,C,Rents Payable,CC,02/05/2012,PAY00472522,800,Revenue,Payment to Individual
Brighton & Hove City Council,http://statistics.data.gov.uk/id/local-authority/00ML,Housing Services Revnue Acc,BVAHOU,Hsing Management - HRA,HGM,Premises Related,C,Repair Maint n Alterations,CA,02/05/2012,PAY00472523,7210,Revenue,Millwood Servicing Ltd
Brighton & Hove City Council,http://statistics.data.gov.uk/id/local-authority/00ML,Adult Social Care,BVASOC,S Svcs - Learning Disability,LDY,Third Party Payments,F,Other Establishments,FH,02/05/2012,PAY00472524,2974,Revenue,Ashmeadows House Ltd
Brighton & Hove City Council,http://statistics.data.gov.uk/id/local-authority/00ML,Environment and Regulatory Ser,BVAERS,Community Safety,CMY,Third Party Payments,F,Other Establishments,FH,02/05/2012,PAY00472525,690,Revenue,Payment to Individual
Brighton & Hove City Council,http://statistics.data.gov.uk/id/local-authority/00ML,Central Services To The Public,BVACEN,Support Services (SSC),PPT,Supplies and Services,E,Services,EF,02/05/2012,PAY00472537,480,Revenue,Resolve Security
Brighton & Hove City Council,http://statistics.data.gov.uk/id/local-authority/00ML,Highways and Transportation,BVAHRT,Parking Services,PRK,Supplies and Services,E,Services,EF,02/05/2012,PAY00472537,420,Revenue,Resolve Security
Brighton & Hove City Council,http://statistics.data.gov.uk/id/local-authority/00ML,Children�s Social Care,BVACSC,Management Services (DEC),MGT,Supplies and Services,E,Services,EF,02/05/2012,PAY00472538,2415,Revenue,Payment to Individual
Brighton & Hove City Council,http://statistics.data.gov.uk/id/local-authority/00ML,Children�s Social Care,BVACSC,Child Srvcs - Fostering,FLF,Third Party Payments,F,Other Establishments,FH,02/05/2012,PAY00472545,11450,Revenue,St Christopher`s Fellowship
Brighton & Hove City Council,http://statistics.data.gov.uk/id/local-authority/00ML,Non SERCOP,BVANON,Cap - Social Services,4RV,New Construction n Conversion,PB,Level not required,NR5026,02/05/2012,PAY00472550,2851,Capital,TBS Adaptations Ltd
Brighton & Hove City Council,http://statistics.data.gov.uk/id/local-authority/00ML,Housing Services General Fund,BVAHOG,Hsing Welfare,HGW,Transfer Payments,G,Supporting People,GF,02/05/2012,PAY00472560,8263.92,Revenue,Mears Home Improvement Limited (formerly Anchor)
Brighton & Hove City Council,http://statistics.data.gov.uk/id/local-authority/00ML,Central Services To The Public,BVACEN,Support Services (SSC),PPT,Supplies and Services,E,Miscellaneous Expenses,EM,02/05/2012,PAY00472562,6888.96,Revenue,Deepstore Limited
Brighton & Hove City Council,http://statistics.data.gov.uk/id/local-authority/00ML,Adult Social Care,BVASOC,S Svcs - Older People Svcs,PPL,Customer n Client Receipts,M,Fees n Charges,MB,02/05/2012,PAY00472566,-5.25,Revenue,Middleton Grove Nursing Home
Brighton & Hove City Council,http://statistics.data.gov.uk/id/local-authority/00ML,Adult Social Care,BVASOC,S Svcs - Older People Svcs,PPL,Third Party Payments,F,Other Establishments,FH,02/05/2012,PAY00472566,585.43,Revenue,Middleton Grove Nursing Home
Brighton & Hove City Council,http://statistics.data.gov.uk/id/local-authority/00ML,Cultural and Related Services,BVACUL,Tourism,TRM,Supplies and Services,E,Miscellaneous Expenses,EM,02/05/2012,PAY00472567,500,Revenue,Beach Tennis UK
Brighton & Hove City Council,http://statistics.data.gov.uk/id/local-authority/00ML,Children�s Social Care,BVACSC,Child Srvcs - Fostering,FLF,Third Party Payments,F,Other Establishments,FH,02/05/2012,PAY00472572,1904.34,Revenue,Fostering Outcomes Ltd
Brighton & Hove City Council,http://statistics.data.gov.uk/id/local-authority/00ML,Cultural and Related Services,BVACUL,Culture & Heritage,CHG,Premises Related,C,Repair Maint n Alterations,CA,02/05/2012,PAY00472575,2836,Revenue,Coom Construction
Brighton & Hove City Council,http://statistics.data.gov.uk/id/local-authority/00ML,Adult Social Care,BVASOC,S Svcs - Older People Svcs,PPL,Third Party Payments,F,Other Establishments,FH,02/05/2012,PAY00472576,520.37,Revenue,Martlets Care
Brighton & Hove City Council,http://statistics.data.gov.uk/id/local-authority/00ML,Adult Social Care,BVASOC,S Svcs - Physical Disability,PDY,Customer n Client Receipts,M,Fees n Charges,MB,02/05/2012,PAY00472576,-238,Revenue,Martlets Care
Brighton & Hove City Council,http://statistics.data.gov.uk/id/local-authority/00ML,Adult Social Care,BVASOC,S Svcs - Physical Disability,PDY,Third Party Payments,F,Other Establishments,FH,02/05/2012,PAY00472576,965.81,Revenue,Martlets Care
Brighton & Hove City Council,http://statistics.data.gov.uk/id/local-authority/00ML,Housing Services Revnue Acc,BVAHOU,Hsing Management - HRA,HGM,Premises Related,C,Repair Maint n Alterations,CA,02/05/2012,PAY00472577,14224.51,Revenue,Liftec Lifts Ltd
Brighton & Hove City Council,http://statistics.data.gov.uk/id/local-authority/00ML,Non SERCOP,BVANON,Cap - Housing Services - HRA,4HR,New Construction n Conversion,PB,Level not required,NR5026,02/05/2012,PAY00472577,112927,Capital,Liftec Lifts Ltd
Brighton & Hove City Council,http://statistics.data.gov.uk/id/local-authority/00ML,Education Services,BVAEDU,Ed - Ed Other - Other,ENF,Supplies and Services,E,Catering,EB,02/05/2012,PAY00472581,616.78,Revenue,Eden Foodservice
Brighton & Hove City Council,http://statistics.data.gov.uk/id/local-authority/00ML,Housing Services General Fund,BVAHOG,Homelessness,HML,Premises Related,C,Rents Payable,CC,02/05/2012,PAY00472583,775,Revenue,Payment to Individual
Brighton & Hove City Council,http://statistics.data.gov.uk/id/local-authority/00ML,Children�s Social Care,BVACSC,Child Srvcs - Residential Svcs,FLR,Third Party Payments,F,Other Establishments,FH,02/05/2012,PAY00472587,5500,Revenue,Families for Children Residential Services
Brighton & Hove City Council,http://statistics.data.gov.uk/id/local-authority/00ML,Education Services,BVAEDU,Ed - Secondary Ed,EJE,Premises Related,C,Cleaning n Domestic Supps,CH,02/05/2012,PAY00472590,939.25,Revenue,Ocean Contract Cleaning Ltd
Brighton & Hove City Council,http://statistics.data.gov.uk/id/local-authority/00ML,Children�s Social Care,BVACSC,Child Srvcs - Residential Svcs,FLR,Third Party Payments,F,Other Establishments,FH,02/05/2012,PAY00472593,7000,Revenue,The Corner House Project Limited
Brighton & Hove City Council,http://statistics.data.gov.uk/id/local-authority/00ML,Housing Services General Fund,BVAHOG,Homelessness,HML,Premises Related,C,Rents Payable,CC,02/05/2012,PAY00472594,620,Revenue,Payment to Individual
Brighton & Hove City Council,http://statistics.data.gov.uk/id/local-authority/00ML,Central Services To The Public,BVACEN,Support Services (SSC),PPT,Indirect Employees,B,Training,BM,02/05/2012,PAY00472596,3600,Revenue,RNR Training and Coaching
Brighton & Hove City Council,http://statistics.data.gov.uk/id/local-authority/00ML,Highways and Transportation,BVAHRT,Highways and Roads - Mntnce,HRM,Customer n Client Receipts,M,Fees n Charges,MB,02/05/2012,PAY00472597,359.69,Revenue,TMP Worldwide
Brighton & Hove City Council,http://statistics.data.gov.uk/id/local-authority/00ML,Highways and Transportation,BVAHRT,Parking Services,PRK,Premises Related,C,Repair Maint n Alterations,CA,02/05/2012,PAY00472597,1378.75,Revenue,TMP Worldwide
Brighton & Hove City Council,http://statistics.data.gov.uk/id/local-authority/00ML,Central Services To The Public,BVACEN,Holding Accounts,PPH,Premises Related,C,Repair Maint n Alterations,CA,02/05/2012,PAY00472599,850,Revenue,Ecogreen Facilities Management Ltd
Brighton & Hove City Council,http://statistics.data.gov.uk/id/local-authority/00ML,Central Services To The Public,BVACEN,Support Services (SSC),PPT,Supplies and Services,E,Services,EF,02/05/2012,PAY00472601,350,Revenue,National Union of Teachers
Brighton & Hove City Council,http://statistics.data.gov.uk/id/local-authority/00ML,Education Services,BVAEDU,Ed - Secondary Schools,EJJ,Indirect Employees,B,Misc Employee Costs,BP,02/05/2012,PAY00472601,350,Revenue,National Union of Teachers
Brighton & Hove City Council,http://statistics.data.gov.uk/id/local-authority/00ML,Housing Services General Fund,BVAHOG,Homelessness,HML,Premises Related,C,Rents Payable,CC,02/05/2012,PAY00472603,825,Revenue,Payment to Individual
Brighton & Hove City Council,http://statistics.data.gov.uk/id/local-authority/00ML,Central Services To The Public,BVACEN,Support Services (SSC),PPT,Indirect Employees,B,Training,BM,02/05/2012,PAY00472606,750,Revenue,Payment to Individual
Brighton & Hove City Council,http://statistics.data.gov.uk/id/local-authority/00ML,Central Services To The Public,BVACEN,Support Services (SSC),PPT,Other Grants Reimbs n Conts,L,Contributions,LC,02/05/2012,PAY00472606,1196.5,Revenue,Payment to Individual
Brighton & Hove City Council,http://statistics.data.gov.uk/id/local-authority/00ML,Non SERCOP,BVANON,Cap - Education Services,4ED,New Construction n Conversion,PB,Level not required,NR5026,02/05/2012,PAY00472607,3340,Capital,Independent Asbestos Services Ltd
Brighton & Hove City Council,http://statistics.data.gov.uk/id/local-authority/00ML,Cultural and Related Services,BVACUL,Culture & Heritage,CHG,Supplies and Services,E,Goods for Resale,EG,02/05/2012,PAY00472608,1022.25,Revenue, McEwan & Co
Brighton & Hove City Council,http://statistics.data.gov.uk/id/local-authority/00ML,Adult Social Care,BVASOC,S Svcs - Mental Health,MHT,Third Party Payments,F,Other Establishments,FH,02/05/2012,PAY00472610,1069.56,Revenue,J.B.Sullivan Ltd
Brighton & Hove City Council,http://statistics.data.gov.uk/id/local-authority/00ML,Housing Services General Fund,BVAHOG,Homelessness,HML,Customer n Client Receipts,M,Fees n Charges,MB,02/05/2012,PAY00472615,54536,Revenue,Brighton and Hove Seaside Community Homes Ltd
Brighton & Hove City Council,http://statistics.data.gov.uk/id/local-authority/00ML,Environment and Regulatory Ser,BVAERS,Waste Management,WMT,Third Party Payments,F,Private Contractors,FJ,02/05/2012,PAY00472618,880,Revenue,Recresco Limited
Brighton & Hove City Council,http://statistics.data.gov.uk/id/local-authority/00ML,Children�s Social Care,BVACSC,Child Srvcs - Fostering,FLF,Third Party Payments,F,Other Establishments,FH,02/05/2012,PAY00472620,5807.76,Revenue,Family Foster Care
Brighton & Hove City Council,http://statistics.data.gov.uk/id/local-authority/00ML,Housing Services General Fund,BVAHOG,Homelessness,HML,Premises Related,C,Rents Payable,CC,02/05/2012,PAY00472629,750,Revenue,Payment to Individual
Brighton & Hove City Council,http://statistics.data.gov.uk/id/local-authority/00ML,Education Services,BVAEDU,Ed - Ed Other LAA,ELL,Supplies and Services,E,Services,EF,02/05/2012,PAY00472633,2250,Revenue,Education Impact Limited
Brighton & Hove City Council,http://statistics.data.gov.uk/id/local-authority/00ML,Children�s Social Care,BVACSC,Child Srvcs - Fostering,FLF,Third Party Payments,F,Other Establishments,FH,02/05/2012,PAY00472634,6100.64,Revenue,Fostering Solutions
Brighton & Hove City Council,http://statistics.data.gov.uk/id/local-authority/00ML,Housing Services Revnue Acc,BVAHOU,Hsing Management - HRA,HGM,Supplies and Services,E,Print Stat & Gen Office Exps,ED,02/05/2012,PAY00472641,1647.33,Revenue,Consumer Direct Lighting Limited
Brighton & Hove City Council,http://statistics.data.gov.uk/id/local-authority/00ML,Housing Services General Fund,BVAHOG,Homelessness,HML,Premises Related,C,Rents Payable,CC,02/05/2012,PAY00472642,950,Revenue,Payment to Individual
Brighton & Hove City Council,http://statistics.data.gov.uk/id/local-authority/00ML,Cultural and Related Services,BVACUL,Culture & Heritage,CHG,Direct Employees,A,Wages,AB,02/05/2012,PAY00472648,635,Revenue,Payment to Individual
Brighton & Hove City Council,http://statistics.data.gov.uk/id/local-authority/00ML,Children�s Social Care,BVACSC,Child Srvcs - Fostering,FLF,Third Party Payments,F,Other Establishments,FH,02/05/2012,PAY00472652,4780.28,Revenue,Fostercare UK Ltd
Brighton & Hove City Council,http://statistics.data.gov.uk/id/local-authority/00ML,Non SERCOP,BVANON,Cap - Other Env Services,4EV,Vehicles,PE1,Level not required,NR5032,02/05/2012,PAY00472653,41140,Capital,Bob Wild Grass Machinery Ltd
Brighton & Hove City Council,http://statistics.data.gov.uk/id/local-authority/00ML,Central Services To The Public,BVACEN,Support Services (SSC),PPT,Supplies and Services,E,Services,EF,02/05/2012,PAY00472658,9724.84,Revenue,York Place
Brighton & Hove City Council,http://statistics.data.gov.uk/id/local-authority/00ML,Adult Social Care,BVASOC,S Svcs - Learning Disability,LDY,Customer n Client Receipts,M,Fees n Charges,MB,02/05/2012,PAY00472661,-52,Revenue,Payment to Individual
Brighton & Hove City Council,http://statistics.data.gov.uk/id/local-authority/00ML,Adult Social Care,BVASOC,S Svcs - Learning Disability,LDY,Third Party Payments,F,Other Establishments,FH,02/05/2012,PAY00472661,719.24,Revenue,Payment to Individual
Brighton & Hove City Council,http://statistics.data.gov.uk/id/local-authority/00ML,Cultural and Related Services,BVACUL,Culture & Heritage,CHG,Supplies and Services,E,Equip't Furniture n Materials,EA,02/05/2012,PAY00472664,1145.2,Revenue,Richard Haworth Ltd
Brighton & Hove City Council,http://statistics.data.gov.uk/id/local-authority/00ML,Central Services To The Public,BVACEN,Support Services (SSC),PPT,Supplies and Services,E,Expenses,EJ,02/05/2012,PAY00472667,455,Revenue,Perception Dynamics Limited
Brighton & Hove City Council,http://statistics.data.gov.uk/id/local-authority/00ML,Cultural and Related Services,BVACUL,Culture & Heritage,CHG,Supplies and Services,E,Goods for Resale,EG,02/05/2012,PAY00472670,440.28,Revenue,Payment to Individual
Brighton & Hove City Council,http://statistics.data.gov.uk/id/local-authority/00ML,Cultural and Related Services,BVACUL,Culture & Heritage,CHG,Supplies and Services,E,Equip't Furniture n Materials,EA,02/05/2012,PAY00472673,46010,Revenue,BMGC Ltd Treasure Acc
Brighton & Hove City Council,http://statistics.data.gov.uk/id/local-authority/00ML,Education Services,BVAEDU,Ed - Mgmt & Support Services,EMG,Supplies and Services,E,Services,EF,03/05/2012,PAY491611,2250,Revenue,Payment to Individual
Brighton & Hove City Council,http://statistics.data.gov.uk/id/local-authority/00ML,Children�s Social Care,BVACSC,Child Srvcs - Fostering,FLF,Third Party Payments,F,Other Establishments,FH,03/05/2012,PAY491657,657,Revenue,Payment to Individual
Brighton & Hove City Council,http://statistics.data.gov.uk/id/local-authority/00ML,Non SERCOP,BVANON,Trusts,TRT,Supplies and Services,E,Grants n Subscriptions,EK,03/05/2012,PAY491663,668.4,Revenue,Elite Cleaning Services
Brighton & Hove City Council,http://statistics.data.gov.uk/id/local-authority/00ML,Environment and Regulatory Ser,BVAERS,Management Services (DEC),MGT,Transport Related,D,Direct Transport Costs,DA,03/05/2012,PAY491664,1500,Revenue,Vehicle & Operator Services Agency
Brighton & Hove City Council,http://statistics.data.gov.uk/id/local-authority/00ML,Education Services,BVAEDU,Ed - Primary schools,EHH,Direct Employees,A,Salaries,AA,03/05/2012,PAY491665,502.88,Revenue,HMRC
Brighton & Hove City Council,http://statistics.data.gov.uk/id/local-authority/00ML,Cultural and Related Services,BVACUL,Ed - Ed Other - Other,ENF,Transport Related,D,Direct Transport Costs,DA,03/05/2012,PAY491667,160,Revenue,Driver & Vehicle Licensing Agency
Brighton & Hove City Council,http://statistics.data.gov.uk/id/local-authority/00ML,Environment and Regulatory Ser,BVAERS,Waste Management,WMT,Transport Related,D,Direct Transport Costs,DA,03/05/2012,PAY491667,1400,Revenue,Driver & Vehicle Licensing Agency
Brighton & Hove City Council,http://statistics.data.gov.uk/id/local-authority/00ML,Education Services,BVAEDU,Ed - Special Ed,EKE,Third Party Payments,F,Other Agencies,FL,04/05/2012,PAY00472788,12944,Revenue,Northease Manor School Ltd
Brighton & Hove City Council,http://statistics.data.gov.uk/id/local-authority/00ML,Education Services,BVAEDU,Ed - Ed Other - Other,ENF,Supplies and Services,E,Equip't Furniture n Materials,EA,04/05/2012,PAY00472789,587.71,Revenue,Gopak Ltd
Brighton & Hove City Council,http://statistics.data.gov.uk/id/local-authority/00ML,Housing Services General Fund,BVAHOG,Homelessness,HML,Premises Related,C,Rents Payable,CC,04/05/2012,PAY00472790,775,Revenue,Payment to Individual
Brighton & Hove City Council,http://statistics.data.gov.uk/id/local-authority/00ML,Adult Social Care,BVASOC,S Svcs - Older People Svcs,PPL,Customer n Client Receipts,M,Fees n Charges,MB,04/05/2012,PAY00472791,-473.04,Revenue,RMBI
Brighton & Hove City Council,http://statistics.data.gov.uk/id/local-authority/00ML,Adult Social Care,BVASOC,S Svcs - Older People Svcs,PPL,Third Party Payments,F,Other Establishments,FH,04/05/2012,PAY00472791,2028.6,Revenue,RMBI
Brighton & Hove City Council,http://statistics.data.gov.uk/id/local-authority/00ML,Housing Services General Fund,BVAHOG,Homelessness,HML,Premises Related,C,Rents Payable,CC,04/05/2012,PAY00472792,780,Revenue,Lincoln Estates Ltd
Brighton & Hove City Council,http://statistics.data.gov.uk/id/local-authority/00ML,Housing Services Revnue Acc,BVAHOU,Hsing Management - HRA,HGM,Supplies and Services,E,Grants n Subscriptions,EK,04/05/2012,PAY00472793,680,Revenue,Social Landlords Crime & Nuisance Group
Brighton & Hove City Council,http://statistics.data.gov.uk/id/local-authority/00ML,Adult Social Care,BVASOC,S Svcs - Older People Svcs,PPL,Customer n Client Receipts,M,Fees n Charges,MB,04/05/2012,PAY00472798,-180,Revenue,Payment to Individual
Brighton & Hove City Council,http://statistics.data.gov.uk/id/local-authority/00ML,Adult Social Care,BVASOC,S Svcs - Older People Svcs,PPL,Third Party Payments,F,Other Establishments,FH,04/05/2012,PAY00472798,786.88,Revenue,Payment to Individual
Brighton & Hove City Council,http://statistics.data.gov.uk/id/local-authority/00ML,Adult Social Care,BVASOC,S Svcs - Older People Svcs,PPL,Third Party Payments,F,Other Establishments,FH,04/05/2012,PAY00472800,529.6,Revenue,Payment to Individual
Brighton & Hove City Council,http://statistics.data.gov.uk/id/local-authority/00ML,Adult Social Care,BVASOC,S Svcs - Learning Disability,LDY,Third Party Payments,F,Other Establishments,FH,04/05/2012,PAY00472801,789.44,Revenue,Payment to Individual
Brighton & Hove City Council,http://statistics.data.gov.uk/id/local-authority/00ML,Adult Social Care,BVASOC,S Svcs - Physical Disability,PDY,Third Party Payments,F,Other Establishments,FH,04/05/2012,PAY00472804,4060.16,Revenue,Payment to Individual
Brighton & Hove City Council,http://statistics.data.gov.uk/id/local-authority/00ML,Housing Services General Fund,BVAHOG,Homelessness,HML,Premises Related,C,Rents Payable,CC,04/05/2012,PAY00472805,850,Revenue,Edmonds Letting
Brighton & Hove City Council,http://statistics.data.gov.uk/id/local-authority/00ML,Housing Services General Fund,BVAHOG,Homelessness,HML,Premises Related,C,Rents Payable,CC,04/05/2012,PAY00472807,725,Revenue,Payment to Individual
Brighton & Hove City Council,http://statistics.data.gov.uk/id/local-authority/00ML,Central Services To The Public,BVACEN,Support Services (SSC),PPT,Indirect Employees,B,Training,BM,04/05/2012,PAY00472808,750,Revenue,British Safety Council
Brighton & Hove City Council,http://statistics.data.gov.uk/id/local-authority/00ML,Children�s Social Care,BVACSC,Child Srvcs - Fostering,FLF,Third Party Payments,F,Other Establishments,FH,04/05/2012,PAY00472811,904.44,Revenue,Payment to Individual
Brighton & Hove City Council,http://statistics.data.gov.uk/id/local-authority/00ML,Children�s Social Care,BVACSC,Child Srvcs - Fostering,FLF,Third Party Payments,F,Other Establishments,FH,04/05/2012,PAY00472812,636,Revenue,Payment to Individual
Brighton & Hove City Council,http://statistics.data.gov.uk/id/local-authority/00ML,Children�s Social Care,BVACSC,Child Srvcs - Fostering,FLF,Third Party Payments,F,Other Establishments,FH,04/05/2012,PAY00472815,779,Revenue,Payment to Individual
Brighton & Hove City Council,http://statistics.data.gov.uk/id/local-authority/00ML,Housing Services General Fund,BVAHOG,Homelessness,HML,Supplies and Services,E,Services,EF,04/05/2012,PAY00472818,1650,Revenue,Hove Wardley Company Ltd
Brighton & Hove City Council,http://statistics.data.gov.uk/id/local-authority/00ML,Adult Social Care,BVASOC,S Svcs - Older People Svcs,PPL,Third Party Payments,F,Other Establishments,FH,04/05/2012,PAY00472821,9524,Revenue,Oak House RH
Brighton & Hove City Council,http://statistics.data.gov.uk/id/local-authority/00ML,Central Services To The Public,BVACEN,Support Services (SSC),PPT,Transport Related,D,Direct Transport Costs,DA,04/05/2012,PAY00472824,455.52,Revenue,Caffyns Plc
Brighton & Hove City Council,http://statistics.data.gov.uk/id/local-authority/00ML,Adult Social Care,BVASOC,S Svcs - Learning Disability,LDY,Customer n Client Receipts,M,Fees n Charges,MB,04/05/2012,PAY00472825,-22,Revenue,Mears Care
Brighton & Hove City Council,http://statistics.data.gov.uk/id/local-authority/00ML,Adult Social Care,BVASOC,S Svcs - Learning Disability,LDY,Third Party Payments,F,Other Establishments,FH,04/05/2012,PAY00472825,26.64,Revenue,Mears Care
Brighton & Hove City Council,http://statistics.data.gov.uk/id/local-authority/00ML,Adult Social Care,BVASOC,S Svcs - Older People Svcs,PPL,Customer n Client Receipts,M,Fees n Charges,MB,04/05/2012,PAY00472825,-522,Revenue,Mears Care
Brighton & Hove City Council,http://statistics.data.gov.uk/id/local-authority/00ML,Adult Social Care,BVASOC,S Svcs - Older People Svcs,PPL,Third Party Payments,F,Other Establishments,FH,04/05/2012,PAY00472825,2396.83,Revenue,Mears Care
Brighton & Hove City Council,http://statistics.data.gov.uk/id/local-authority/00ML,Adult Social Care,BVASOC,S Svcs - Physical Disability,PDY,Third Party Payments,F,Other Establishments,FH,04/05/2012,PAY00472825,300.36,Revenue,Mears Care
Brighton & Hove City Council,http://statistics.data.gov.uk/id/local-authority/00ML,Central Services To The Public,BVACEN,Support Services (SSC),PPT,Premises Related,C,Repair Maint n Alterations,CA,04/05/2012,PAY00472826,776.92,Revenue,TSS Facilities Ltd
Brighton & Hove City Council,http://statistics.data.gov.uk/id/local-authority/00ML,Central Services To The Public,BVACEN,Trading Services,TRD,Premises Related,C,Repair Maint n Alterations,CA,04/05/2012,PAY00472826,48.5,Revenue,TSS Facilities Ltd
Brighton & Hove City Council,http://statistics.data.gov.uk/id/local-authority/00ML,Cultural and Related Services,BVACUL,Culture & Heritage,CHG,Premises Related,C,Repair Maint n Alterations,CA,04/05/2012,PAY00472826,1540.5,Revenue,TSS Facilities Ltd
Brighton & Hove City Council,http://statistics.data.gov.uk/id/local-authority/00ML,Education Services,BVAEDU,Ed - Srvcs YP - Ad & Cmty Ln,ENA,Premises Related,C,Repair Maint n Alterations,CA,04/05/2012,PAY00472826,555,Revenue,TSS Facilities Ltd
Brighton & Hove City Council,http://statistics.data.gov.uk/id/local-authority/00ML,Adult Social Care,BVASOC,S Svcs - Physical Disability,PDY,Third Party Payments,F,Other Establishments,FH,04/05/2012,PAY00472827,1115.64,Revenue,Payment to Individual
Brighton & Hove City Council,http://statistics.data.gov.uk/id/local-authority/00ML,Adult Social Care,BVASOC,S Svcs - Physical Disability,PDY,Third Party Payments,F,Other Establishments,FH,04/05/2012,PAY00472832,7664.8,Revenue,Payment to Individual
Brighton & Hove City Council,http://statistics.data.gov.uk/id/local-authority/00ML,Adult Social Care,BVASOC,S Svcs - Learning Disability,LDY,Third Party Payments,F,Other Establishments,FH,04/05/2012,PAY00472833,776,Revenue,Payment to Individual
Brighton & Hove City Council,http://statistics.data.gov.uk/id/local-authority/00ML,Environment and Regulatory Ser,BVAERS,Waste Management,WMT,Supplies and Services,E,Equip't Furniture n Materials,EA,04/05/2012,PAY00472835,2182.5,Revenue,Straight PLC
Brighton & Hove City Council,http://statistics.data.gov.uk/id/local-authority/00ML,Housing Services General Fund,BVAHOG,Hsing Benefits,HGB,Supplies and Services,E,Services,EF,04/05/2012,PAY00472837,1915,Revenue,Experian Ltd
Brighton & Hove City Council,http://statistics.data.gov.uk/id/local-authority/00ML,Central Services To The Public,BVACEN,Support Services (SSC),PPT,Premises Related,C,Repair Maint n Alterations,CA,04/05/2012,PAY00472839,555,Revenue,M J Zara Associates
Brighton & Hove City Council,http://statistics.data.gov.uk/id/local-authority/00ML,Adult Social Care,BVASOC,S Svcs - Physical Disability,PDY,Customer n Client Receipts,M,Fees n Charges,MB,04/05/2012,PAY00472840,-1556,Revenue,Payment to Individual
Brighton & Hove City Council,http://statistics.data.gov.uk/id/local-authority/00ML,Adult Social Care,BVASOC,S Svcs - Physical Disability,PDY,Third Party Payments,F,Other Establishments,FH,04/05/2012,PAY00472840,4862,Revenue,Payment to Individual
Brighton & Hove City Council,http://statistics.data.gov.uk/id/local-authority/00ML,Housing Services General Fund,BVAHOG,Homelessness,HML,Premises Related,C,Rents Payable,CC,04/05/2012,PAY00472841,11946.42,Revenue,Forward Properties Limited
Brighton & Hove City Council,http://statistics.data.gov.uk/id/local-authority/00ML,Cultural and Related Services,BVACUL,Culture & Heritage,CHG,Supplies and Services,E,Equip't Furniture n Materials,EA,04/05/2012,PAY00472843,1789.53,Revenue,GE Capital Equipment Finance Ltd
Brighton & Hove City Council,http://statistics.data.gov.uk/id/local-authority/00ML,Housing Services General Fund,BVAHOG,Homelessness,HML,Third Party Payments,F,Other Establishments,FH,04/05/2012,PAY00472845,18000,Revenue,Riverside ECHG Ltd
Brighton & Hove City Council,http://statistics.data.gov.uk/id/local-authority/00ML,Adult Social Care,BVASOC,S Svcs - Older People Svcs,PPL,Third Party Payments,F,Voluntary Associations,FG,04/05/2012,PAY00472846,7175,Revenue,Brighton & Hove Impetus Ltd
Brighton & Hove City Council,http://statistics.data.gov.uk/id/local-authority/00ML,Adult Social Care,BVASOC,S Svcs - Physical Disability,PDY,Customer n Client Receipts,M,Fees n Charges,MB,04/05/2012,PAY00472853,-2155.4,Revenue,MACS
Brighton & Hove City Council,http://statistics.data.gov.uk/id/local-authority/00ML,Adult Social Care,BVASOC,S Svcs - Physical Disability,PDY,Third Party Payments,F,Other Establishments,FH,04/05/2012,PAY00472853,6629.2,Revenue,MACS
Brighton & Hove City Council,http://statistics.data.gov.uk/id/local-authority/00ML,Central Services To The Public,BVACEN,Elections,ELE,Supplies and Services,E,Communications n Computing,EH,04/05/2012,PAY00472854,83,Revenue,Royal Mail Group Ltd
Brighton & Hove City Council,http://statistics.data.gov.uk/id/local-authority/00ML,Central Services To The Public,BVACEN,Holding Accounts,PPH,Supplies and Services,E,Communications n Computing,EH,04/05/2012,PAY00472854,7820.32,Revenue,Royal Mail Group Ltd
Brighton & Hove City Council,http://statistics.data.gov.uk/id/local-authority/00ML,Central Services To The Public,BVACEN,Support Services (SSC),PPT,Supplies and Services,E,Miscellaneous Expenses,EM,04/05/2012,PAY00472854,86.86,Revenue,Royal Mail Group Ltd
Brighton & Hove City Council,http://statistics.data.gov.uk/id/local-authority/00ML,Environment and Regulatory Ser,BVAERS,Consumer Protection,CNP,Supplies and Services,E,Communications n Computing,EH,04/05/2012,PAY00472854,4.89,Revenue,Royal Mail Group Ltd
Brighton & Hove City Council,http://statistics.data.gov.uk/id/local-authority/00ML,Housing Services Revnue Acc,BVAHOU,Hsing Management - HRA,HGM,Supplies and Services,E,Communications n Computing,EH,04/05/2012,PAY00472854,100.69,Revenue,Royal Mail Group Ltd
Brighton & Hove City Council,http://statistics.data.gov.uk/id/local-authority/00ML,Children�s Social Care,BVACSC,Child Srvcs - Adoption,FAA,Indirect Employees,B,Misc Employee Costs,BP,04/05/2012,PAY00472856,762,Revenue,Payment to Individual
Brighton & Hove City Council,http://statistics.data.gov.uk/id/local-authority/00ML,Children�s Social Care,BVACSC,Child Srvcs - Adoption,FAA,Transport Related,D,Public Transport,DD,04/05/2012,PAY00472856,90.5,Revenue,Payment to Individual
Brighton & Hove City Council,http://statistics.data.gov.uk/id/local-authority/00ML,Adult Social Care,BVASOC,S Svcs - Older People Svcs,PPL,Third Party Payments,F,Other Establishments,FH,04/05/2012,PAY00472857,818.12,Revenue,Payment to Individual
Brighton & Hove City Council,http://statistics.data.gov.uk/id/local-authority/00ML,Housing Services General Fund,BVAHOG,Homelessness,HML,Premises Related,C,Rents Payable,CC,04/05/2012,PAY00472858,2090,Revenue,Payment to Individual
Brighton & Hove City Council,http://statistics.data.gov.uk/id/local-authority/00ML,Education Services,BVAEDU,Ed - Mgmt & Support Services,EMG,Supplies and Services,E,Miscellaneous Expenses,EM,04/05/2012,PAY00472859,541.67,Revenue,Tribal Education Ltd
Brighton & Hove City Council,http://statistics.data.gov.uk/id/local-authority/00ML,Adult Social Care,BVASOC,S Svcs - Physical Disability,PDY,Third Party Payments,F,Other Establishments,FH,04/05/2012,PAY00472860,1882.76,Revenue,Payment to Individual
Brighton & Hove City Council,http://statistics.data.gov.uk/id/local-authority/00ML,Cultural and Related Services,BVACUL,Culture & Heritage,CHG,Supplies and Services,E,Miscellaneous Expenses,EM,04/05/2012,PAY00472861,3240,Revenue,The Interior Landscaping Company
Brighton & Hove City Council,http://statistics.data.gov.uk/id/local-authority/00ML,Adult Social Care,BVASOC,S Svcs - Physical Disability,PDY,Third Party Payments,F,Other Establishments,FH,04/05/2012,PAY00472868,4450.92,Revenue,Payment to Individual
Brighton & Hove City Council,http://statistics.data.gov.uk/id/local-authority/00ML,Adult Social Care,BVASOC,S Svcs - Older People Svcs,PPL,Customer n Client Receipts,M,Fees n Charges,MB,04/05/2012,PAY00472869,-128,Revenue,Payment to Individual
Brighton & Hove City Council,http://statistics.data.gov.uk/id/local-authority/00ML,Adult Social Care,BVASOC,S Svcs - Older People Svcs,PPL,Third Party Payments,F,Other Establishments,FH,04/05/2012,PAY00472869,1187.28,Revenue,Payment to Individual
Brighton & Hove City Council,http://statistics.data.gov.uk/id/local-authority/00ML,Adult Social Care,BVASOC,S Svcs - Other Adult Services,ADT,Third Party Payments,F,Other Establishments,FH,04/05/2012,PAY00472870,665.96,Revenue,Payment to Individual
Brighton & Hove City Council,http://statistics.data.gov.uk/id/local-authority/00ML,Adult Social Care,BVASOC,S Svcs - Physical Disability,PDY,Third Party Payments,F,Other Establishments,FH,04/05/2012,PAY00472871,2444.56,Revenue,Payment to Individual
Brighton & Hove City Council,http://statistics.data.gov.uk/id/local-authority/00ML,Highways and Transportation,BVAHRT,Highways and Roads - Mntnce,HRM,Supplies and Services,E,Services,EF,04/05/2012,PAY00472872,651.92,Revenue,T J Evans Ltd
Brighton & Hove City Council,http://statistics.data.gov.uk/id/local-authority/00ML,Adult Social Care,BVASOC,S Svcs - Mental Health,MHT,Third Party Payments,F,Other Establishments,FH,04/05/2012,PAY00472874,13.1,Revenue,Care UK Homecare
Brighton & Hove City Council,http://statistics.data.gov.uk/id/local-authority/00ML,Adult Social Care,BVASOC,S Svcs - Older People Svcs,PPL,Customer n Client Receipts,M,Fees n Charges,MB,04/05/2012,PAY00472874,-451,Revenue,Care UK Homecare
Brighton & Hove City Council,http://statistics.data.gov.uk/id/local-authority/00ML,Adult Social Care,BVASOC,S Svcs - Older People Svcs,PPL,Third Party Payments,F,Other Establishments,FH,04/05/2012,PAY00472874,3013.37,Revenue,Care UK Homecare
Brighton & Hove City Council,http://statistics.data.gov.uk/id/local-authority/00ML,Adult Social Care,BVASOC,S Svcs - Physical Disability,PDY,Customer n Client Receipts,M,Fees n Charges,MB,04/05/2012,PAY00472874,-36,Revenue,Care UK Homecare
Brighton & Hove City Council,http://statistics.data.gov.uk/id/local-authority/00ML,Adult Social Care,BVASOC,S Svcs - Physical Disability,PDY,Third Party Payments,F,Other Establishments,FH,04/05/2012,PAY00472874,567.47,Revenue,Care UK Homecare
Brighton & Hove City Council,http://statistics.data.gov.uk/id/local-authority/00ML,Adult Social Care,BVASOC,S Svcs - Physical Disability,PDY,Third Party Payments,F,Other Establishments,FH,04/05/2012,PAY00472877,4277.6,Revenue,Payment to Individual
Brighton & Hove City Council,http://statistics.data.gov.uk/id/local-authority/00ML,Adult Social Care,BVASOC,S Svcs - Physical Disability,PDY,Customer n Client Receipts,M,Fees n Charges,MB,04/05/2012,PAY00472879,-2154.56,Revenue,Payment to Individual
Brighton & Hove City Council,http://statistics.data.gov.uk/id/local-authority/00ML,Adult Social Care,BVASOC,S Svcs - Physical Disability,PDY,Third Party Payments,F,Other Establishments,FH,04/05/2012,PAY00472879,3706.36,Revenue,Payment to Individual
Brighton & Hove City Council,http://statistics.data.gov.uk/id/local-authority/00ML,Adult Social Care,BVASOC,S Svcs - Physical Disability,PDY,Third Party Payments,F,Other Establishments,FH,04/05/2012,PAY00472880,1483.6,Revenue,Payment to Individual
Brighton & Hove City Council,http://statistics.data.gov.uk/id/local-authority/00ML,Cultural and Related Services,BVACUL,Management Services (DEC),MGT,Transport Related,D,Direct Transport Costs,DA,04/05/2012,PAY00472881,137.58,Revenue,Barnes DAF
Brighton & Hove City Council,http://statistics.data.gov.uk/id/local-authority/00ML,Environment and Regulatory Ser,BVAERS,Management Services (DEC),MGT,Transport Related,D,Direct Transport Costs,DA,04/05/2012,PAY00472881,706.73,Revenue,Barnes DAF
Brighton & Hove City Council,http://statistics.data.gov.uk/id/local-authority/00ML,Adult Social Care,BVASOC,S Svcs - Other Adult Services,ADT,Third Party Payments,F,Other Establishments,FH,04/05/2012,PAY00472883,320.2,Revenue,Brighton Oasis Project
Brighton & Hove City Council,http://statistics.data.gov.uk/id/local-authority/00ML,Children�s Social Care,BVACSC,Child Srvcs - Other Fam Supp,FFX,Third Party Payments,F,Other Establishments,FH,04/05/2012,PAY00472883,12193,Revenue,Brighton Oasis Project
Brighton & Hove City Council,http://statistics.data.gov.uk/id/local-authority/00ML,Adult Social Care,BVASOC,S Svcs - Older People Svcs,PPL,Third Party Payments,F,Other Establishments,FH,04/05/2012,PAY00472884,3510.8,Revenue,Payment to Individual
Brighton & Hove City Council,http://statistics.data.gov.uk/id/local-authority/00ML,Cultural and Related Services,BVACUL,Highways and Roads - Mntnce,HRM,Premises Related,C,Repair Maint n Alterations,CA,04/05/2012,PAY00472885,3601,Revenue,FJS Building & Property Maintenance Ltd
Brighton & Hove City Council,http://statistics.data.gov.uk/id/local-authority/00ML,Adult Social Care,BVASOC,S Svcs - Learning Disability,LDY,Third Party Payments,F,Other Establishments,FH,04/05/2012,PAY00472887,2171.36,Revenue,Payment to Individual
Brighton & Hove City Council,http://statistics.data.gov.uk/id/local-authority/00ML,Central Services To The Public,BVACEN,Support Services (SSC),PPT,Supplies and Services,E,Miscellaneous Expenses,EM,04/05/2012,PAY00472889,150000,Revenue,JLT Corporate Risks Ltd-Imprest Only
Brighton & Hove City Council,http://statistics.data.gov.uk/id/local-authority/00ML,Adult Social Care,BVASOC,S Svcs - Physical Disability,PDY,Third Party Payments,F,Other Establishments,FH,04/05/2012,PAY00472890,5329.44,Revenue,Payment to Individual
Brighton & Hove City Council,http://statistics.data.gov.uk/id/local-authority/00ML,Adult Social Care,BVASOC,S Svcs - Physical Disability,PDY,Customer n Client Receipts,M,Fees n Charges,MB,04/05/2012,PAY00472893,-1687.8,Revenue,Payment to Individual
Brighton & Hove City Council,http://statistics.data.gov.uk/id/local-authority/00ML,Adult Social Care,BVASOC,S Svcs - Physical Disability,PDY,Third Party Payments,F,Other Establishments,FH,04/05/2012,PAY00472893,4687.28,Revenue,Payment to Individual
Brighton & Hove City Council,http://statistics.data.gov.uk/id/local-authority/00ML,Education Services,BVAEDU,Ed - Ed Other - Other,ENF,Supplies and Services,E,Equip't Furniture n Materials,EA,04/05/2012,PAY00472894,2300.48,Revenue,Hille Educational Products Ltd
Brighton & Hove City Council,http://statistics.data.gov.uk/id/local-authority/00ML,Central Services To The Public,BVACEN,Support Services (SSC),PPT,Indirect Employees,B,Training,BM,04/05/2012,PAY00472895,880,Revenue,QA Ltd
Brighton & Hove City Council,http://statistics.data.gov.uk/id/local-authority/00ML,Adult Social Care,BVASOC,S Svcs - Mental Health,MHT,Third Party Payments,F,Other Establishments,FH,04/05/2012,PAY00472897,155.46,Revenue,Saga Homecare
Brighton & Hove City Council,http://statistics.data.gov.uk/id/local-authority/00ML,Adult Social Care,BVASOC,S Svcs - Older People Svcs,PPL,Customer n Client Receipts,M,Fees n Charges,MB,04/05/2012,PAY00472897,-1164,Revenue,Saga Homecare
Brighton & Hove City Council,http://statistics.data.gov.uk/id/local-authority/00ML,Adult Social Care,BVASOC,S Svcs - Older People Svcs,PPL,Third Party Payments,F,Other Establishments,FH,04/05/2012,PAY00472897,7590.17,Revenue,Saga Homecare
Brighton & Hove City Council,http://statistics.data.gov.uk/id/local-authority/00ML,Adult Social Care,BVASOC,S Svcs - Physical Disability,PDY,Customer n Client Receipts,M,Fees n Charges,MB,04/05/2012,PAY00472897,-126,Revenue,Saga Homecare
Brighton & Hove City Council,http://statistics.data.gov.uk/id/local-authority/00ML,Adult Social Care,BVASOC,S Svcs - Physical Disability,PDY,Third Party Payments,F,Other Establishments,FH,04/05/2012,PAY00472897,583.26,Revenue,Saga Homecare
Brighton & Hove City Council,http://statistics.data.gov.uk/id/local-authority/00ML,Children�s Social Care,BVACSC,Child Srvcs - Fostering,FLF,Third Party Payments,F,Other Establishments,FH,04/05/2012,PAY00472903,500,Revenue,Robert Tyler Taxi Services
Brighton & Hove City Council,http://statistics.data.gov.uk/id/local-authority/00ML,Children�s Social Care,BVACSC,Child Srvcs - Fostering,FLF,Third Party Payments,F,Other Establishments,FH,04/05/2012,PAY00472904,168,Revenue,Pumpkin Patch Nursery
Brighton & Hove City Council,http://statistics.data.gov.uk/id/local-authority/00ML,Education Services,BVAEDU,Ed - Special Ed,EKE,Supplies and Services,E,Services,EF,04/05/2012,PAY00472904,768,Revenue,Pumpkin Patch Nursery
Brighton & Hove City Council,http://statistics.data.gov.uk/id/local-authority/00ML,Education Services,BVAEDU,Ed - Special Ed,EKE,Third Party Payments,F,Other Agencies,FL,04/05/2012,PAY00472904,1364,Revenue,Pumpkin Patch Nursery
Brighton & Hove City Council,http://statistics.data.gov.uk/id/local-authority/00ML,Housing Services General Fund,BVAHOG,Homelessness,HML,Premises Related,C,Rents Payable,CC,04/05/2012,PAY00472906,14526.58,Revenue,KEM Property Services Ltd
Brighton & Hove City Council,http://statistics.data.gov.uk/id/local-authority/00ML,Adult Social Care,BVASOC,S Svcs - Older People Svcs,PPL,Customer n Client Receipts,M,Fees n Charges,MB,04/05/2012,PAY00472908,-848,Revenue,Payment to Individual
Brighton & Hove City Council,http://statistics.data.gov.uk/id/local-authority/00ML,Adult Social Care,BVASOC,S Svcs - Older People Svcs,PPL,Third Party Payments,F,Other Establishments,FH,04/05/2012,PAY00472908,2576.52,Revenue,Payment to Individual
Brighton & Hove City Council,http://statistics.data.gov.uk/id/local-authority/00ML,Central Services To The Public,BVACEN,Support Services (SSC),PPT,Supplies and Services,E,Miscellaneous Expenses,EM,04/05/2012,PAY00472910,363921.37,Revenue,Jardine Lloyd Thompson Corp Risks Ltd
Brighton & Hove City Council,http://statistics.data.gov.uk/id/local-authority/00ML,Adult Social Care,BVASOC,S Svcs - Learning Disability,LDY,Third Party Payments,F,Other Establishments,FH,04/05/2012,PAY00472911,69.95,Revenue,Allied Healthcare Brighton Domicillary
Brighton & Hove City Council,http://statistics.data.gov.uk/id/local-authority/00ML,Adult Social Care,BVASOC,S Svcs - Mental Health,MHT,Third Party Payments,F,Other Establishments,FH,04/05/2012,PAY00472911,43.55,Revenue,Allied Healthcare Brighton Domicillary
Brighton & Hove City Council,http://statistics.data.gov.uk/id/local-authority/00ML,Adult Social Care,BVASOC,S Svcs - Older People Svcs,PPL,Customer n Client Receipts,M,Fees n Charges,MB,04/05/2012,PAY00472911,-426,Revenue,Allied Healthcare Brighton Domicillary
Brighton & Hove City Council,http://statistics.data.gov.uk/id/local-authority/00ML,Adult Social Care,BVASOC,S Svcs - Older People Svcs,PPL,Third Party Payments,F,Other Establishments,FH,04/05/2012,PAY00472911,2789.28,Revenue,Allied Healthcare Brighton Domicillary
Brighton & Hove City Council,http://statistics.data.gov.uk/id/local-authority/00ML,Adult Social Care,BVASOC,S Svcs - Physical Disability,PDY,Customer n Client Receipts,M,Fees n Charges,MB,04/05/2012,PAY00472911,-112,Revenue,Allied Healthcare Brighton Domicillary
Brighton & Hove City Council,http://statistics.data.gov.uk/id/local-authority/00ML,Adult Social Care,BVASOC,S Svcs - Physical Disability,PDY,Third Party Payments,F,Other Establishments,FH,04/05/2012,PAY00472911,772.51,Revenue,Allied Healthcare Brighton Domicillary
Brighton & Hove City Council,http://statistics.data.gov.uk/id/local-authority/00ML,Housing Services General Fund,BVAHOG,Homelessness,HML,Premises Related,C,Rents Payable,CC,04/05/2012,PAY00472912,12850,Revenue,W P Properties Ltd
Brighton & Hove City Council,http://statistics.data.gov.uk/id/local-authority/00ML,Housing Services General Fund,BVAHOG,Homelessness,HML,Premises Related,C,Rents Payable,CC,04/05/2012,PAY00472914,800,Revenue,Payment to Individual
Brighton & Hove City Council,http://statistics.data.gov.uk/id/local-authority/00ML,Adult Social Care,BVASOC,S Svcs - Learning Disability,LDY,Third Party Payments,F,Other Establishments,FH,04/05/2012,PAY00472915,1462.24,Revenue,Payment to Individual
Brighton & Hove City Council,http://statistics.data.gov.uk/id/local-authority/00ML,Adult Social Care,BVASOC,S Svcs - Physical Disability,PDY,Third Party Payments,F,Other Establishments,FH,04/05/2012,PAY00472916,3996,Revenue,Payment to Individual
Brighton & Hove City Council,http://statistics.data.gov.uk/id/local-authority/00ML,Adult Social Care,BVASOC,S Svcs - Physical Disability,PDY,Customer n Client Receipts,M,Fees n Charges,MB,04/05/2012,PAY00472917,-2220.28,Revenue,Payment to Individual
Brighton & Hove City Council,http://statistics.data.gov.uk/id/local-authority/00ML,Adult Social Care,BVASOC,S Svcs - Physical Disability,PDY,Third Party Payments,F,Other Establishments,FH,04/05/2012,PAY00472917,4047.84,Revenue,Payment to Individual
Brighton & Hove City Council,http://statistics.data.gov.uk/id/local-authority/00ML,Adult Social Care,BVASOC,S Svcs - Learning Disability,LDY,Indirect Employees,B,Training,BM,04/05/2012,PAY00472918,59,Revenue,a.i.d Training & Operations Ltd
Brighton & Hove City Council,http://statistics.data.gov.uk/id/local-authority/00ML,Adult Social Care,BVASOC,S Svcs - Other Adult Services,ADT,Indirect Employees,B,Training,BM,04/05/2012,PAY00472918,305,Revenue,a.i.d Training & Operations Ltd
Brighton & Hove City Council,http://statistics.data.gov.uk/id/local-authority/00ML,Central Services To The Public,BVACEN,Support Services (SSC),PPT,Indirect Employees,B,Training,BM,04/05/2012,PAY00472918,286,Revenue,a.i.d Training & Operations Ltd
Brighton & Hove City Council,http://statistics.data.gov.uk/id/local-authority/00ML,Housing Services General Fund,BVAHOG,Homelessness,HML,Premises Related,C,Repair Maint n Alterations,CA,04/05/2012,PAY00472919,427.6,Revenue,Brighton Fire Alarms Ltd
Brighton & Hove City Council,http://statistics.data.gov.uk/id/local-authority/00ML,Adult Social Care,BVASOC,S Svcs - Learning Disability,LDY,Third Party Payments,F,Other Establishments,FH,04/05/2012,PAY00472921,3284.76,Revenue,Payment to Individual
Brighton & Hove City Council,http://statistics.data.gov.uk/id/local-authority/00ML,Housing Services General Fund,BVAHOG,Homelessness,HML,Premises Related,C,Rents Payable,CC,04/05/2012,PAY00472922,775,Revenue,Payment to Individual
Brighton & Hove City Council,http://statistics.data.gov.uk/id/local-authority/00ML,Environment and Regulatory Ser,BVAERS,Cem Crem and Mortuary Services,CCM,Supplies and Services,E,Goods for Resale,EG,04/05/2012,PAY00472924,1028,Revenue,Tilleys Stonemasons Ltd
Brighton & Hove City Council,http://statistics.data.gov.uk/id/local-authority/00ML,Housing Services General Fund,BVAHOG,Homelessness,HML,Third Party Payments,F,Other Establishments,FH,04/05/2012,PAY00472925,950,Revenue,Lynda Paine Lettings
Brighton & Hove City Council,http://statistics.data.gov.uk/id/local-authority/00ML,Adult Social Care,BVASOC,S Svcs - Older People Svcs,PPL,Customer n Client Receipts,M,Fees n Charges,MB,04/05/2012,PAY00472926,4129.39,Revenue,Birchgrove Healthcare (Sussex) Ltd
Brighton & Hove City Council,http://statistics.data.gov.uk/id/local-authority/00ML,Adult Social Care,BVASOC,S Svcs - Older People Svcs,PPL,Third Party Payments,F,Other Establishments,FH,04/05/2012,PAY00472926,-703.23,Revenue,Birchgrove Healthcare (Sussex) Ltd
Brighton & Hove City Council,http://statistics.data.gov.uk/id/local-authority/00ML,Adult Social Care,BVASOC,S Svcs - Physical Disability,PDY,Customer n Client Receipts,M,Fees n Charges,MB,04/05/2012,PAY00472927,-64,Revenue,Payment to Individual
Brighton & Hove City Council,http://statistics.data.gov.uk/id/local-authority/00ML,Adult Social Care,BVASOC,S Svcs - Physical Disability,PDY,Third Party Payments,F,Other Establishments,FH,04/05/2012,PAY00472927,635.64,Revenue,Payment to Individual
Brighton & Hove City Council,http://statistics.data.gov.uk/id/local-authority/00ML,Housing Services General Fund,BVAHOG,Homelessness,HML,Premises Related,C,Cleaning n Domestic Supps,CH,04/05/2012,PAY00472928,712.99,Revenue,Tim Jordan Grounds Maintenance Ltd
Brighton & Hove City Council,http://statistics.data.gov.uk/id/local-authority/00ML,Housing Services General Fund,BVAHOG,Homelessness,HML,Premises Related,C,Repair Maint n Alterations,CA,04/05/2012,PAY00472928,12000.18,Revenue,Tim Jordan Grounds Maintenance Ltd
Brighton & Hove City Council,http://statistics.data.gov.uk/id/local-authority/00ML,Cultural and Related Services,BVACUL,Management Services (DEC),MGT,Transport Related,D,Direct Transport Costs,DA,04/05/2012,PAY00472930,2096.41,Revenue,Bartram Mowers Limited
Brighton & Hove City Council,http://statistics.data.gov.uk/id/local-authority/00ML,Adult Social Care,BVASOC,S Svcs - Physical Disability,PDY,Third Party Payments,F,Other Establishments,FH,04/05/2012,PAY00472935,1885,Revenue,Payment to Individual
Brighton & Hove City Council,http://statistics.data.gov.uk/id/local-authority/00ML,Adult Social Care,BVASOC,S Svcs - Physical Disability,PDY,Third Party Payments,F,Other Establishments,FH,04/05/2012,PAY00472936,2158.08,Revenue,Payment to Individual
Brighton & Hove City Council,http://statistics.data.gov.uk/id/local-authority/00ML,Housing Services General Fund,BVAHOG,Homelessness,HML,Premises Related,C,Rents Payable,CC,04/05/2012,PAY00472937,900,Revenue,Avon Estates (London) Ltd
Brighton & Hove City Council,http://statistics.data.gov.uk/id/local-authority/00ML,Housing Services General Fund,BVAHOG,Homelessness,HML,Premises Related,C,Rents Payable,CC,04/05/2012,PAY00472939,725,Revenue,Payment to Individual
Brighton & Hove City Council,http://statistics.data.gov.uk/id/local-authority/00ML,Adult Social Care,BVASOC,S Svcs - Older People Svcs,PPL,Customer n Client Receipts,M,Fees n Charges,MB,04/05/2012,PAY00472940,-896.87,Revenue,Glentworth Nursing Home
Brighton & Hove City Council,http://statistics.data.gov.uk/id/local-authority/00ML,Adult Social Care,BVASOC,S Svcs - Older People Svcs,PPL,Third Party Payments,F,Other Establishments,FH,04/05/2012,PAY00472940,2099.83,Revenue,Glentworth Nursing Home
Brighton & Hove City Council,http://statistics.data.gov.uk/id/local-authority/00ML,Adult Social Care,BVASOC,S Svcs - Physical Disability,PDY,Third Party Payments,F,Other Establishments,FH,04/05/2012,PAY00472943,3560,Revenue,Payment to Individual
Brighton & Hove City Council,http://statistics.data.gov.uk/id/local-authority/00ML,Highways and Transportation,BVAHRT,Parking Services,PRK,Supplies and Services,E,Equip't Furniture n Materials,EA,04/05/2012,PAY00472945,2217.97,Revenue,APT Skidata Ltd
Brighton & Hove City Council,http://statistics.data.gov.uk/id/local-authority/00ML,Environment and Regulatory Ser,BVAERS,Environmental Health,EVH,Supplies and Services,E,Services,EF,04/05/2012,PAY00472947,945,Revenue,Campbell Associates Ltd
Brighton & Hove City Council,http://statistics.data.gov.uk/id/local-authority/00ML,Children�s Social Care,BVACSC,Child Srvcs - Com & Scl Work,FCW,Direct Employees,A,Salaries,AA,04/05/2012,PAY00472948,1280,Revenue,Payment to Individual
Brighton & Hove City Council,http://statistics.data.gov.uk/id/local-authority/00ML,Adult Social Care,BVASOC,S Svcs - Physical Disability,PDY,Third Party Payments,F,Other Establishments,FH,04/05/2012,PAY00472949,2982.4,Revenue,Payment to Individual
Brighton & Hove City Council,http://statistics.data.gov.uk/id/local-authority/00ML,Central Services To The Public,BVACEN,Support Services (SSC),PPT,Supplies and Services,E,Communications n Computing,EH,04/05/2012,PAY00472950,13664.8,Revenue,Virgin Media Business
Brighton & Hove City Council,http://statistics.data.gov.uk/id/local-authority/00ML,Cultural and Related Services,BVACUL,Culture & Heritage,CHG,Supplies and Services,E,Equip't Furniture n Materials,EA,04/05/2012,PAY00472953,4760,Revenue,Entertainment Medical Srv
Brighton & Hove City Council,http://statistics.data.gov.uk/id/local-authority/00ML,Adult Social Care,BVASOC,S Svcs - Older People Svcs,PPL,Customer n Client Receipts,M,Fees n Charges,MB,04/05/2012,PAY00472954,-196,Revenue,Payment to Individual
Brighton & Hove City Council,http://statistics.data.gov.uk/id/local-authority/00ML,Adult Social Care,BVASOC,S Svcs - Older People Svcs,PPL,Third Party Payments,F,Other Establishments,FH,04/05/2012,PAY00472954,1170.68,Revenue,Payment to Individual
Brighton & Hove City Council,http://statistics.data.gov.uk/id/local-authority/00ML,Adult Social Care,BVASOC,S Svcs - Older People Svcs,PPL,Customer n Client Receipts,M,Fees n Charges,MB,04/05/2012,PAY00472956,-172,Revenue,Payment to Individual
Brighton & Hove City Council,http://statistics.data.gov.uk/id/local-authority/00ML,Adult Social Care,BVASOC,S Svcs - Older People Svcs,PPL,Third Party Payments,F,Other Establishments,FH,04/05/2012,PAY00472956,915.64,Revenue,Payment to Individual
Brighton & Hove City Council,http://statistics.data.gov.uk/id/local-authority/00ML,Environment and Regulatory Ser,BVAERS,Agricultural and Fisheries,AGF,Third Party Payments,F,Independent Units of Council,FA,04/05/2012,PAY00472958,16339.71,Revenue,Smiths Gore
Brighton & Hove City Council,http://statistics.data.gov.uk/id/local-authority/00ML,Adult Social Care,BVASOC,S Svcs - Learning Disability,LDY,Customer n Client Receipts,M,Fees n Charges,MB,04/05/2012,PAY00472961,-311.4,Revenue,The Disabilities Trust
Brighton & Hove City Council,http://statistics.data.gov.uk/id/local-authority/00ML,Adult Social Care,BVASOC,S Svcs - Learning Disability,LDY,Third Party Payments,F,Other Establishments,FH,04/05/2012,PAY00472961,3740,Revenue,The Disabilities Trust
Brighton & Hove City Council,http://statistics.data.gov.uk/id/local-authority/00ML,Adult Social Care,BVASOC,S Svcs - Older People Svcs,PPL,Customer n Client Receipts,M,Fees n Charges,MB,04/05/2012,PAY00472962,-68,Revenue,Payment to Individual
Brighton & Hove City Council,http://statistics.data.gov.uk/id/local-authority/00ML,Adult Social Care,BVASOC,S Svcs - Older People Svcs,PPL,Third Party Payments,F,Other Establishments,FH,04/05/2012,PAY00472962,2041.04,Revenue,Payment to Individual
Brighton & Hove City Council,http://statistics.data.gov.uk/id/local-authority/00ML,Adult Social Care,BVASOC,S Svcs - Physical Disability,PDY,Customer n Client Receipts,M,Fees n Charges,MB,04/05/2012,PAY00472964,-1039.84,Revenue,Payment to Individual
Brighton & Hove City Council,http://statistics.data.gov.uk/id/local-authority/00ML,Adult Social Care,BVASOC,S Svcs - Physical Disability,PDY,Third Party Payments,F,Other Establishments,FH,04/05/2012,PAY00472964,5488.24,Revenue,Payment to Individual
Brighton & Hove City Council,http://statistics.data.gov.uk/id/local-authority/00ML,Adult Social Care,BVASOC,S Svcs - Older People Svcs,PPL,Customer n Client Receipts,M,Fees n Charges,MB,04/05/2012,PAY00472966,-236,Revenue,Payment to Individual
Brighton & Hove City Council,http://statistics.data.gov.uk/id/local-authority/00ML,Adult Social Care,BVASOC,S Svcs - Older People Svcs,PPL,Third Party Payments,F,Other Establishments,FH,04/05/2012,PAY00472966,1362.72,Revenue,Payment to Individual
Brighton & Hove City Council,http://statistics.data.gov.uk/id/local-authority/00ML,Adult Social Care,BVASOC,S Svcs - Learning Disability,LDY,Customer n Client Receipts,M,Fees n Charges,MB,04/05/2012,PAY00472967,-194,Revenue,Payment to Individual
Brighton & Hove City Council,http://statistics.data.gov.uk/id/local-authority/00ML,Adult Social Care,BVASOC,S Svcs - Learning Disability,LDY,Third Party Payments,F,Other Establishments,FH,04/05/2012,PAY00472967,1010,Revenue,Payment to Individual
Brighton & Hove City Council,http://statistics.data.gov.uk/id/local-authority/00ML,Adult Social Care,BVASOC,S Svcs - Learning Disability,LDY,Premises Related,C,Repair Maint n Alterations,CA,04/05/2012,PAY00472969,26,Revenue,Lee Sullivan Contract Flooring Limited
Brighton & Hove City Council,http://statistics.data.gov.uk/id/local-authority/00ML,Central Services To The Public,BVACEN,Support Services (SSC),PPT,Premises Related,C,Repair Maint n Alterations,CA,04/05/2012,PAY00472969,1092.5,Revenue,Lee Sullivan Contract Flooring Limited
Brighton & Hove City Council,http://statistics.data.gov.uk/id/local-authority/00ML,Education Services,BVAEDU,Ed - EY - Central,EAE,Premises Related,C,Repair Maint n Alterations,CA,04/05/2012,PAY00472969,175.5,Revenue,Lee Sullivan Contract Flooring Limited
Brighton & Hove City Council,http://statistics.data.gov.uk/id/local-authority/00ML,Adult Social Care,BVASOC,S Svcs - Older People Svcs,PPL,Customer n Client Receipts,M,Fees n Charges,MB,04/05/2012,PAY00472972,-60,Revenue,Payment to Individual
Brighton & Hove City Council,http://statistics.data.gov.uk/id/local-authority/00ML,Adult Social Care,BVASOC,S Svcs - Older People Svcs,PPL,Third Party Payments,F,Other Establishments,FH,04/05/2012,PAY00472972,840.76,Revenue,Payment to Individual
Brighton & Hove City Council,http://statistics.data.gov.uk/id/local-authority/00ML,Adult Social Care,BVASOC,S Svcs - Learning Disability,LDY,Customer n Client Receipts,M,Fees n Charges,MB,04/05/2012,PAY00472973,-92,Revenue,Payment to Individual
Brighton & Hove City Council,http://statistics.data.gov.uk/id/local-authority/00ML,Adult Social Care,BVASOC,S Svcs - Learning Disability,LDY,Third Party Payments,F,Other Establishments,FH,04/05/2012,PAY00472973,970,Revenue,Payment to Individual
Brighton & Hove City Council,http://statistics.data.gov.uk/id/local-authority/00ML,Housing Services General Fund,BVAHOG,Homelessness,HML,Premises Related,C,Rents Payable,CC,04/05/2012,PAY00472974,1900,Revenue,Payment to Individual
Brighton & Hove City Council,http://statistics.data.gov.uk/id/local-authority/00ML,Adult Social Care,BVASOC,S Svcs - Older People Svcs,PPL,Customer n Client Receipts,M,Fees n Charges,MB,04/05/2012,PAY00472975,-32,Revenue,Payment to Individual
Brighton & Hove City Council,http://statistics.data.gov.uk/id/local-authority/00ML,Adult Social Care,BVASOC,S Svcs - Older People Svcs,PPL,Third Party Payments,F,Other Establishments,FH,04/05/2012,PAY00472975,681.76,Revenue,Payment to Individual
Brighton & Hove City Council,http://statistics.data.gov.uk/id/local-authority/00ML,Adult Social Care,BVASOC,S Svcs - Learning Disability,LDY,Third Party Payments,F,Other Establishments,FH,04/05/2012,PAY00472976,513.7,Revenue,Payment to Individual
Brighton & Hove City Council,http://statistics.data.gov.uk/id/local-authority/00ML,Cultural and Related Services,BVACUL,Management Services (DEC),MGT,Supplies and Services,E,Equip't Furniture n Materials,EA,04/05/2012,PAY00472978,688.53,Revenue,Station Farm
Brighton & Hove City Council,http://statistics.data.gov.uk/id/local-authority/00ML,Adult Social Care,BVASOC,S Svcs - Physical Disability,PDY,Third Party Payments,F,Other Establishments,FH,04/05/2012,PAY00472979,754.48,Revenue,Payment to Individual
Brighton & Hove City Council,http://statistics.data.gov.uk/id/local-authority/00ML,Adult Social Care,BVASOC,S Svcs - Learning Disability,LDY,Third Party Payments,F,Other Establishments,FH,04/05/2012,PAY00472980,2493.44,Revenue,Payment to Individual
Brighton & Hove City Council,http://statistics.data.gov.uk/id/local-authority/00ML,Cultural and Related Services,BVACUL,Culture & Heritage,CHG,Supplies and Services,E,Communications n Computing,EH,04/05/2012,PAY00472981,2722.5,Revenue,Cosnetics Ltd
Brighton & Hove City Council,http://statistics.data.gov.uk/id/local-authority/00ML,Adult Social Care,BVASOC,S Svcs - Older People Svcs,PPL,Customer n Client Receipts,M,Fees n Charges,MB,04/05/2012,PAY00472983,-156,Revenue,Payment to Individual
Brighton & Hove City Council,http://statistics.data.gov.uk/id/local-authority/00ML,Adult Social Care,BVASOC,S Svcs - Older People Svcs,PPL,Third Party Payments,F,Other Establishments,FH,04/05/2012,PAY00472983,2073.6,Revenue,Payment to Individual
Brighton & Hove City Council,http://statistics.data.gov.uk/id/local-authority/00ML,Adult Social Care,BVASOC,S Svcs - Physical Disability,PDY,Third Party Payments,F,Other Establishments,FH,04/05/2012,PAY00472985,4104,Revenue,Payment to Individual
Brighton & Hove City Council,http://statistics.data.gov.uk/id/local-authority/00ML,Adult Social Care,BVASOC,S Svcs - Physical Disability,PDY,Third Party Payments,F,Other Establishments,FH,04/05/2012,PAY00472986,853.6,Revenue,Payment to Individual
Brighton & Hove City Council,http://statistics.data.gov.uk/id/local-authority/00ML,Adult Social Care,BVASOC,S Svcs - Learning Disability,LDY,Customer n Client Receipts,M,Fees n Charges,MB,04/05/2012,PAY00472989,-1252.32,Revenue,Payment to Individual
Brighton & Hove City Council,http://statistics.data.gov.uk/id/local-authority/00ML,Adult Social Care,BVASOC,S Svcs - Learning Disability,LDY,Third Party Payments,F,Other Establishments,FH,04/05/2012,PAY00472989,3594.96,Revenue,Payment to Individual
Brighton & Hove City Council,http://statistics.data.gov.uk/id/local-authority/00ML,Adult Social Care,BVASOC,S Svcs - Older People Svcs,PPL,Customer n Client Receipts,M,Fees n Charges,MB,04/05/2012,PAY00472992,-675.33,Revenue,Palm Court Nursing Home
Brighton & Hove City Council,http://statistics.data.gov.uk/id/local-authority/00ML,Adult Social Care,BVASOC,S Svcs - Older People Svcs,PPL,Third Party Payments,F,Other Establishments,FH,04/05/2012,PAY00472992,2686.2,Revenue,Palm Court Nursing Home
Brighton & Hove City Council,http://statistics.data.gov.uk/id/local-authority/00ML,Housing Services General Fund,BVAHOG,Homelessness,HML,Premises Related,C,Rents Payable,CC,04/05/2012,PAY00472994,600,Revenue,Home & Coastal Developments Limited
Brighton & Hove City Council,http://statistics.data.gov.uk/id/local-authority/00ML,Adult Social Care,BVASOC,S Svcs - Physical Disability,PDY,Customer n Client Receipts,M,Fees n Charges,MB,04/05/2012,PAY00472995,-132,Revenue,Payment to Individual
Brighton & Hove City Council,http://statistics.data.gov.uk/id/local-authority/00ML,Adult Social Care,BVASOC,S Svcs - Physical Disability,PDY,Third Party Payments,F,Other Establishments,FH,04/05/2012,PAY00472995,1047.28,Revenue,Payment to Individual
Brighton & Hove City Council,http://statistics.data.gov.uk/id/local-authority/00ML,Cultural and Related Services,BVACUL,Management Services (DEC),MGT,Supplies and Services,E,Equip't Furniture n Materials,EA,04/05/2012,PAY00473001,10755,Revenue,AMP Groundcare Machinery Services Ltd
Brighton & Hove City Council,http://statistics.data.gov.uk/id/local-authority/00ML,Cultural and Related Services,BVACUL,Management Services (DEC),MGT,Transport Related,D,Direct Transport Costs,DA,04/05/2012,PAY00473001,424.27,Revenue,AMP Groundcare Machinery Services Ltd
Brighton & Hove City Council,http://statistics.data.gov.uk/id/local-authority/00ML,Environment and Regulatory Ser,BVAERS,Cem Crem and Mortuary Services,CCM,Supplies and Services,E,Services,EF,04/05/2012,PAY00473002,5735,Revenue,AM Fire & Security Group
Brighton & Hove City Council,http://statistics.data.gov.uk/id/local-authority/00ML,Central Services To The Public,BVACEN,Support Services (SSC),PPT,Supplies and Services,E,Services,EF,04/05/2012,PAY00473003,6881,Revenue,Andus Print Limited
Brighton & Hove City Council,http://statistics.data.gov.uk/id/local-authority/00ML,Adult Social Care,BVASOC,S Svcs - Older People Svcs,PPL,Supplies and Services,E,Catering,EB,04/05/2012,PAY00473007,349.56,Revenue,3663 BFS Group Ltd
Brighton & Hove City Council,http://statistics.data.gov.uk/id/local-authority/00ML,Housing Services General Fund,BVAHOG,Homelessness,HML,Supplies and Services,E,Catering,EB,04/05/2012,PAY00473007,331.84,Revenue,3663 BFS Group Ltd
Brighton & Hove City Council,http://statistics.data.gov.uk/id/local-authority/00ML,Adult Social Care,BVASOC,Management Services (DEC),MGT,Third Party Payments,F,Other Establishments,FH,04/05/2012,PAY00473012,12500,Revenue,Brighton & Hove Federation of Disabled People 
Brighton & Hove City Council,http://statistics.data.gov.uk/id/local-authority/00ML,Adult Social Care,BVASOC,S Svcs - Older People Svcs,PPL,Third Party Payments,F,Other Establishments,FH,04/05/2012,PAY00473012,4102,Revenue,Brighton & Hove Federation of Disabled People 
Brighton & Hove City Council,http://statistics.data.gov.uk/id/local-authority/00ML,Cultural and Related Services,BVACUL,Culture & Heritage,CHG,Supplies and Services,E,Miscellaneous Expenses,EM,04/05/2012,PAY00473013,1800,Revenue,Carousel Ltd
Brighton & Hove City Council,http://statistics.data.gov.uk/id/local-authority/00ML,Non SERCOP,BVANON,Cap - Mgmnt & Support Services,4PT,Plant Machinery n Equipment,PE2,Level not required,NR5025,04/05/2012,PAY00473020,109300,Capital,East Sussex County Council
Brighton & Hove City Council,http://statistics.data.gov.uk/id/local-authority/00ML,Housing Services General Fund,BVAHOG,Hsing Benefits,HGB,Supplies and Services,E,Services,EF,04/05/2012,PAY00473021,1861.15,Revenue,Equifax Plc
Brighton & Hove City Council,http://statistics.data.gov.uk/id/local-authority/00ML,Children�s Social Care,BVACSC,Child Srvcs - Fostering,FLF,Third Party Payments,F,Other Establishments,FH,04/05/2012,PAY00473025,708,Revenue,Payment to Individual
Brighton & Hove City Council,http://statistics.data.gov.uk/id/local-authority/00ML,Children�s Social Care,BVACSC,Child Srvcs - Leaving Care,FAL,Third Party Payments,F,Other Establishments,FH,04/05/2012,PAY00473025,84,Revenue,Payment to Individual
Brighton & Hove City Council,http://statistics.data.gov.uk/id/local-authority/00ML,Children�s Social Care,BVACSC,Child Srvcs - Leaving Care,FAL,Transfer Payments,G,Other Transfer Payments,GD,04/05/2012,PAY00473025,239,Revenue,Payment to Individual
Brighton & Hove City Council,http://statistics.data.gov.uk/id/local-authority/00ML,Children�s Social Care,BVACSC,Child Srvcs - Fostering,FLF,Third Party Payments,F,Other Establishments,FH,04/05/2012,PAY00473026,913.16,Revenue,Payment to Individual
Brighton & Hove City Council,http://statistics.data.gov.uk/id/local-authority/00ML,Children�s Social Care,BVACSC,Child Srvcs - Fostering,FLF,Third Party Payments,F,Other Establishments,FH,04/05/2012,PAY00473027,1133,Revenue,Payment to Individual
Brighton & Hove City Council,http://statistics.data.gov.uk/id/local-authority/00ML,Children�s Social Care,BVACSC,Child Srvcs - Fostering,FLF,Third Party Payments,F,Other Establishments,FH,04/05/2012,PAY00473029,681,Revenue,Payment to Individual
Brighton & Hove City Council,http://statistics.data.gov.uk/id/local-authority/00ML,Children�s Social Care,BVACSC,Child Srvcs - Fostering,FLF,Third Party Payments,F,Other Establishments,FH,04/05/2012,PAY00473030,748.57,Revenue,Payment to Individual
Brighton & Hove City Council,http://statistics.data.gov.uk/id/local-authority/00ML,Children�s Social Care,BVACSC,Child Srvcs - Leaving Care,FAL,Third Party Payments,F,Other Establishments,FH,04/05/2012,PAY00473030,84,Revenue,Payment to Individual
Brighton & Hove City Council,http://statistics.data.gov.uk/id/local-authority/00ML,Children�s Social Care,BVACSC,Child Srvcs - Leaving Care,FAL,Transfer Payments,G,Other Transfer Payments,GD,04/05/2012,PAY00473030,175,Revenue,Payment to Individual
Brighton & Hove City Council,http://statistics.data.gov.uk/id/local-authority/00ML,Children�s Social Care,BVACSC,Child Srvcs - Fostering,FLF,Third Party Payments,F,Other Establishments,FH,04/05/2012,PAY00473037,433,Revenue,Payment to Individual
Brighton & Hove City Council,http://statistics.data.gov.uk/id/local-authority/00ML,Children�s Social Care,BVACSC,Child Srvcs - Leaving Care,FAL,Third Party Payments,F,Other Establishments,FH,04/05/2012,PAY00473037,61,Revenue,Payment to Individual
Brighton & Hove City Council,http://statistics.data.gov.uk/id/local-authority/00ML,Children�s Social Care,BVACSC,Child Srvcs - Leaving Care,FAL,Transfer Payments,G,Other Transfer Payments,GD,04/05/2012,PAY00473037,175,Revenue,Payment to Individual
Brighton & Hove City Council,http://statistics.data.gov.uk/id/local-authority/00ML,Children�s Social Care,BVACSC,Child Srvcs - Fostering,FLF,Third Party Payments,F,Other Establishments,FH,04/05/2012,PAY00473038,390,Revenue,Payment to Individual
Brighton & Hove City Council,http://statistics.data.gov.uk/id/local-authority/00ML,Children�s Social Care,BVACSC,Child Srvcs - Leaving Care,FAL,Third Party Payments,F,Other Establishments,FH,04/05/2012,PAY00473038,168,Revenue,Payment to Individual
Brighton & Hove City Council,http://statistics.data.gov.uk/id/local-authority/00ML,Children�s Social Care,BVACSC,Child Srvcs - Leaving Care,FAL,Transfer Payments,G,Other Transfer Payments,GD,04/05/2012,PAY00473038,478,Revenue,Payment to Individual
Brighton & Hove City Council,http://statistics.data.gov.uk/id/local-authority/00ML,Children�s Social Care,BVACSC,Child Srvcs - Leaving Care,FAL,Third Party Payments,F,Other Establishments,FH,04/05/2012,PAY00473039,122,Revenue,Payment to Individual
Brighton & Hove City Council,http://statistics.data.gov.uk/id/local-authority/00ML,Children�s Social Care,BVACSC,Child Srvcs - Leaving Care,FAL,Transfer Payments,G,Other Transfer Payments,GD,04/05/2012,PAY00473039,506,Revenue,Payment to Individual
Brighton & Hove City Council,http://statistics.data.gov.uk/id/local-authority/00ML,Children�s Social Care,BVACSC,Child Srvcs - Adoption,FAA,Third Party Payments,F,Other Establishments,FH,04/05/2012,PAY00473043,709.3,Revenue,Payment to Individual
Brighton & Hove City Council,http://statistics.data.gov.uk/id/local-authority/00ML,Children�s Social Care,BVACSC,Child Srvcs - Fostering,FLF,Third Party Payments,F,Other Establishments,FH,04/05/2012,PAY00473044,571,Revenue,Payment to Individual
Brighton & Hove City Council,http://statistics.data.gov.uk/id/local-authority/00ML,Children�s Social Care,BVACSC,Child Srvcs - Fostering,FLF,Third Party Payments,F,Other Establishments,FH,04/05/2012,PAY00473045,606,Revenue,Payment to Individual
Brighton & Hove City Council,http://statistics.data.gov.uk/id/local-authority/00ML,Children�s Social Care,BVACSC,Child Srvcs - Fostering,FLF,Third Party Payments,F,Other Establishments,FH,04/05/2012,PAY00473048,1077.8,Revenue,Payment to Individual
Brighton & Hove City Council,http://statistics.data.gov.uk/id/local-authority/00ML,Children�s Social Care,BVACSC,Child Srvcs - Leaving Care,FAL,Third Party Payments,F,Other Establishments,FH,04/05/2012,PAY00473049,183,Revenue,Payment to Individual
Brighton & Hove City Council,http://statistics.data.gov.uk/id/local-authority/00ML,Children�s Social Care,BVACSC,Child Srvcs - Leaving Care,FAL,Transfer Payments,G,Other Transfer Payments,GD,04/05/2012,PAY00473049,653,Revenue,Payment to Individual
Brighton & Hove City Council,http://statistics.data.gov.uk/id/local-authority/00ML,Children�s Social Care,BVACSC,Child Srvcs - Fostering,FLF,Third Party Payments,F,Other Establishments,FH,04/05/2012,PAY00473050,780,Revenue,Payment to Individual
Brighton & Hove City Council,http://statistics.data.gov.uk/id/local-authority/00ML,Children�s Social Care,BVACSC,Child Srvcs - Fostering,FLF,Third Party Payments,F,Other Establishments,FH,04/05/2012,PAY00473054,1163.86,Revenue,Payment to Individual
Brighton & Hove City Council,http://statistics.data.gov.uk/id/local-authority/00ML,Children�s Social Care,BVACSC,Child Srvcs - Fostering,FLF,Third Party Payments,F,Other Establishments,FH,04/05/2012,PAY00473060,318,Revenue,Payment to Individual
Brighton & Hove City Council,http://statistics.data.gov.uk/id/local-authority/00ML,Children�s Social Care,BVACSC,Child Srvcs - Leaving Care,FAL,Third Party Payments,F,Other Establishments,FH,04/05/2012,PAY00473060,84,Revenue,Payment to Individual
Brighton & Hove City Council,http://statistics.data.gov.uk/id/local-authority/00ML,Children�s Social Care,BVACSC,Child Srvcs - Leaving Care,FAL,Transfer Payments,G,Other Transfer Payments,GD,04/05/2012,PAY00473060,175,Revenue,Payment to Individual
Brighton & Hove City Council,http://statistics.data.gov.uk/id/local-authority/00ML,Children�s Social Care,BVACSC,Child Srvcs - Fostering,FLF,Third Party Payments,F,Other Establishments,FH,04/05/2012,PAY00473064,781,Revenue,Payment to Individual
Brighton & Hove City Council,http://statistics.data.gov.uk/id/local-authority/00ML,Children�s Social Care,BVACSC,Child Srvcs - Fostering,FLF,Third Party Payments,F,Other Establishments,FH,04/05/2012,PAY00473065,879.99,Revenue,Payment to Individual
Brighton & Hove City Council,http://statistics.data.gov.uk/id/local-authority/00ML,Children�s Social Care,BVACSC,Child Srvcs - Fostering,FLF,Third Party Payments,F,Other Establishments,FH,04/05/2012,PAY00473066,1345.71,Revenue,Payment to Individual
Brighton & Hove City Council,http://statistics.data.gov.uk/id/local-authority/00ML,Children�s Social Care,BVACSC,Child Srvcs - Fostering,FLF,Third Party Payments,F,Other Establishments,FH,04/05/2012,PAY00473067,780,Revenue,Payment to Individual
Brighton & Hove City Council,http://statistics.data.gov.uk/id/local-authority/00ML,Children�s Social Care,BVACSC,Child Srvcs - Fostering,FLF,Third Party Payments,F,Other Establishments,FH,04/05/2012,PAY00473071,843.86,Revenue,Payment to Individual
Brighton & Hove City Council,http://statistics.data.gov.uk/id/local-authority/00ML,Children�s Social Care,BVACSC,Child Srvcs - Fostering,FLF,Third Party Payments,F,Other Establishments,FH,04/05/2012,PAY00473090,561.84,Revenue,Payment to Individual
Brighton & Hove City Council,http://statistics.data.gov.uk/id/local-authority/00ML,Children�s Social Care,BVACSC,Child Srvcs - Fostering,FLF,Third Party Payments,F,Other Establishments,FH,04/05/2012,PAY00473094,671,Revenue,Payment to Individual
Brighton & Hove City Council,http://statistics.data.gov.uk/id/local-authority/00ML,Children�s Social Care,BVACSC,Child Srvcs - Fostering,FLF,Third Party Payments,F,Other Establishments,FH,04/05/2012,PAY00473095,686,Revenue,Payment to Individual
Brighton & Hove City Council,http://statistics.data.gov.uk/id/local-authority/00ML,Children�s Social Care,BVACSC,Child Srvcs - Leaving Care,FAL,Third Party Payments,F,Other Establishments,FH,04/05/2012,PAY00473095,61,Revenue,Payment to Individual
Brighton & Hove City Council,http://statistics.data.gov.uk/id/local-authority/00ML,Children�s Social Care,BVACSC,Child Srvcs - Leaving Care,FAL,Transfer Payments,G,Other Transfer Payments,GD,04/05/2012,PAY00473095,175,Revenue,Payment to Individual
Brighton & Hove City Council,http://statistics.data.gov.uk/id/local-authority/00ML,Children�s Social Care,BVACSC,Child Srvcs - Fostering,FLF,Third Party Payments,F,Other Establishments,FH,04/05/2012,PAY00473120,961,Revenue,Payment to Individual
Brighton & Hove City Council,http://statistics.data.gov.uk/id/local-authority/00ML,Children�s Social Care,BVACSC,Child Srvcs - Adoption,FAA,Third Party Payments,F,Other Establishments,FH,04/05/2012,PAY00473121,570.37,Revenue,Payment to Individual
Brighton & Hove City Council,http://statistics.data.gov.uk/id/local-authority/00ML,Children�s Social Care,BVACSC,Child Srvcs - Fostering,FLF,Third Party Payments,F,Other Establishments,FH,04/05/2012,PAY00473122,989,Revenue,Payment to Individual
Brighton & Hove City Council,http://statistics.data.gov.uk/id/local-authority/00ML,Children�s Social Care,BVACSC,Child Srvcs - Fostering,FLF,Third Party Payments,F,Other Establishments,FH,04/05/2012,PAY00473128,1451,Revenue,Payment to Individual
Brighton & Hove City Council,http://statistics.data.gov.uk/id/local-authority/00ML,Children�s Social Care,BVACSC,Child Srvcs - Fostering,FLF,Third Party Payments,F,Other Establishments,FH,04/05/2012,PAY00473130,2305.99,Revenue,Payment to Individual
Brighton & Hove City Council,http://statistics.data.gov.uk/id/local-authority/00ML,Children�s Social Care,BVACSC,Child Srvcs - Fostering,FLF,Third Party Payments,F,Other Establishments,FH,04/05/2012,PAY00473133,789,Revenue,Payment to Individual
Brighton & Hove City Council,http://statistics.data.gov.uk/id/local-authority/00ML,Children�s Social Care,BVACSC,Child Srvcs - Fostering,FLF,Third Party Payments,F,Other Establishments,FH,04/05/2012,PAY00473134,671,Revenue,Payment to Individual
Brighton & Hove City Council,http://statistics.data.gov.uk/id/local-authority/00ML,Children�s Social Care,BVACSC,Child Srvcs - Fostering,FLF,Third Party Payments,F,Other Establishments,FH,04/05/2012,PAY00473138,806.86,Revenue,Payment to Individual
Brighton & Hove City Council,http://statistics.data.gov.uk/id/local-authority/00ML,Children�s Social Care,BVACSC,Child Srvcs - Fostering,FLF,Third Party Payments,F,Other Establishments,FH,04/05/2012,PAY00473141,579.2,Revenue,Payment to Individual
Brighton & Hove City Council,http://statistics.data.gov.uk/id/local-authority/00ML,Children�s Social Care,BVACSC,Child Srvcs - Fostering,FLF,Third Party Payments,F,Other Establishments,FH,04/05/2012,PAY00473142,629,Revenue,Payment to Individual
Brighton & Hove City Council,http://statistics.data.gov.uk/id/local-authority/00ML,Children�s Social Care,BVACSC,Child Srvcs - Fostering,FLF,Third Party Payments,F,Other Establishments,FH,04/05/2012,PAY00473144,865.1,Revenue,Payment to Individual
Brighton & Hove City Council,http://statistics.data.gov.uk/id/local-authority/00ML,Children�s Social Care,BVACSC,Child Srvcs - Fostering,FLF,Third Party Payments,F,Other Establishments,FH,04/05/2012,PAY00473145,1329.43,Revenue,Payment to Individual
Brighton & Hove City Council,http://statistics.data.gov.uk/id/local-authority/00ML,Children�s Social Care,BVACSC,Child Srvcs - Fostering,FLF,Third Party Payments,F,Other Establishments,FH,04/05/2012,PAY00473147,780,Revenue,Payment to Individual
Brighton & Hove City Council,http://statistics.data.gov.uk/id/local-authority/00ML,Children�s Social Care,BVACSC,Child Srvcs - Fostering,FLF,Third Party Payments,F,Other Establishments,FH,04/05/2012,PAY00473148,528.2,Revenue,Payment to Individual
Brighton & Hove City Council,http://statistics.data.gov.uk/id/local-authority/00ML,Children�s Social Care,BVACSC,Child Srvcs - Fostering,FLF,Third Party Payments,F,Other Establishments,FH,04/05/2012,PAY00473151,636,Revenue,Payment to Individual
Brighton & Hove City Council,http://statistics.data.gov.uk/id/local-authority/00ML,Children�s Social Care,BVACSC,Child Srvcs - Fostering,FLF,Third Party Payments,F,Other Establishments,FH,04/05/2012,PAY00473152,780,Revenue,Payment to Individual
Brighton & Hove City Council,http://statistics.data.gov.uk/id/local-authority/00ML,Children�s Social Care,BVACSC,Child Srvcs - Fostering,FLF,Third Party Payments,F,Other Establishments,FH,04/05/2012,PAY00473154,680,Revenue,Payment to Individual
Brighton & Hove City Council,http://statistics.data.gov.uk/id/local-authority/00ML,Children�s Social Care,BVACSC,Child Srvcs - Leaving Care,FAL,Third Party Payments,F,Other Establishments,FH,04/05/2012,PAY00473154,84,Revenue,Payment to Individual
Brighton & Hove City Council,http://statistics.data.gov.uk/id/local-authority/00ML,Children�s Social Care,BVACSC,Child Srvcs - Leaving Care,FAL,Transfer Payments,G,Other Transfer Payments,GD,04/05/2012,PAY00473154,175,Revenue,Payment to Individual
Brighton & Hove City Council,http://statistics.data.gov.uk/id/local-authority/00ML,Children�s Social Care,BVACSC,Child Srvcs - Fostering,FLF,Third Party Payments,F,Other Establishments,FH,04/05/2012,PAY00473155,870,Revenue,Payment to Individual
Brighton & Hove City Council,http://statistics.data.gov.uk/id/local-authority/00ML,Children�s Social Care,BVACSC,Child Srvcs - Adoption,FAA,Third Party Payments,F,Other Establishments,FH,04/05/2012,PAY00473157,371.07,Revenue,Payment to Individual
Brighton & Hove City Council,http://statistics.data.gov.uk/id/local-authority/00ML,Children�s Social Care,BVACSC,Child Srvcs - Fostering,FLF,Third Party Payments,F,Other Establishments,FH,04/05/2012,PAY00473157,318,Revenue,Payment to Individual
Brighton & Hove City Council,http://statistics.data.gov.uk/id/local-authority/00ML,Children�s Social Care,BVACSC,Child Srvcs - Adoption,FAA,Third Party Payments,F,Other Establishments,FH,04/05/2012,PAY00473160,94.98,Revenue,Payment to Individual
Brighton & Hove City Council,http://statistics.data.gov.uk/id/local-authority/00ML,Children�s Social Care,BVACSC,Child Srvcs - Fostering,FLF,Third Party Payments,F,Other Establishments,FH,04/05/2012,PAY00473160,743,Revenue,Payment to Individual
Brighton & Hove City Council,http://statistics.data.gov.uk/id/local-authority/00ML,Children�s Social Care,BVACSC,Child Srvcs - Adoption,FAA,Third Party Payments,F,Other Establishments,FH,04/05/2012,PAY00473161,918.44,Revenue,Payment to Individual
Brighton & Hove City Council,http://statistics.data.gov.uk/id/local-authority/00ML,Central Services To The Public,BVACEN,Support Services (SSC),PPT,Premises Related,C,Repair Maint n Alterations,CA,04/05/2012,PAY00473178,530.16,Revenue,F T Allen Limited
Brighton & Hove City Council,http://statistics.data.gov.uk/id/local-authority/00ML,Non SERCOP,BVANON,Cap - Social Services,4RV,New Construction n Conversion,PB,Level not required,NR5026,04/05/2012,PAY00473178,337.5,Capital,F T Allen Limited
Brighton & Hove City Council,http://statistics.data.gov.uk/id/local-authority/00ML,Cultural and Related Services,BVACUL,Open Spaces,PEN,Supplies and Services,E,Equip't Furniture n Materials,EA,04/05/2012,PAY00473181,792,Revenue,Payment to Individual
Brighton & Hove City Council,http://statistics.data.gov.uk/id/local-authority/00ML,Highways and Transportation,BVAHRT,Highways and Roads - Mntnce,HRM,Premises Related,C,Repair Maint n Alterations,CA,04/05/2012,PAY00473181,160,Revenue,Payment to Individual
Brighton & Hove City Council,http://statistics.data.gov.uk/id/local-authority/00ML,Education Services,BVAEDU,Ed - Srvcs YP - Ad & Cmty Ln,ENA,Premises Related,C,Repair Maint n Alterations,CA,04/05/2012,PAY00473182,6150,Revenue,H A Pocock Ltd
Brighton & Hove City Council,http://statistics.data.gov.uk/id/local-authority/00ML,Education Services,BVAEDU,Ed - Srvcs YP - Ad & Cmty Ln,ENA,Supplies and Services,E,Equip't Furniture n Materials,EA,04/05/2012,PAY00473182,90,Revenue,H A Pocock Ltd
Brighton & Hove City Council,http://statistics.data.gov.uk/id/local-authority/00ML,Central Services To The Public,BVACEN,Support Services (SSC),PPT,Premises Related,C,Repair Maint n Alterations,CA,04/05/2012,PAY00473183,831.41,Revenue,Hemsley Orrell P/ship
Brighton & Hove City Council,http://statistics.data.gov.uk/id/local-authority/00ML,Housing Services Revnue Acc,BVAHOU,Hsing Management - HRA,HGM,Indirect Employees,B,Training,BM,04/05/2012,PAY00473184,889,Revenue,HQN Limited
Brighton & Hove City Council,http://statistics.data.gov.uk/id/local-authority/00ML,Highways and Transportation,BVAHRT,Parking Services,PRK,Premises Related,C,Repair Maint n Alterations,CA,04/05/2012,PAY00473185,3629.68,Revenue,Hi Way Services Ltd
Brighton & Hove City Council,http://statistics.data.gov.uk/id/local-authority/00ML,Planning Services,BVAPLA,Economic Development,ECD,Premises Related,C,Repair Maint n Alterations,CA,04/05/2012,PAY00473185,69.06,Revenue,Hi Way Services Ltd
Brighton & Hove City Council,http://statistics.data.gov.uk/id/local-authority/00ML,Cultural and Related Services,BVACUL,Highways and Roads - Mntnce,HRM,Premises Related,C,Repair Maint n Alterations,CA,04/05/2012,PAY00473187,260,Revenue,J Davies Building Ltd
Brighton & Hove City Council,http://statistics.data.gov.uk/id/local-authority/00ML,Planning Services,BVAPLA,Economic Development,ECD,Premises Related,C,Repair Maint n Alterations,CA,04/05/2012,PAY00473187,3180,Revenue,J Davies Building Ltd
Brighton & Hove City Council,http://statistics.data.gov.uk/id/local-authority/00ML,Environment and Regulatory Ser,BVAERS,Environmental Health,EVH,Supplies and Services,E,Services,EF,04/05/2012,PAY00473191,3342,Revenue,Lewes District Council
Brighton & Hove City Council,http://statistics.data.gov.uk/id/local-authority/00ML,Education Services,BVAEDU,Ed - Srvcs YP - Ad & Cmty Ln,ENA,Supplies and Services,E,Miscellaneous Expenses,EM,04/05/2012,PAY00473192,466,Revenue,Newsquest (Sussex) Ltd
Brighton & Hove City Council,http://statistics.data.gov.uk/id/local-authority/00ML,Cultural and Related Services,BVACUL,Culture & Heritage,CHG,Supplies and Services,E,Miscellaneous Expenses,EM,04/05/2012,PAY00473197,882.3,Revenue,Performing Right Society Ltd
Brighton & Hove City Council,http://statistics.data.gov.uk/id/local-authority/00ML,Cultural and Related Services,BVACUL,Culture & Heritage,CHG,Supplies and Services,E,Miscellaneous Expenses,EM,04/05/2012,PAY00473199,3802,Revenue,PMW Limited
Brighton & Hove City Council,http://statistics.data.gov.uk/id/local-authority/00ML,Housing Services General Fund,BVAHOG,Homelessness,HML,Premises Related,C,Repair Maint n Alterations,CA,04/05/2012,PAY00473204,618.16,Revenue,Securitel Service Ltd
Brighton & Hove City Council,http://statistics.data.gov.uk/id/local-authority/00ML,Adult Social Care,BVASOC,S Svcs - Older People Svcs,PPL,Premises Related,C,Energy Costs,CB,04/05/2012,PAY00473205,2226.56,Revenue,Emo Oil Ltd
Brighton & Hove City Council,http://statistics.data.gov.uk/id/local-authority/00ML,Cultural and Related Services,BVACUL,Culture & Heritage,CHG,Premises Related,C,Energy Costs,CB,04/05/2012,PAY00473205,1045.5,Revenue,Emo Oil Ltd
Brighton & Hove City Council,http://statistics.data.gov.uk/id/local-authority/00ML,Central Services To The Public,BVACEN,Support Services (SSC),PPT,Premises Related,C,Repair Maint n Alterations,CA,04/05/2012,PAY00473206,578,Revenue,Southern Mobility Centres Ltd
Brighton & Hove City Council,http://statistics.data.gov.uk/id/local-authority/00ML,Adult Social Care,BVASOC,S Svcs - Learning Disability,LDY,Premises Related,C,Cleaning n Domestic Supps,CH,04/05/2012,PAY00473207,235.92,Revenue,Sussex Community NHS Trust
Brighton & Hove City Council,http://statistics.data.gov.uk/id/local-authority/00ML,Adult Social Care,BVASOC,S Svcs - Learning Disability,LDY,Premises Related,C,Repair Maint n Alterations,CA,04/05/2012,PAY00473207,231.16,Revenue,Sussex Community NHS Trust
Brighton & Hove City Council,http://statistics.data.gov.uk/id/local-authority/00ML,Adult Social Care,BVASOC,S Svcs - Older People Svcs,PPL,Premises Related,C,Repair Maint n Alterations,CA,04/05/2012,PAY00473207,526.03,Revenue,Sussex Community NHS Trust
Brighton & Hove City Council,http://statistics.data.gov.uk/id/local-authority/00ML,Education Services,BVAEDU,Ed - EY - Central,EAE,Premises Related,C,Repair Maint n Alterations,CA,04/05/2012,PAY00473207,47.96,Revenue,Sussex Community NHS Trust
Brighton & Hove City Council,http://statistics.data.gov.uk/id/local-authority/00ML,Education Services,BVAEDU,Ed - Special Ed,EKE,Premises Related,C,Cleaning n Domestic Supps,CH,04/05/2012,PAY00473207,158.1,Revenue,Sussex Community NHS Trust
Brighton & Hove City Council,http://statistics.data.gov.uk/id/local-authority/00ML,Adult Social Care,BVASOC,S Svcs - Learning Disability,LDY,Premises Related,C,Cleaning n Domestic Supps,CH,04/05/2012,PAY00473216,475.13,Revenue,Wightman & Parrish Ltd
